{"text_format":"1","workbook":"xlsx","n_sheets":2,"sheets":["INTRODUÇÃO","SIMULADOR CÁLCULO TAXAS"],"not_rendered":{"charts":0,"images":43,"macros":1,"external_links":2,"defined_names":15,"comments":0,"pivot_tables":0},"unopened":[],"bounds":{"document_bytes":16777216,"sheet_cells":100000,"rows_first":2000,"rows_last":500,"rows_between":2000,"halvings":0,"cell_chars":16384,"cell_head_chars":4096},"cells_cut":0,"cells_raw":0,"read":"whole","date_system":"1900"}

{"sheet":"INTRODUÇÃO","index":0,"n_rows":18,"n_cols":1,"rows_kept":18,"cut":false,"hidden":false,"merged":[[17,0,17,12],[0,0,1,12],[3,0,10,12],[11,0,11,12],[12,0,12,12],[14,0,14,12],[16,0,16,12]]}
["SIMULADOR DE CÁLCULO DE TAXAS DE URBANIZAÇÃO E EDIFICAÇÃO"]
[]
[]
["Na sequência das ações que a Câmara Municipal de Amarante tem levado a efeito no âmbito da estratégia de modernização administrativa dos procedimentos dos processos de operações urbanísticas e de edificação, foi desenvolvido este simulador de taxas que tem como objetivo disponibilizar aos munícipes e às empresas uma ferramenta de ajuda que permita estimar os custos com os atos de licenciamento. \nO correto preenchimento dos campos dos quadros do simulador é fundamental para a fiabilidade do valor obtido, o qual é meramente indicativo. \nOs valores utilizados são os que constam:\n"]
[]
[]
[]
[]
[]
[]
[]
["http://www.cm-amarante.pt/pt/precos-taxas-e-impostos-municipais"]
["CÓDIGO REGULAMENTAR"]
[]
["https://www.cm-amarante.pt/pt/codigo-regulamentar"]
[]
["AVISO\nUTILIZAÇÃO DO SIMULADOR"]
["Para a utilização do simulador de cálculo de taxas, deverá ativar as “Definições ActiveX”, para isso siga os seguintes passos:"]

{"sheet":"SIMULADOR CÁLCULO TAXAS","index":1,"n_rows":831,"n_cols":33,"rows_kept":831,"cut":false,"hidden":false,"merged":[[666,0,666,7],[668,0,668,7],[669,0,669,8],[676,0,676,1],[676,2,676,3],[676,5,676,6],[655,0,655,7],[657,0,657,8],[659,0,659,5],[660,0,660,5],[661,0,661,5],[662,0,662,7],[649,0,649,5],[650,0,650,5],[651,0,651,5],[652,0,652,5],[653,0,653,5],[654,0,654,5],[643,0,643,5],[644,0,644,5],[645,0,645,5],[646,0,646,5],[647,0,647,5],[648,0,648,5],[635,0,635,5],[636,0,636,7],[638,0,638,8],[640,0,640,5],[641,0,641,5],[642,0,642,5],[627,0,627,5],[628,0,628,5],[629,0,629,7],[631,0,631,8],[633,0,633,5],[634,0,634,5],[619,0,619,5],[620,0,620,5],[621,0,621,7],[623,0,623,8],[625,0,625,5],[626,0,626,5],[613,0,613,5],[614,0,614,5],[615,0,615,5],[616,0,616,5],[617,0,617,5],[618,0,618,5],[607,0,607,5],[608,0,608,5],[609,0,609,5],[610,0,610,5],[611,0,611,5],[612,0,612,5],[601,0,601,5],[602,0,602,5],[603,0,603,5],[604,0,604,5],[605,0,605,5],[606,0,606,5],[593,0,593,5],[594,0,594,5],[595,0,595,7],[597,0,597,8],[599,0,599,5],[600,0,600,5],[587,0,587,5],[588,0,588,5],[589,0,589,5],[590,0,590,5],[591,0,591,5],[592,0,592,5],[579,0,579,5],[580,0,580,7],[582,0,582,8],[584,0,584,5],[585,0,585,5],[586,0,586,5],[573,0,573,5],[574,0,574,5],[575,0,575,5],[576,0,576,5],[577,0,577,5],[578,0,578,5],[567,0,567,5],[568,0,568,5],[569,0,569,5],[570,0,570,5],[571,0,571,5],[572,0,572,5],[561,0,561,5],[562,0,562,5],[563,0,563,5],[564,0,564,5],[565,0,565,5],[566,0,566,5],[552,0,552,7],[554,0,554,8],[556,0,556,8],[558,0,558,5],[559,0,559,5],[560,0,560,5],[545,0,545,8],[547,0,547,5],[548,0,548,5],[549,0,549,5],[550,0,550,5],[551,0,551,5],[538,0,538,5],[539,0,539,5],[540,0,540,5],[541,0,541,5],[542,0,542,5],[543,0,543,7],[532,0,532,5],[533,0,533,5],[534,0,534,5],[535,0,535,5],[536,0,536,5],[537,0,537,5],[526,0,526,5],[527,0,527,5],[528,0,528,5],[529,0,529,5],[530,0,530,5],[531,0,531,5],[520,0,520,5],[521,0,521,5],[522,0,522,5],[523,0,523,5],[524,0,524,5],[525,0,525,5],[514,0,514,5],[515,0,515,5],[516,0,516,5],[517,0,517,5],[518,0,518,5],[519,0,519,5],[508,0,508,5],[509,0,509,5],[510,0,510,5],[511,0,511,5],[512,0,512,5],[513,0,513,5],[500,0,500,5],[501,0,501,5],[502,0,502,5],[503,0,503,5],[504,0,504,7],[506,0,506,8],[492,0,492,5],[493,0,493,5],[494,0,494,7],[496,0,496,8],[498,0,498,5],[499,0,499,5],[482,0,482,5],[483,0,483,5],[484,0,484,7],[488,0,488,8],[490,0,490,5],[491,0,491,5],[476,0,476,5],[477,0,477,5],[478,0,478,5],[479,0,479,5],[480,0,480,5],[481,0,481,5],[470,0,470,5],[471,0,471,5],[472,0,472,5],[473,0,473,5],[474,0,474,5],[475,0,475,5],[461,0,461,5],[462,0,462,5],[463,0,463,5],[464,0,464,7],[466,0,466,8],[468,0,468,8],[455,0,455,5],[456,0,456,5],[457,0,457,5],[458,0,458,5],[459,0,459,5],[460,0,460,5],[447,0,447,5],[448,0,448,5],[449,0,449,7],[451,0,451,8],[453,0,453,8],[454,0,454,5],[441,0,441,5],[442,0,442,5],[443,0,443,5],[444,0,444,5],[445,0,445,5],[446,0,446,5],[435,0,435,5],[436,0,436,5],[437,0,437,5],[438,0,438,5],[439,0,439,5],[440,0,440,5],[429,0,429,5],[430,0,430,5],[431,0,431,5],[432,0,432,5],[433,0,433,5],[434,0,434,5],[423,0,423,5],[424,0,424,5],[425,0,425,5],[426,0,426,5],[427,0,427,5],[428,0,428,5],[417,0,417,5],[418,0,418,5],[419,0,419,5],[420,0,420,5],[421,0,421,5],[422,0,422,5],[411,0,411,5],[412,0,412,5],[413,0,413,5],[414,0,414,5],[415,0,415,5],[416,0,416,5],[405,0,405,5],[406,0,406,5],[407,0,407,5],[408,0,408,5],[409,0,409,5],[410,0,410,5],[397,0,397,5],[398,0,398,5],[399,0,399,5],[400,0,400,7],[402,0,402,8],[404,0,404,5],[390,0,390,8],[392,0,392,5],[393,0,393,5],[394,0,394,5],[395,0,395,5],[396,0,396,5],[381,0,381,5],[382,0,382,5],[383,0,383,7],[385,0,385,8],[387,0,387,5],[388,0,388,7],[372,0,372,8],[374,0,374,5],[375,0,375,5],[376,0,376,5],[377,0,377,7],[379,0,379,8],[365,0,365,5],[366,0,366,5],[367,0,367,5],[368,0,368,5],[369,0,369,5],[370,0,370,7],[357,0,357,5],[358,0,358,5],[359,0,359,5],[360,0,360,7],[362,0,362,8],[364,0,364,5],[351,0,351,5],[352,0,352,5],[353,0,353,5],[354,0,354,5],[355,0,355,5],[356,0,356,5],[345,0,345,5],[346,0,346,5],[347,0,347,5],[348,0,348,5],[349,0,349,5],[350,0,350,5],[337,0,337,5],[338,0,338,5],[339,0,339,7],[341,0,341,8],[343,0,343,5],[344,0,344,5],[331,0,331,5],[332,0,332,5],[333,0,333,5],[334,0,334,5],[335,0,335,5],[336,0,336,5],[312,0,312,5],[313,0,313,7],[326,0,326,8],[328,0,328,8],[329,0,329,5],[330,0,330,5],[306,0,306,5],[307,0,307,5],[308,0,308,5],[309,0,309,5],[310,0,310,5],[311,0,311,5],[300,0,300,5],[301,0,301,5],[302,0,302,5],[303,0,303,5],[304,0,304,5],[305,0,305,5],[294,0,294,5],[295,0,295,5],[296,0,296,5],[297,0,297,5],[298,0,298,5],[299,0,299,5],[288,0,288,5],[289,0,289,5],[290,0,290,5],[291,0,291,5],[292,0,292,5],[293,0,293,5],[282,0,282,5],[283,0,283,5],[284,0,284,5],[285,0,285,5],[286,0,286,5],[287,0,287,5],[276,0,276,5],[277,0,277,5],[278,0,278,5],[279,0,279,5],[280,0,280,5],[281,0,281,5],[270,0,270,5],[271,0,271,5],[272,0,272,5],[273,0,273,5],[274,0,274,5],[275,0,275,5],[264,0,264,5],[265,0,265,5],[266,0,266,5],[267,0,267,5],[268,0,268,5],[269,0,269,5],[258,0,258,5],[259,0,259,5],[260,0,260,5],[261,0,261,5],[262,0,262,5],[263,0,263,5],[249,0,249,5],[250,0,250,7],[252,0,252,8],[254,0,254,8],[256,0,256,5],[257,0,257,5],[243,0,243,5],[244,0,244,5],[245,0,245,5],[246,0,246,5],[247,0,247,5],[248,0,248,5],[237,0,237,5],[238,0,238,5],[239,0,239,5],[240,0,240,5],[241,0,241,5],[242,0,242,5],[231,0,231,5],[232,0,232,5],[233,0,233,5],[234,0,234,5],[235,0,235,5],[236,0,236,5],[225,0,225,5],[226,0,226,5],[227,0,227,5],[228,0,228,5],[229,0,229,5],[230,0,230,5],[219,0,219,5],[220,0,220,5],[221,0,221,5],[222,0,222,5],[223,0,223,5],[224,0,224,5],[213,0,213,5],[214,0,214,5],[215,0,215,5],[216,0,216,5],[217,0,217,5],[218,0,218,5],[207,0,207,5],[208,0,208,5],[209,0,209,5],[210,0,210,5],[211,0,211,5],[212,0,212,5],[199,0,199,5],[200,0,200,7],[202,0,202,8],[204,0,204,5],[205,0,205,5],[206,0,206,5],[193,0,193,5],[194,0,194,5],[195,0,195,5],[196,0,196,5],[197,0,197,5],[198,0,198,5],[187,0,187,5],[188,0,188,5],[189,0,189,5],[190,0,190,5],[191,0,191,5],[192,0,192,5],[181,0,181,5],[182,0,182,5],[183,0,183,5],[184,0,184,5],[185,0,185,5],[186,0,186,5],[173,0,173,7],[175,0,175,8],[177,0,177,5],[178,0,178,5],[179,0,179,5],[180,0,180,5],[167,0,167,5],[168,0,168,5],[169,0,169,5],[170,0,170,5],[171,0,171,5],[172,0,172,5],[161,0,161,5],[162,0,162,5],[163,0,163,5],[164,0,164,5],[165,0,165,5],[166,0,166,5],[155,0,155,5],[156,0,156,5],[157,0,157,5],[158,0,158,5],[159,0,159,5],[160,0,160,5],[149,0,149,5],[150,0,150,5],[151,0,151,5],[152,0,152,5],[153,0,153,5],[154,0,154,5],[141,0,141,7],[143,0,143,8],[145,0,145,5],[146,0,146,5],[147,0,147,5],[148,0,148,5],[135,0,135,5],[136,0,136,5],[137,0,137,5],[138,0,138,5],[139,0,139,5],[140,0,140,5],[129,0,129,5],[130,0,130,5],[131,0,131,5],[132,0,132,5],[133,0,133,5],[134,0,134,5],[123,0,123,5],[124,0,124,5],[125,0,125,5],[126,0,126,5],[127,0,127,5],[128,0,128,5],[117,0,117,5],[118,0,118,5],[119,0,119,5],[120,0,120,5],[121,0,121,5],[122,0,122,5],[109,0,109,5],[110,0,110,5],[111,0,111,5],[112,0,112,5],[113,0,113,7],[115,0,115,8],[103,0,103,5],[104,0,104,5],[105,0,105,5],[106,0,106,5],[107,0,107,5],[108,0,108,5],[96,0,96,8],[98,0,98,5],[99,0,99,5],[100,0,100,5],[101,0,101,5],[102,0,102,5],[80,8,82,8],[83,0,83,7],[84,0,84,7],[91,0,91,7],[92,0,92,7],[94,0,94,8],[73,0,73,7],[74,0,74,7],[75,0,77,6],[78,0,78,7],[79,0,79,7],[80,0,82,7],[65,0,65,7],[66,0,66,7],[67,0,67,7],[69,0,69,8],[71,0,71,8],[72,0,72,8],[59,3,59,6],[60,3,60,6],[61,0,61,7],[62,0,62,7],[63,0,63,7],[64,0,64,7],[51,0,51,8],[52,0,52,7],[53,0,54,2],[53,3,53,6],[54,3,54,6],[55,0,60,2],[55,3,55,6],[56,3,56,6],[57,3,57,6],[58,3,58,6],[40,0,40,6],[43,0,43,7],[45,0,45,8],[47,0,47,8],[48,0,48,8],[49,0,49,7],[32,0,32,6],[33,0,33,6],[34,0,34,6],[37,0,37,8],[38,0,38,6],[39,0,39,6],[23,0,23,2],[24,0,24,8],[26,0,26,6],[27,0,27,6],[28,0,28,6],[31,0,31,8],[16,0,22,2],[16,3,16,6],[17,3,17,6],[18,3,18,6],[19,3,19,6],[20,3,20,6],[21,3,21,6],[22,3,22,6],[12,0,12,7],[13,0,13,7],[14,0,15,2],[14,3,14,6],[15,3,15,6],[3,0,3,1],[3,2,3,8],[4,0,4,1],[4,2,4,8],[7,0,7,8],[9,0,9,8],[0,0,0,1],[0,2,0,5],[0,6,0,8],[1,0,1,1],[1,2,1,8],[2,0,2,1],[2,2,2,8],[10,0,10,8],[11,0,11,7]]}
["Processo n.º:"]
["Requerente:"]
["Local:"]
["Tipo de Obra:"]
["Aprovação projecto:"]
[]
[]
["Taxa pela realização, reforço ou manutenção de infra-estruturas:\n(Artigo 32.ºdo Regulamento Municipal)"]
[]
["O valor da taxa pela realização, reforço ou manutenção de infra-estruturas (TMI), a que se refere o artigo 31º n.º1  do regulamento municipal , é calculado segundo a seguinte expressão:"]
["TMI = Ab x V x I x Fm"]
["Ab (m²) - Área total de construção prevista ou a servir na operação urbanística"]
["V  - 80% do preço/m² construção, para cálculo da renda condicionada fixado para a zona (actualizado anualmente por portaria governamental)",null,null,null,null,null,null,null,507.53]
["I - Coeficiente das infra-estruturação disponível ou a disponibilizar no local da operação urbanística:"]
["Arruamento Público\n(colocar x)",null,null,"Pavimentado",null,null,null,0.3]
[null,null,null,"Não Pavimentado",null,null,null,0.2]
["Infra-estruturas gerais de\n(colocar x)",null,null,"Abastecimento de Aguas",null,null,null,0.15]
[null,null,null,"Drenagem de Aguas Residuais",null,null,null,0.2]
[null,null,null,"Drenadem de Aguas Pluviais",null,null,null,0.1]
[null,null,null,"Distribuição de Gás  ",null,null,null,0.05]
[null,null,null,"Distribuição de Energia Eléctrica",null,null,null,0.05]
[null,null,null,"Telecomunicações",null,null,null,0.05]
[null,null,null,"Iluminação Pública",null,null,null,0.1]
[null,null,null,null,null,null,null,null,{"$f":"IF($I$12=0,\" \",SUMIF(I15:I23,\"X\",H15:H23))","v":" "}]
["Fm  =W*Y*Z:"]
["W (varia em função da localização da operação urbanistica)  (colocar x)"]
["A operação urbanistica se localiza dentro de perimetro urbano",null,null,null,null,null,null,0.7]
["A operação urbanistica se inclui fora do perimetro urbano",null,null,null,null,null,null,1]
["Industrial",null,null,null,null,null,null,0.5]
[null,null,null,null,null,null,null,null,{"$f":"IF($I$12=0,\" \",SUMIF(I27:I29,\"X\",H27:H29))","v":" "}]
[]
["Y (varia conforme os usos previstos na operação urbanística) (colocar x)"]
["Habitação em moradia unifamiliar e habitação colectiva quando  a.t. hab. > 80% a.b. ",null,null,null,null,null,null,1]
["Habitação e comércio e ou serviços quando a.t. hab. ≤ 80% a.b.",null,null,null,null,null,null,1.2]
["Comércio, serviços, industria, ou armazéns",null,null,null,null,null,null,1.3]
[null,null,null,null,null,null,null,null,{"$f":"IF($I$12=0,\" \",SUMIF(I33:I35,\"X\",H33:H35))","v":" "}]
[]
[" Z (indexado à dotação do plano plurianual de investimento do Município para execução, manutenção e reforço de infra-estruturas) (colocar x)"]
["a) Montante inferior a 10 milhões de euros",null,null,null,null,null,null,8.0000000000000002E-3]
["b) Montante compreendido entre 10M€ e 30M€",null,null,null,null,null,null,0.01]
["c) Montante suprior a 30M€",null,null,null,null,null,null,1.2E-2]
[null,null,null,null,null,null,null,null,{"$f":"IF($I$13=0,\" \",IF(I39=\"X\",H39,IF(I40=\"X\",H40,IF(I41=\"x\",H41,\"\"))))","v":""}]
[]
["O valor da TMI a cobrar é de",null,null,null,null,null,null,null,{"$f":"IF($I$12=0,\" \",$I$12*$I$13*$I$24*$I$30*$I$36*$I$42)","v":" "}]
[]
["Compensação - C1:\n(n.º2 do Artigo 36.º do Regulamento Municipal)"]
[]
["O valor da compensação devida ao município quando não se justifique a cedência, no todo ou em parte, de áreas destinadas a espaços verdes e de utilização colectiva ou à instalação de equipamentos públicos no local, a que se refere o n.º1 do artigo 35.º do regulamento é calculado segundo a seguinte expressão:"]
[]
["Af (m²) - Área de cedência em falta"]
[]
["Fp - Factor de ponderação do valor relativo do terreno, função do índice de infra-estruturação disponível no localda realização da operação urbanística, compreendido entre 0,15 e 0,20:"]
["Índice de infra-estruturação disponível no local da operação urbanística",null,null,null,null,null,null,null," (colocar x)"]
["Arruamento Público",null,null,"Pavimentado em calçada, betuminoso ou equivalente",null,null,null,9.4999999999999998E-3]
[null,null,null,"Com passeio do lado da parcela",null,null,null,3.5000000000000001E-3]
["As Infra-estrururas gerais de:",null,null,"Abastecimento de Aguas",null,null,null,7.0000000000000001E-3]
[null,null,null,"Drenagem de Aguas Residuais",null,null,null,8.9999999999999993E-3]
[null,null,null,"Drenadem de Aguas Pluviais",null,null,null,3.0000000000000001E-3]
[null,null,null,"Distribuição de Gás  ",null,null,null,6.0000000000000001E-3]
[null,null,null,"Distribuição de Energia Eléctrica",null,null,null,6.0000000000000001E-3]
[null,null,null,"Telecomunicações",null,null,null,6.0000000000000001E-3]
["Total de i",null,null,null,null,null,null,null,{"$f":"IF($I$50=0,\" \",SUMIF(I54:I61,\"X\",H54:H61))","v":" "}]
["Fp = 0,15 + ∑ i",null,null,null,null,null,null,null,{"$f":"IF($I$62=\" \",\" \",0.15+$I$62)","v":" "}]
["Ac (m²) - Área total de construção máxima admíssivel no local da operação urbanística"]
["V  - 80% do preço/m² construção, para cálculo da renda condicionada fixado para a zona (actualizado anualmente por portaria governamental)",null,null,null,null,null,null,null,{"$f":"I13","v":507.53}]
["St (m²) - Superfície total do prédio objecto da operação urbanística"]
["Valor do terreno obtido por m² ",null,null,null,null,null,null,null,{"$f":"IF($I$50=0,\" \",(I63*I64*I65)/I66)","v":" "}]
["O valor da compensação C1 a cobrar é de",null,null,null,null,null,null,null,{"$f":"IF(I50=0,\"\",I50*I67)","v":""}]
[]
["Compensação - C2:\n(n.º3 do Artigo 36.º do Regulamento Municipal)"]
[]
["O valor da compensação devida ao município quando a operação urbanística preveja edificações que criem servidões e acessibilidades directas para arruamentos existentes devidamente pavimentados e infra-estruturados a que se refere o n.º3 do artigo 36.º do regulamento é calculado segundo a seguinte expressão:"]
["C2 = V * (F1 + F2) "]
["V  - 80% do preço/m² construção, para cálculo da renda condicionada fixado para a zona (actualizado anualmente por portaria governamental)",null,null,null,null,null,null,null,{"$f":"I13","v":507.53}]
["F1 = 0,035 * A"]
["A  -  É a superfície  determinada  pelo  comprimento(L)  das  linhas  de  confrontação  do(s) arruamento(s) existente(s) com os lotes, multiplicado pelas suas distâncias(D) ao eixo do(s) dito(s) arruamento(s).      A=L*D",null,null,null,null,null,null,"Valor de L"]
[null,null,null,null,null,null,null,"Valor de D"]
[null,null,null,null,null,null,null,null,{"$f":"IFERROR(I76*I77,\" - \")","v":0}]
["F1 obtido",null,null,null,null,null,null,null,{"$f":"IFERROR(0.035*$I$78,\" - \")","v":0}]
["F2 = 0,062 * (L/2) * (R1 + R2 + R3)"]
["L  -  É o comprimento das  linhas  de  confrontação  do(s)  arruamento(s) devidamente infra-estruturado(s), no todo ou em parte,  com os lotes  cujas  edificações  criem acessibilidades directas para o(s) dito(s) arruamento(s).",null,null,null,null,null,null,null,{"$f":"IF(I76=\"\",\"\",I76)","v":""}]
[]
[]
["Determinação de R1, R2 e R3:"]
["No(s) arruamento(s) acima referido(s):",null,null,null,null,null,null,null," (colocar x)"]
["Existe rede pública de abastecimento de água",null,null,null,null,null,"R1 =",1]
["Não existe rede pública de abastecimento de água",null,null,null,null,null,"R1 =",0]
["Existe rede pública de drenagem de águas residuais",null,null,null,null,null,"R2 =",1.4]
["Não existe rede pública de drenagem de águas residuais",null,null,null,null,null,"R2 =",0]
["Existe rede pública de drenagem de águas pluviais",null,null,null,null,null,"R3 =",1.8]
["Não existe rede pública de drenagem de águas pluviais",null,null,null,null,null,"R3 =",0]
["F2 obtido",null,null,null,null,null,null,null,{"$f":"IFERROR(0.062*($I$76/2)*SUMIF($I$86:$I$91,\"x\",$H$86:$H$91),\" - \")","v":0}]
["O valor da compensação C2 a cobrar é de",null,null,null,null,null,null,null,{"$f":"IFERROR($I$74*($I$79+$I$92),\" - \")","v":0}]
[]
["Taxa pela concessão de licenças ou autorizações\nANEXO 5   CAPITULO IX    (Urbanismo)",null,null,null,null,null,null,null,null,null,null,null,null,null,null,null,null,null,null,null,null,null,null,null,null,null,2018,2019,2020,null,"ATUAL",null,"VERIFICA"]
[null,null,null,null,null,null,null,null,null,null,null,null,null,null,null,null,null,null,null,null,null,null,null,null,null,null,null,1.0999999999999999E-2,4.0000000000000001E-3]
["SECÇÃO I\nOPERAÇÃO DE  LOTEAMENTO\n",null,null,null,null,null,null,null,null,null,null,null,null,null,null,null,null,null,null,null,null,null,null,null,null,null,null,{"$f":"1+AB96","v":1.0109999999999999},{"$f":"1+AC96","v":1.004}]
[]
["1 - Apreciação de pedido de informação prévia",null,null,null,null,null,{"$f":"AE99","v":66.55},null,{"$f":"IF($H$99=0,\" \",$G$99*$H$99)","v":" "},null,null,null,null,null,null,null,null,null,null,null,null,null,null,null,null,null,65.56,66.28,{"$f":"IFERROR(IF(AB99>0,ROUND(AB99*$AC$97,2),\" \"),\"\")","v":66.55},null,{"$f":"IFERROR(ROUND(AC99,2),\"\")","v":66.55},null,{"$f":"IF(AC99<>\" \",IF(AC99=AE99,\"\",\"XXXX\"),\"\")","v":""}]
["2 - Emissão de Alvará de Licença ou admissão de comunicação prévia:",null,null,null,null,null,null,null,null,null,null,null,null,null,null,null,null,null,null,null,null,null,null,null,null,null,null,"",{"$f":"IFERROR(IF(AB100>0,ROUND(AB100*$AC$97,2),\" \"),\"\")","v":""},null,{"$f":"IFERROR(ROUND(AC100,2),\"\")","v":""},null,{"$f":"IF(AC100<>\" \",IF(AC100=AE100,\"\",\"XXXX\"),\"\")","v":""}]
["a) Por cada título",null,null,null,null,null,{"$f":"AE101","v":66.540000000000006},null,{"$f":"IF($H$101=0,\" \",$G$101*$H$101)","v":" "},null,null,null,null,null,null,null,null,null,null,null,null,null,null,null,null,null,65.56,66.27,66.540000000000006,null,66.540000000000006,null,""]
["b) Por cada lote, acresce ao previsto na alínea anterior ",null,null,null,null,null,{"$f":"AE102","v":36.58},null,{"$f":"IF($H$102=0,\" \",$G$102*$H$102)","v":" "},null,null,null,null,null,null,null,null,null,null,null,null,null,null,null,null,null,36.03,36.43,36.58,null,36.58,null,""]
["c) Por cada m² de área total de construção prevista, acresce às alíneas anteriores",null,null,null,null,null,1.82,null,{"$f":"IF($H$103=0,\" \",$G$103*$H$103)","v":" "},null,null,null,null,null,null,null,null,null,null,null,null,null,null,null,null,null,1.79,1.81,1.82,null,1.82,null,""]
["3 - Aditamento ao título na sequência da alteração dos termos e condições da licença ou comunicação prévia",null,null,null,null,null,"",null,null,null,null,null,null,null,null,null,null,null,null,null,null,null,null,null,null,null,null,"","",null,"",null,""]
["a) Por cada título",null,null,null,null,null,66.55,null,{"$f":"IF($H$105=0,\" \",$G$105*$H$105)","v":" "},null,null,null,null,null,null,null,null,null,null,null,null,null,null,null,null,null,65.56,66.28,66.55,null,66.55,null,""]
["b) Pela variação do número de lotes e/ou de metros quadrados da area total de construção– aplicam-se ainda as taxas previstas nas alíneas b) e c) do número anterior sobre o aumento licenciado, excepto nos casos previstos no número seguinte",null,null,null,null,null,"",null,null,null,null,null,null,null,null,null,null,null,null,null,null,null,null,null,null,null,null,"","",null,"",null,""]
["c) Aditamento simplificado ao título ( variação das áreas de implantação ou de construção até 3%)",null,null,null,null,null,26.59,null,{"$f":"IF($H$107=0,\" \",$G$107*$H$107)","v":" "},null,null,null,null,null,null,null,null,null,null,null,null,null,null,null,null,null,26.19,26.48,26.59,null,26.59,null,""]
["4 - Averbamento por substituição do requerente ou comunicante, do responsável por qualquer dos projectos apresentados ou técnico, - por cada",null,null,null,null,null,14.1,null,{"$f":"IF($H$108=0,\" \",$G$108*$H$108)","v":" "},null,null,null,null,null,null,null,null,null,null,null,null,null,null,null,null,null,13.89,14.04,14.1,null,14.1,null,""]
["5. Publicitação do título: custo da publicitação",null,null,null,null,null,204.21,null,{"$f":"IF($H$109=0,\" \",$G$109*$H$109)","v":" "},null,null,null,null,null,null,null,null,null,null,null,null,null,null,null,null,null,201.18,203.4,204.21,null,204.21,null,""]
["6. Renovação: ",null,null,null,null,null,"",null,null,null,null,null,null,null,null,null,null,null,null,null,null,null,null,null,null,null,null,"","",null,"",null,""]
["a) Do pedido de informação prévia",null,null,null,null,null,31.58,null,{"$f":"IF($H$111=0,\" \",$G$111*$H$111)","v":" "},null,null,null,null,null,null,null,null,null,null,null,null,null,null,null,null,null,31.12,31.45,31.58,null,31.58,null,""]
["b) Do alvará de licença ",null,null,null,null,null,31.58,null,{"$f":"IF($H$112=0,\" \",$G$112*$H$112)","v":" "},null,null,null,null,null,null,null,null,null,null,null,null,null,null,null,null,null,31.12,31.45,31.58,null,31.58,null,""]
["c) Da admissão de comunicação prévia",null,null,null,null,null,{"$f":"AE113","v":31.58},null,{"$f":"IF($H$113=0,\" \",$G$113*$H$113)","v":" "},null,null,null,null,null,null,null,null,null,null,null,null,null,null,null,null,null,31.12,31.45,31.58,null,31.58,null,""]
["TOTAL:",null,null,null,null,null,null,null,{"$f":"SUM(I99:I113)","v":0},null,null,null,null,null,null,null,null,null,null,null,null,null,null,null,null,null,null,"","",null,"",null,""]
[null,null,null,null,null,null,null,null,null,null,null,null,null,null,null,null,null,null,null,null,null,null,null,null,null,null,null,"","",null,"",null,""]
["SECÇÃO II\nOBRAS DE URBANIZAÇÃO\n",null,null,null,null,null,null,null,null,null,null,null,null,null,null,null,null,null,null,null,null,null,null,null,null,null,null,"","",null,"",null,""]
[null,null,null,null,null,null,null,null,null,null,null,null,null,null,null,null,null,null,null,null,null,null,null,null,null,null,null,"","",null,"",null,""]
["1 - Apreciação de pedido de informação prévia",null,null,null,null,null,{"$f":"AE118","v":66.55},null,{"$f":"IF($H$118=0,\" \",$G$118*$H$118)","v":" "},null,null,null,null,null,null,null,null,null,null,null,null,null,null,null,null,null,65.56,66.28,66.55,null,66.55,null,""]
["2 - Emissão de alvará de licença ou admissão de comunicação prévia:",null,null,null,null,null,null,null,null,null,null,null,null,null,null,null,null,null,null,null,null,null,null,null,null,null,null,"","",null,"",null,""]
["a) Por cada título",null,null,null,null,null,{"$f":"AE120","v":66.55},null,{"$f":"IF($H$120=0,\" \",$G$120*$H$120)","v":" "},null,null,null,null,null,null,null,null,null,null,null,null,null,null,null,null,null,65.56,66.28,66.55,null,66.55,null,""]
["b) Em função do prazo: acresce ao montante previsto na alínea anterior, por cada período de 30 dias",null,null,null,null,null,{"$f":"AE121","v":31.58},null,{"$f":"IF(H121=0,\" \",G121*CEILING(H121/30,1))","v":" "},null,null,null,null,null,null,null,null,null,null,null,null,null,null,null,null,null,31.12,31.45,31.58,null,31.58,null,""]
["c) Em função do valor orçamentado: acresce ainda ao montante previsto nas alíneas anteriores 1% do valor orçamentado das obras a efectuar",null,null,null,null,null,0.01,null,{"$f":"IF(H122=0,\" \",G122*H122)","v":" "},null,null,null,null,null,null,null,null,null,null,null,null,null,null,null,null,null,null,"","",null,"",null,""]
["3 - Aditamento ao título na sequência de alteração dos termos e condições da licença ou comunicação prévia",null,null,null,null,null,null,null,null,null,null,null,null,null,null,null,null,null,null,null,null,null,null,null,null,null,null,"","",null,"",null,""]
["a) Por cada título",null,null,null,null,null,{"$f":"AE124","v":66.55},null,{"$f":"IF($H$124=0,\" \",$G$124*$H$124)","v":" "},null,null,null,null,null,null,null,null,null,null,null,null,null,null,null,null,null,65.56,66.28,66.55,null,66.55,null,""]
["b) Em função do prazo adicional: acresce ao montante previsto na alínea anterior, por cada período de 30 dias",null,null,null,null,null,{"$f":"AE125","v":31.58},null,{"$f":"IF(H125=0,\" \",G125*CEILING(H125/30,1))","v":" "},null,null,null,null,null,null,null,null,null,null,null,null,null,null,null,null,null,31.12,31.45,31.58,null,31.58,null,""]
["c) Em função das alterações aprovadas:acresce ainda ao montante previsto nas alíneas anteriores 1% do valor da diferença orçamentada",null,null,null,null,null,0.01,null,{"$f":"IF(H126=0,\" \",G126*H126)","v":" "},null,null,null,null,null,null,null,null,null,null,null,null,null,null,null,null,null,null,"","",null,"",null,""]
["4 - Averbamento por substituição do requerente ou comunicante, do responsável por qualquer dos projectos apresentados ou do director técnico da obra, posteriores à emissão do alvará ou à admissão de comunicação prévia – por cada",null,null,null,null,null,{"$f":"AE127","v":14.1},null,{"$f":"IF($H$127=0,\" \",$G$127*$H$127)","v":" "},null,null,null,null,null,null,null,null,null,null,null,null,null,null,null,null,null,13.89,14.04,14.1,null,14.1,null,""]
["5 - Prorrogação do prazo de execução das obras",null,null,null,null,null,null,null,null,null,null,null,null,null,null,null,null,null,null,null,null,null,null,null,null,null,null,"","",null,"",null,""]
["a) Por cada período de 30 dias ",null,null,null,null,null,{"$f":"AE129","v":31.58},null,{"$f":"IF(H129=0,\" \",G129*CEILING(H129/30,1))","v":" "},null,null,null,null,null,null,null,null,null,null,null,null,null,null,null,null,null,31.12,31.45,31.58,null,31.58,null,""]
["6 - Execução faseada de obras de Urbanização ",null,null,null,null,null,{"$f":"AE130","v":""},null,null,null,null,null,null,null,null,null,null,null,null,null,null,null,null,null,null,null,null,"","",null,"",null,""]
["a) Emissão do alvará do titulo correspondente à 1.ª fase",null,null,null,null,null,66.55,null,{"$f":"IF($H$131=0,\" \",$G$131*$H$131)","v":" "},null,null,null,null,null,null,null,null,null,null,null,null,null,null,null,null,null,65.56,66.28,66.55,null,66.55,null,""]
["b) Aditamento ao título referente às fases subsequentes",null,null,null,null,null,66.55,null,{"$f":"IF($H$132=0,\" \",$G$132*$H$132)","v":" "},null,null,null,null,null,null,null,null,null,null,null,null,null,null,null,null,null,65.56,66.28,66.55,null,66.55,null,""]
["7 - Licença especial ou admissão de comunicação prévia para conclusão de obras inacabadas",null,null,null,null,null,"",null,null,null,null,null,null,null,null,null,null,null,null,null,null,null,null,null,null,null,null,"","",null,"",null,""]
["a) Por cada título",null,null,null,null,null,66.55,null,{"$f":"IF($H$134=0,\" \",$G$134*$H$134)","v":" "},null,null,null,null,null,null,null,null,null,null,null,null,null,null,null,null,null,65.56,66.28,66.55,null,66.55,null,""]
["b) Em função do prazo adicional, acresce ao previsto na alínea anterior, por cada período de 30 dias",null,null,null,null,null,31.58,null,{"$f":"IF(H135=0,\" \",G135*CEILING(H135/30,1))","v":" "},null,null,null,null,null,null,null,null,null,null,null,null,null,null,null,null,null,31.12,31.45,31.58,null,31.58,null,""]
["c) Em função do valor orçamentado das obras a efectuar: acresce ainda ao montante previsto nas alíneas anteriores 1% do valor orçamentado das obras a efectuar",null,null,null,null,null,0.01,null,{"$f":"IF(H136=0,\" \",G136*H136)","v":" "},null,null,null,null,null,null,null,null,null,null,null,null,null,null,null,null,null,null,0," ",null,"",null,""]
["8. Publicitação do título: custo da publicação",null,null,null,null,null,{"$f":"AE137","v":204.21},null,{"$f":"IF($H$137=0,\" \",$G$137*$H$137)","v":" "},null,null,null,null,null,null,null,null,null,null,null,null,null,null,null,null,null,201.18,203.4,204.21,null,204.21,null,""]
["9. Renovação ",null,null,null,null,null,{"$f":"AE138","v":""},null,null,null,null,null,null,null,null,null,null,null,null,null,null,null,null,null,null,null,null,"","",null,"",null,""]
["a) Do pedido de informação prévia",null,null,null,null,null,66.55,null,{"$f":"IF($H$139=0,\" \",$G$139*$H$139)","v":" "},null,null,null,null,null,null,null,null,null,null,null,null,null,null,null,null,null,65.56,66.28,66.55,null,66.55,null,""]
["b) Do alvará de licença",null,null,null,null,null,66.55,null,{"$f":"IF($H$140=0,\" \",$G$140*$H$140)","v":" "},null,null,null,null,null,null,null,null,null,null,null,null,null,null,null,null,null,65.56,66.28,66.55,null,66.55,null,""]
["c) Da admissão de comunicação prévia",null,null,null,null,null,{"$f":"AE141","v":66.55},null,{"$f":"IF($H$141=0,\" \",$G$141*$H$141)","v":" "},null,null,null,null,null,null,null,null,null,null,null,null,null,null,null,null,null,65.56,66.28,66.55,null,66.55,null,""]
["TOTAL:",null,null,null,null,null,null,null,{"$f":"SUM(I118:I141)","v":0},null,null,null,null,null,null,null,null,null,null,null,null,null,null,null,null,null,null,"","",null,"",null,""]
[null,null,null,null,null,null,null,null,null,null,null,null,null,null,null,null,null,null,null,null,null,null,null,null,null,null,null,"","",null,"",null,""]
["SECÇÃO III\nLOTEAMENTOS COM OBRAS DE URBANIZAÇÃO",null,null,null,null,null,null,null,null,null,null,null,null,null,null,null,null,null,null,null,null,null,null,null,null,null,null,"","",null,"",null,""]
[null,null,null,null,null,null,null,null,null,null,null,null,null,null,null,null,null,null,null,null,null,null,null,null,null,null,null,"","",null,"",null,""]
["1 - Apreciação de pedido de informação prévia",null,null,null,null,null,{"$f":"AE146","v":66.55},null,{"$f":"IF($H$146=0,\" \",G146*H146)","v":" "},null,null,null,null,null,null,null,null,null,null,null,null,null,null,null,null,null,65.56,66.28,66.55,null,66.55,null,""]
["2 - Emissão de alvará de licença ou admissão de comunicação prévia",null,null,null,null,null,{"$f":"AE147","v":""},null,null,null,null,null,null,null,null,null,null,null,null,null,null,null,null,null,null,null,null,"","",null,"",null,""]
["a) Por cada titulo",null,null,null,null,null,{"$f":"AE148","v":66.55},null,{"$f":"IF(H148=0,\" \",G148*H148)","v":" "},null,null,null,null,null,null,null,null,null,null,null,null,null,null,null,null,null,65.56,66.28,66.55,null,66.55,null,""]
["b) Por cada lote, acresce ao montante previsto na alínea anterior",null,null,null,null,null,36.58,null,{"$f":"IF(H149=0,\" \",G149*H149)","v":" "},null,null,null,null,null,null,null,null,null,null,null,null,null,null,null,null,null,36.03,36.43,36.58,null,36.58,null,""]
["c) Por m² de area total de construção prevista, acresce ao montante previsto nas alíneas anteriores",null,null,null,null,null,1.82,null," ",null,null,null,null,null,null,null,null,null,null,null,null,null,null,null,null,null,1.79,1.81,1.82,null,1.82,null,""]
["d) Em função de prazo: acresce ao previsto nas alíneas anteriores, por cada 30 dias",null,null,null,null,null,31.58,null,{"$f":"IF(H151=0,\" \",G151*CEILING(H151/30,1))","v":" "},null,null,null,null,null,null,null,null,null,null,null,null,null,null,null,null,null,31.12,31.45,31.58,null,31.58,null,{"$f":"IF(AC151<>\" \",IF(AC151=AE151,\"\",\"XXXX\"),\"\")","v":""}]
["e) Em função do valor orçamentado:acresce ainda ao montante previsto nas alíneas anteriores 1% do valor orçamentado para as obras a efectuar",null,null,null,null,null,0.01,null," ",null,null,null,null,null,null,null,null,null,null,null,null,null,null,null,null,null,null,"","",null,"",null,""]
["3 - Aditamento ao título na sequência de alteração dos termos e condições da licença ou da comunicação prévia",null,null,null,null,null,null,null,null,null,null,null,null,null,null,null,null,null,null,null,null,null,null,null,null,null,null,"","",null,"",null,""]
["a) Por cada titulo",null,null,null,null,null,{"$f":"AE154","v":66.55},null,{"$f":"IF(H154=0,\" \",G154*H154)","v":" "},null,null,null,null,null,null,null,null,null,null,null,null,null,null,null,null,null,65.56,66.28,66.55,null,66.55,null,""]
["b) em função do prazo adicional: acresce ao montante previsto na alínea anterior, por cada período de 30 dias",null,null,null,null,null,{"$f":"AE155","v":31.59},null,{"$f":"IF(H155=0,\" \",G155*CEILING(H155/30,1))","v":" "},null,null,null,null,null,null,null,null,null,null,null,null,null,null,null,null,null,31.12,31.46,31.59,null,31.59,null,""]
["c) Por cada novo lote de aumento licenciado",null,null,null,null,null,36.58,null," ",null,null,null,null,null,null,null,null,null,null,null,null,null,null,null,null,null,36.03,36.43,36.58,null,36.58,null,""]
["c1) Por m² de área total do aumento licenciado",null,null,null,null,null,1.82,null," ",null,null,null,null,null,null,null,null,null,null,null,null,null,null,null,null,null,1.79,1.81,1.82,null,1.82,null,""]
["d) Em função das alterações aprovadas: acresce ao montante previsto nas alíneas anteriores 1% da diferença orçamentada",null,null,null,null,null,0.01,null," ",null,null,null,null,null,null,null,null,null,null,null,null,null,null,null,null,null,null,"","",null,"",null,""]
["4 - Averbamento por substituição do requerente ou comunicante, do responsável por qualquer dos projectos apresentados ou do director técnico da obra, – por cada ",null,null,null,null,null,{"$f":"AE159","v":14.1},null," ",null,null,null,null,null,null,null,null,null,null,null,null,null,null,null,null,null,13.89,14.04,14.1,null,14.1,null,""]
["5 - Prorrogação do prazo de execução das obras:",null,null,null,null,null,{"$f":"AE160","v":""},null,null,null,null,null,null,null,null,null,null,null,null,null,null,null,null,null,null,null,null,"","",null,"",null,""]
["a) Prorrogação por cada período de 30 dias ",null,null,null,null,null,31.58,null,{"$f":"IF(H161=0,\" \",G161*CEILING(H161/30,1))","v":" "},null,null,null,null,null,null,null,null,null,null,null,null,null,null,null,null,null,31.12,31.45,31.58,null,31.58,null,""]
["6 - Execução faseada de obras de urbanização: ",null,null,null,null,null,"",null,null,null,null,null,null,null,null,null,null,null,null,null,null,null,null,null,null,null,null,"","",null,"",null,""]
["a)Emissão do alvará do título correspondente á primeira fase:",null,null,null,null,null,66.55,null," ",null,null,null,null,null,null,null,null,null,null,null,null,null,null,null,null,null,65.56,66.28,66.55,null,66.55,null,""]
["b)Aditamento ao título referente ás fases subsequentes:",null,null,null,null,null,66.55,null," ",null,null,null,null,null,null,null,null,null,null,null,null,null,null,null,null,null,65.56,66.28,{"$f":"IFERROR(IF(AB164>0,ROUND(AB164*$AC$97,2),\" \"),\"\")","v":66.55},null,{"$f":"IFERROR(ROUND(AC164,2),\"\")","v":66.55},null,{"$f":"IF(AC164<>\" \",IF(AC164=AE164,\"\",\"XXXX\"),\"\")","v":""}]
["7 - Licença especial ou admissão de comunicação prévia para conclusão de obras inacabadas:",null,null,null,null,null,"",null,null,null,null,null,null,null,null,null,null,null,null,null,null,null,null,null,null,null,null,"","",null,"",null,""]
["a)Por cada título",null,null,null,null,null,66.55,null," ",null,null,null,null,null,null,null,null,null,null,null,null,null,null,null,null,null,65.56,66.28,66.55,null,66.55,null,{"$f":"IF(AC166<>\" \",IF(AC166=AE166,\"\",\"XXXX\"),\"\")","v":""}]
["b) Em função do prazo adicional, acresce ao montante previsto na alínea anterior, por cada período de 30 dias",null,null,null,null,null,31.59,null,{"$f":"IF(H167=0,\" \",G167*CEILING(H167/30,1))","v":" "},null,null,null,null,null,null,null,null,null,null,null,null,null,null,null,null,null,31.12,31.46,31.59,null,31.59,null,""]
["c) Em função do valor orçamentado: acresce ainda ao previsto nas alíneas anteriores 1% do valor orçamentado das obras a efectuar",null,null,null,null,null,0.01,null,{"$f":"IF($H$168=0,\" \",$H$168*0.01)","v":" "},null,null,null,null,null,null,null,null,null,null,null,null,null,null,null,null,null,null,0," ",null,"",null,""]
["8 - Publicitação do título: custo da publicitação.",null,null,null,null,null,{"$f":"AE169","v":204.2},null," ",null,null,null,null,null,null,null,null,null,null,null,null,null,null,null,null,null,201.18,203.39,204.2,null,204.2,null,""]
["9 - Renovação",null,null,null,null,null,{"$f":"AE170","v":""},null,null,null,null,null,null,null,null,null,null,null,null,null,null,null,null,null,null,null,null,"","",null,"",null,""]
["a)Do pedido de informação prévia:",null,null,null,null,null,66.55,null," ",null,null,null,null,null,null,null,null,null,null,null,null,null,null,null,null,null,65.56,66.28,66.55,null,66.55,null,""]
["b)Do alvará de licença:",null,null,null,null,null,66.55,null," ",null,null,null,null,null,null,null,null,null,null,null,null,null,null,null,null,null,65.56,66.28,66.55,null,66.55,null,""]
["c)Da admissão de comunicação prévia:",null,null,null,null,null,{"$f":"AE173","v":66.55},null," ",null,null,null,null,null,null,null,null,null,null,null,null,null,null,null,null,null,65.56,66.28,66.55,null,66.55,null,""]
["TOTAL:",null,null,null,null,null,null,null,{"$f":"SUM(I146:I173)","v":0},null,null,null,null,null,null,null,null,null,null,null,null,null,null,null,null,null,null,"","",null,"",null,""]
[null,null,null,null,null,null,null,null,null,null,null,null,null,null,null,null,null,null,null,null,null,null,null,null,null,null,null,"","",null,"",null,""]
["SECÇÂO IV\nTRABALHOS DE REMODELAÇÃO DE TERRENOS",null,null,null,null,null,null,null,null,null,null,null,null,null,null,null,null,null,null,null,null,null,null,null,null,null,null,"","",null,"",null,{"$f":"IF(AC176<>\" \",IF(AC176=AE176,\"\",\"XXXX\"),\"\")","v":""}]
[null,null,null,null,null,null,null,null,null,null,null,null,null,null,null,null,null,null,null,null,null,null,null,null,null,null,null,"","",null,"",null,{"$f":"IF(AC177<>\" \",IF(AC177=AE177,\"\",\"XXXX\"),\"\")","v":""}]
["1 - Apreciação de pedido de informação prévia",null,null,null,null,null,{"$f":"AE178","v":66.55},null,{"$f":"IF(H178=0,\" \",G178*H178)","v":" "},null,null,null,null,null,null,null,null,null,null,null,null,null,null,null,null,null,65.56,66.28,66.55,null,66.55,null,""]
["2 - Emissão do alvará de licença ou admisssão de comunicação prévia:    ",null,null,null,null,null,{"$f":"AE179","v":""},null,null,null,null,null,null,null,null,null,null,null,null,null,null,null,null,null,null,null,null,"","",null,"",null,""]
["a) por cada título",null,null,null,null,null,{"$f":"AE180","v":66.55},null,{"$f":"IF(H180=0,\" \",G180*H180)","v":" "},null,null,null,null,null,null,null,null,null,null,null,null,null,null,null,null,null,65.56,66.28,66.55,null,66.55,null,""]
["b) Por m² da área intervencionada a acrescer ao montante previsto na alínea anterior",null,null,null,null,null,0.03,null," ",null,null,null,null,null,null,null,null,null,null,null,null,null,null,null,null,null,0.03,0.03,0.03,null,0.03,null,""]
["c) Por m³ de terras movimentar, a acrescer ao montante previsto nas alíneas anteriores",null,null,null,null,null,0.11,null," ",null,null,null,null,null,null,null,null,null,null,null,null,null,null,null,null,null,0.11,0.11,0.11,null,0.11,null,""]
["d) Em função do prazo: acresce às alíneas anteriores por cada periodo de 30 dias",null,null,null,null,null,6.32,null,{"$f":"IF(H183=0,\" \",G183*CEILING(H183/30,1))","v":" "},null,null,null,null,null,null,null,null,null,null,null,null,null,null,null,null,null,6.22,6.29,6.32,null,6.32,null,""]
["3 - Aditamento ao título na sequência de alteração dos termos e condições da licença ou comunicação prévia",null,null,null,null,null,"",null,null,null,null,null,null,null,null,null,null,null,null,null,null,null,null,null,null,null,null,"","",null,"",null,{"$f":"IF(AC184<>\" \",IF(AC184=AE184,\"\",\"XXXX\"),\"\")","v":""}]
["a) por cada título ",null,null,null,null,null,66.55,null," ",null,null,null,null,null,null,null,null,null,null,null,null,null,null,null,null,null,65.56,66.28,66.55,null,66.55,null,{"$f":"IF(AC185<>\" \",IF(AC185=AE185,\"\",\"XXXX\"),\"\")","v":""}]
["b1) Por m² da área de alteração efectuada",null,null,null,null,null,{"$f":"AE186","v":""},null," ",null,null,null,null,null,null,null,null,null,null,null,null,null,null,null,null,null,null,"","",null,"",null,""]
["b2) Por m³ do volume de alteração efectuada",null,null,null,null,null,0.11,null," ",null,null,null,null,null,null,null,null,null,null,null,null,null,null,null,null,null,0.11,0.11,0.11,null,0.11,null,""]
["b3) Em função do prazo pelo período de 30 dias",null,null,null,null,null,6.32,null,{"$f":"IF(H188=0,\" \",G188*CEILING(H188/30,1))","v":" "},null,null,null,null,null,null,null,null,null,null,null,null,null,null,null,null,null,6.22,6.29,6.32,null,6.32,null,""]
["4 - Averbamento por substituição do requerente ou comunicante, do responsável por qualquer dos projectos apresentados ou do director técnico da obra - por cada",null,null,null,null,null,14.1,null," ",null,null,null,null,null,null,null,null,null,null,null,null,null,null,null,null,null,13.89,14.04,14.1,null,14.1,null,""]
["5 - Prorrogação do prazo de execução dos trabalhos: ",null,null,null,null,null,"",null,null,null,null,null,null,null,null,null,null,null,null,null,null,null,null,null,null,null,null,"","",null,"",null,""]
["a) por cada período de 30 dias",null,null,null,null,null,11.6,null,{"$f":"IF(H191=0,\" \",G191*CEILING(H191/30,1))","v":" "},null,null,null,null,null,null,null,null,null,null,null,null,null,null,null,null,null,11.43,11.55,11.6,null,11.6,null,""]
["6 - Licença especial ou admissão de comunicação prévia para conclusão de trabalhos inacabados",null,null,null,null,null,{"$f":"AE192","v":""},null,null,null,null,null,null,null,null,null,null,null,null,null,null,null,null,null,null,null,null,"","",null,"",null,""]
["a) por cada título ",null,null,null,null,null,66.55,null," ",null,null,null,null,null,null,null,null,null,null,null,null,null,null,null,null,null,65.56,66.28,66.55,null,66.55,null,""]
["b) Em função do prazo: acresce às alíneas anteriores por cada periodo de 30 dias",null,null,null,null,null,11.6,null,{"$f":"IF(H194=0,\" \",G194*CEILING(H194/30,1))","v":" "},null,null,null,null,null,null,null,null,null,null,null,null,null,null,null,null,null,11.43,11.55,11.6,null,11.6,null,{"$f":"IF(AC194<>\" \",IF(AC194=AE194,\"\",\"XXXX\"),\"\")","v":""}]
["c) Em função do valor orçam.:acresce ao previsto nas alí. ant. 1% das obras a efectuar",null,null,null,null,null,0.01,null," ",null,null,null,null,null,null,null,null,null,null,null,null,null,null,null,null,null,null,"","",null,"",null,{"$f":"IF(AC195<>\" \",IF(AC195=AE195,\"\",\"XXXX\"),\"\")","v":""}]
["7 - Publicação do título: custo de publicação",null,null,null,null,null,{"$f":"AE196","v":29.09},null," ",null,null,null,null,null,null,null,null,null,null,null,null,null,null,null,null,null,28.65,28.97,29.09,null,29.09,null,""]
["8 - Renovação:         ",null,null,null,null,null,{"$f":"AE197","v":""},null,null,null,null,null,null,null,null,null,null,null,null,null,null,null,null,null,null,null,null,"","",null,"",null,""]
["a) Do pedido de informação prévia",null,null,null,null,null,66.55,null," ",null,null,null,null,null,null,null,null,null,null,null,null,null,null,null,null,null,65.56,66.28,66.55,null,66.55,null,""]
["b) Do alvará de licença",null,null,null,null,null,66.55,null," ",null,null,null,null,null,null,null,null,null,null,null,null,null,null,null,null,null,65.56,66.28,66.55,null,66.55,null,""]
["c) Da admissão de comunicação prévia",null,null,null,null,null,{"$f":"AE200","v":66.55},null," ",null,null,null,null,null,null,null,null,null,null,null,null,null,null,null,null,null,65.56,66.28,66.55,null,66.55,null,""]
["TOTAL:",null,null,null,null,null,null,null,{"$f":"SUM(I178:I200)","v":0},null,null,null,null,null,null,null,null,null,null,null,null,null,null,null,null,null,null,"","",null,"",null,""]
[null,null,null,null,null,null,null,null,null,null,null,null,null,null,null,null,null,null,null,null,null,null,null,null,null,null,null,"","",null,"",null,""]
["SECÇÃO V\nOBRAS DE EDIFICAÇÃO (CONSTRUÇÃO, RECONSTRUÇÃO, AMPLIAÇÃO E ALTERAÇÃO) E DE DEMOLIÇÃO DAS EDIFICAÇÕES",null,null,null,null,null,null,null,null,null,null,null,null,null,null,null,null,null,null,null,null,null,null,null,null,null,null,"","",null,"",null,""]
[null,null,null,null,null,null,null,null,null,null,null,null,null,null,null,null,null,null,null,null,null,null,null,null,null,null,null,"","",null,"",null,""]
["1 - Apreciação de pedido de informação prévia:",null,null,null,null,null,{"$f":"AE205","v":66.55},null,{"$f":"IF(H205=0,\" \",G205*H205)","v":" "},null,null,null,null,null,null,null,null,null,null,null,null,null,null,null,null,null,65.56,66.28,66.55,null,66.55,null,{"$f":"IF(AC205<>\" \",IF(AC205=AE205,\"\",\"XXXX\"),\"\")","v":""}]
["2 - Emissão de alvará de licença ou admissão de comunicação prévia.",null,null,null,null,null,{"$f":"AE206","v":""},null,null,null,null,null,null,null,null,null,null,null,null,null,null,null,null,null,null,null,null,"","",null,"",null,{"$f":"IF(AC206<>\" \",IF(AC206=AE206,\"\",\"XXXX\"),\"\")","v":""}]
["2.1.Por cada título",null,null,null,null,null,{"$f":"AE207","v":66.55},null,{"$f":"IF(H207=0,\" \",G207*H207)","v":" "},null,null,null,null,null,null,null,null,null,null,null,null,null,null,null,null,null,65.56,66.28,66.55,null,66.55,null,""]
["2.2. Acresce ao montante previsto no ponto anterior:",null,null,null,null,null,"",null,null,null,null,null,null,null,null,null,null,null,null,null,null,null,null,null,null,null,null,"","",null,"",null,""]
["a) Prazo de execução das obras: por cada período de 30 dias",null,null,null,null,null,6.32,null,{"$f":"IF(H209=0,\" \",G209*CEILING(H209/30,1))","v":" "},null,null,null,null,null,null,null,null,null,null,null,null,null,null,null,null,null,6.22,6.29,6.32,null,6.32,null,""]
["b) Acresce, nas obras de construção, reconstrução e ampliação, por m² de área destinada a:",null,null,null,null,null,"",null,null,null,null,null,null,null,null,null,null,null,null,null,null,null,null,null,null,null,null,"","",null,"",null,""]
["b1) Habitação e turismo rural:",null,null,null,null,null,2.57,null,{"$f":"IF(H211=0,\" \",G211*H211)","v":" "},null,null,null,null,null,null,null,null,null,null,null,null,null,null,null,null,null,2.5299999999999998,2.56,2.57,null,2.57,null,""]
["b2) Comércio, serviços, empreendimentos turistícos e estabelecimentos de alojamento local",null,null,null,null,null,2.3199999999999998,null,{"$f":"IF(H212=0,\" \",G212*H212)","v":" "},null,null,null,null,null,null,null,null,null,null,null,null,null,null,null,null,null,2.2799999999999998,2.31,2.3199999999999998,null,2.3199999999999998,null,""]
["b3) Industrias, oficinas e armazéns",null,null,null,null,null,1.7,null," ",null,null,null,null,null,null,null,null,null,null,null,null,null,null,null,null,null,1.67,1.69,1.7,null,1.7,null,""]
["b4) Equipamentos de utilização colectiva não integrado em empreendimentos turísticos",null,null,null,null,null,0.91,null," ",null,null,null,null,null,null,null,null,null,null,null,null,null,null,null,null,null,0.9,0.91,0.91,null,0.91,null,""]
["b5) Áreas de aparcamento, de circulação automóvel, arrumos, anexos e áreas técnicas em subsolo",null,null,null,null,null,0.91,null," ",null,null,null,null,null,null,null,null,null,null,null,null,null,null,null,null,null,0.9,0.91,0.91,null,0.91,null,""]
["b6) Instalações destinadas exclusivamente a usos agrícolas",null,null,null,null,null,0.91,null," ",null,null,null,null,null,null,null,null,null,null,null,null,null,null,null,null,null,0.9,0.91,0.91,null,0.91,null,""]
["b7) Telheiros, alpendres e semelhantes",null,null,null,null,null,{"$f":"AE217","v":0.91},null," ",null,null,null,null,null,null,null,null,null,null,null,null,null,null,null,null,null,0.9,0.91,0.91,null,0.91,null,""]
["c) Por metro linear de muro de vedação ou de suporte",null,null,null,null,null,0.91,null," ",null,null,null,null,null,null,null,null,null,null,null,null,null,null,null,null,null,0.9,0.91,0.91,null,0.91,null,{"$f":"IF(AC218<>\" \",IF(AC218=AE218,\"\",\"XXXX\"),\"\")","v":""}]
["d) Por m³, tanques, cubas e outros depósitos",null,null,null,null,null,5.07,null," ",null,null,null,null,null,null,null,null,null,null,null,null,null,null,null,null,null,4.9989999999999997,5.05,5.07,null,5.07,null,{"$f":"IF(AC219<>\" \",IF(AC219=AE219,\"\",\"XXXX\"),\"\")","v":""}]
["e) Por m³ de piscinas",null,null,null,null,null,8.81,null," ",null,null,null,null,null,null,null,null,null,null,null,null,null,null,null,null,null,8.68,8.77,8.81,null,8.81,null,""]
["2.3 Obras de alteração ou conservação:",null,null,null,null,null,"",null,null,null,null,null,null,null,null,null,null,null,null,null,null,null,null,null,null,null,null,"","",null,"",null,""]
["2.3.1. Por cada título",null,null,null,null,null,66.55,null,{"$f":"IF(H222<=0,\" \",H222*G222)","v":" "},null,null,null,null,null,null,null,null,null,null,null,null,null,null,null,null,null,65.56,66.28,66.55,null,66.55,null,""]
["2.3.2. Por cada período de 30 dias. ",null,null,null,null,null,6.32,null,{"$f":"IF(H223=0,\" \",G223*CEILING(H223/30,1))","v":" "},null,null,null,null,null,null,null,null,null,null,null,null,null,null,null,null,null,6.22,6.29,6.32,null,6.32,null,""]
["a) Em função do valor orçamentado: 1% do valor orçamentado das obras a efectuar",null,null,null,null,null,0.01,null,{"$f":"IF(H224=0,\" \",G224*H224)","v":" "},null,null,null,null,null,null,null,null,null,null,null,null,null,null,null,null,null,null,"","",null,"",null,""]
["b) Por alteração do número de fogos e/ou alteração do destino de utilização, por m² de área total alterada",null,null,null,null,null,{"$f":"AE225","v":0.91},null,{"$f":"IF(H225=0,\" \",G225*H225)","v":" "},null,null,null,null,null,null,null,null,null,null,null,null,null,null,null,null,null,0.9,0.91,0.91,null,0.91,null,""]
["2.4. Obras de demolição.",null,null,null,null,null,{"$f":"AE226","v":""},null,null,null,null,null,null,null,null,null,null,null,null,null,null,null,null,null,null,null,null,"","",null,"",null,""]
["2.4.1 Por cada titulo",null,null,null,null,null,66.55,null,{"$f":"IF(H227=0,\" \",G227*H227)","v":" "},null,null,null,null,null,null,null,null,null,null,null,null,null,null,null,null,null,65.56,66.28,66.55,null,66.55,null,""]
["2.4.2.Por cada período de 30 dias. ",null,null,null,null,null,6.32,null,{"$f":"IF(H228=0,\" \",G228*CEILING(H228/30,1))","v":" "},null,null,null,null,null,null,null,null,null,null,null,null,null,null,null,null,null,6.22,6.29,{"$f":"IFERROR(IF(AB228>0,ROUND(AB228*$AC$97,2),\" \"),\"\")","v":6.32},null,{"$f":"IFERROR(ROUND(AC228,2),\"\")","v":6.32},null,""]
["a) Em função do valor orçamentado: 1% do valor orçamentado das obras de demolição",null,null,null,null,null,0.01,null,{"$f":"IF(H229=0,\" \",G229*H229)","v":" "},null,null,null,null,null,null,null,null,null,null,null,null,null,null,null,null,null,null,"","",null,"",null,{"$f":"IF(AC229<>\" \",IF(AC229=AE229,\"\",\"XXXX\"),\"\")","v":""}]
["3. Aditamento ao titulo na sequência de alterção dos termos e condiões, da licença ou admissão da comunicão prévia",null,null,null,null,null,{"$f":"AE230","v":""},null,null,null,null,null,null,null,null,null,null,null,null,null,null,null,null,null,null,null,null,"","",null,"",null,{"$f":"IF(AC230<>\" \",IF(AC230=AE230,\"\",\"XXXX\"),\"\")","v":""}]
["3.1. Por cada título",null,null,null,null,null,{"$f":"AE231","v":66.55},null,{"$f":"IF(H231=0,\" \",G231*H231)","v":" "},null,null,null,null,null,null,null,null,null,null,null,null,null,null,null,null,null,65.56,66.28,66.55,null,66.55,null,""]
["3.2. Por m² de aumento de construção, reconstrução, e ampliação, aplicam-se as taxas previstas nas alíneas a), b1), b2), b3), b4), b5), b6), b7), c), d) e/ou e), do 2.2 consoante os casos.",null,null,null,null,null,"",null,null,null,null,null,null,null,null,null,null,null,null,null,null,null,null,null,null,null,null,"","",null,"",null,""]
["3.3.Por m² de aumento em obras de alteração ou conservação, aplicam-se as taxas previstas na alínea, a) do 2.2 e alíneas a) e b) do 2.3",null,null,null,null,null,"",null,null,null,null,null,null,null,null,null,null,null,null,null,null,null,null,null,null,null,null,"","",null,"",null,""]
["3.4.Por m² de aumento de área a demolir, em obras de demolição, aplicam-se as taxas previstas na alínea  a) do 2.2 e na alínea a) do 2.4",null,null,null,null,null,"",null,null,null,null,null,null,null,null,null,null,null,null,null,null,null,null,null,null,null,null,"","",null,"",null,""]
["4. Averbamento por substituição do requerente ou comunicante, do responsável por qualquer dos projetos apresentados ou do diretor técnico da obra-por cada",null,null,null,null,null,14.1,null," ",null,null,null,null,null,null,null,null,null,null,null,null,null,null,null,null,null,13.89,14.04,14.1,null,14.1,null,""]
["5.Prorrogação do prazo de execução das obras, por cada periodo de 30 dias.",null,null,null,null,null,6.32,null,{"$f":"IF(H236=0,\" \",G236*CEILING(H236/30,1))","v":" "},null,null,null,null,null,null,null,null,null,null,null,null,null,null,null,null,null,6.22,6.29,6.32,null,6.32,null,""]
["6.Execução faseada de obras de edificação",null,null,null,null,null,"",null,null,null,null,null,null,null,null,null,null,null,null,null,null,null,null,null,null,null,null,"","",null,"",null,""]
["a) Emissão do alvará de licença ou admissão de comunicação prévia correspondente à 1ª fase",null,null,null,null,null,66.55,null," ",null,null,null,null,null,null,null,null,null,null,null,null,null,null,null,null,null,65.56,66.28,66.55,null,66.55,null,""]
["b) Aditamento ao titulo referente às fases subsequentes",null,null,null,null,null,66.55,null," ",null,null,null,null,null,null,null,null,null,null,null,null,null,null,null,null,null,65.56,66.28,66.55,null,66.55,null,{"$f":"IF(AC239<>\" \",IF(AC239=AE239,\"\",\"XXXX\"),\"\")","v":""}]
["7.Licença parcial para construção da estrutura nas obras previstas no art.23º/ 7 do RJUE e trabalhos de escavação e contenção periférica, previstos no artigo 81º do RJUE",null,null,null,null,null,{"$f":"AE240","v":""},null,null,null,null,null,null,null,null,null,null,null,null,null,null,null,null,null,null,null,null,"","",null,"",null,{"$f":"IF(AC240<>\" \",IF(AC240=AE240,\"\",\"XXXX\"),\"\")","v":""}]
["a) Emissão do alvará.",null,null,null,null,null,66.55,null," ",null,null,null,null,null,null,null,null,null,null,null,null,null,null,null,null,null,65.56,66.28,66.55,null,66.55,null,""]
["b) Ao montante definido na alínea anterior acresce 30% do valor das taxas devidas pela globalidade da obra e calculadas nos termos previstos nesta tabela de taxas nos pontos 2.2., 2.3. e 2.4., a deduzir à liquidação das mesmas aquando da emissão do alvará definitivo",null,null,null,null,null,"",null,null,null,null,null,null,null,null,null,null,null,null,null,null,null,null,null,null,null,null,"","",null,"",null,""]
["8. Licença especial ou admissão de comunicação prévia para conclusão de obras inacabadas",null,null,null,null,null,"",null,null,null,null,null,null,null,null,null,null,null,null,null,null,null,null,null,null,null,null,"","",null,"",null,""]
["a) Emissão do alvará de licença ",null,null,null,null,null,66.55,null," ",null,null,null,null,null,null,null,null,null,null,null,null,null,null,null,null,null,65.56,66.28,66.55,null,66.55,null,""]
["b) Em função do prazo adicional, por cada período de 30 dias",null,null,null,null,null,31.59,null,{"$f":"IF(H245=0,\" \",G245*CEILING(H245/30,1))","v":" "},null,null,null,null,null,null,null,null,null,null,null,null,null,null,null,null,null,31.12,31.46,31.59,null,31.59,null,""]
["c) Em função do valor orçamentad: 1% do valor orçamentado das obras a efectuar",null,null,null,null,null,0.01,null," ",null,null,null,null,null,null,null,null,null,null,null,null,null,null,null,null,null,null,"","",null,"",null,""]
["9. Renovação ",null,null,null,null,null,null,null,null,null,null,null,null,null,null,null,null,null,null,null,null,null,null,null,null,null,null,"","",null,"",null,""]
["a) Do pedido de informação prévia",null,null,null,null,null,{"$f":"AE248","v":66.55},null," ",null,null,null,null,null,null,null,null,null,null,null,null,null,null,null,null,null,65.56,66.28,66.55,null,66.55,null,""]
["b) Do alvará de licença",null,null,null,null,null,{"$f":"AE249","v":66.55},null," ",null,null,null,null,null,null,null,null,null,null,null,null,null,null,null,null,null,65.56,66.28,66.55,null,66.55,null,""]
["c) Da admissão de comunicação prévia",null,null,null,null,null,{"$f":"AE250","v":66.55},null," ",null,null,null,null,null,null,null,null,null,null,null,null,null,null,null,null,null,65.56,66.28,66.55,null,66.55,null,""]
["TOTAL:",null,null,null,null,null,null,null,{"$f":"SUM(I205:I250)","v":0},null,null,null,null,null,null,null,null,null,null,null,null,null,null,null,null,null,null,"","",null,"",null,{"$f":"IF(AC251<>\" \",IF(AC251=AE251,\"\",\"XXXX\"),\"\")","v":""}]
[null,null,null,null,null,null,null,null,null,null,null,null,null,null,null,null,null,null,null,null,null,null,null,null,null,null,null,"","",null,"",null,{"$f":"IF(AC252<>\" \",IF(AC252=AE252,\"\",\"XXXX\"),\"\")","v":""}]
["ANEXO 5   CAPITULO II\nINSPECÇÕES E VISTORIAS",null,null,null,null,null,null,null,null,null,null,null,null,null,null,null,null,null,null,null,null,null,null,null,null,null,null,"","",null,"",null,""]
[null,null,null,null,null,null,null,null,null,null,null,null,null,null,null,null,null,null,null,null,null,null,null,null,null,null,null,"","",null,"",null,""]
["SECÇÃO III\nINSPECÇÕES E VISTORIAS",null,null,null,null,null,null,null,null,null,null,null,null,null,null,null,null,null,null,null,null,null,null,null,null,null,null,"","",null,"",null,""]
[null,null,null,null,null,null,null,null,null,null,null,null,null,null,null,null,null,null,null,null,null,null,null,null,null,null,null,"","",null,"",null,""]
["1 - Inspecção de ascensores, monta-cargas, escadas mecânicas e tapetes rolantes:",null,null,null,null,null,null,null,null,null,null,null,null,null,null,null,null,null,null,null,null,null,null,null,null,null,null,"","",null,"",null,""]
["1.1 - Inspecção periódica",null,null,null,null,null,{"$f":"AE258","v":82.93},null,{"$f":"IF(H258=0,\" \",G258*H258)","v":" "},null,null,null,null,null,null,null,null,null,null,null,null,null,null,null,null,null,81.704999999999998,82.6,82.93,null,82.93,null,""]
["1.2 - Reinspecção periódica",null,null,null,null,null,{"$f":"AE259","v":47.39},null,{"$f":"IF(H259=0,\" \",G259*H259)","v":" "},null,null,null,null,null,null,null,null,null,null,null,null,null,null,null,null,null,46.683999999999997,47.2,47.39,null,47.39,null,""]
["1.3 - Inspecção extraordinária",null,null,null,null,null,82.93,null," ",null,null,null,null,null,null,null,null,null,null,null,null,null,null,null,null,null,81.704999999999998,82.6,82.93,null,82.93,null,""]
["2 -Vistoria para redução de caução",null,null,null,null,null,62.75,null," ",null,null,null,null,null,null,null,null,null,null,null,null,null,null,null,null,null,61.82,62.5,62.75,null,62.75,null,""]
["3 - Vistoria para efeitos de recepção provisória ou definitiva de obras de urbanização",null,null,null,null,null,31.94,null," ",null,null,null,null,null,null,null,null,null,null,null,null,null,null,null,null,null,31.47,31.81,31.94,null,31.94,null,""]
["3.1 - ao montante definido no número anterior acresce 0,5% do valor das obras de urbanização a vistoriar",null,null,null,null,null,5.0000000000000001E-3,null," ",null,null,null,null,null,null,null,null,null,null,null,null,null,null,null,null,null,null,"","",null,"",null,""]
["4 - Vistoria para efeitos de arrendamento e de emissão de licença ou autorização de utilização para habitação e turismo rural, incluindo as de conservação",null,null,null,null,null,{"$f":"AE264","v":60.38},null," ",null,null,null,null,null,null,null,null,null,null,null,null,null,null,null,null,null,59.49,60.14,60.38,null,60.38,null,{"$f":"IF(AC264<>\" \",IF(AC264=AE264,\"\",\"XXXX\"),\"\")","v":""}]
["4.1 - ao montante definido no número anterior acresce por metro quadrado de area de construção, acima dos 200 m² ",null,null,null,null,null,{"$f":"AE265","v":0.35},null," ",null,null,null,null,null,null,null,null,null,null,null,null,null,null,null,null,null,0.35,0.35,0.35,null,0.35,null,{"$f":"IF(AC265<>\" \",IF(AC265=AE265,\"\",\"XXXX\"),\"\")","v":""}]
["5 - Vistorias a estabelecimentos comerciais, serviços, empreendimentos turísticos e estabelecimentos de alojamento local",null,null,null,null,null,{"$f":"AE266","v":""},null,null,null,null,null,null,null,null,null,null,null,null,null,null,null,null,null,null,null,null,"","",null,"",null,""]
["5.1 - Pela realização de vistoria inicial ou complementar destinada à concessão de licenças ou autorizações de utilização, ou outras, acrescida do custo de peritos exteriores ao município",null,null,null,null,null,"",null,null,null,null,null,null,null,null,null,null,null,null,null,null,null,null,null,null,null,null,"","",null,"",null,""]
["a) Para estabelecimento com area de construção até 300 m²",null,null,null,null,null,74.599999999999994,null,{"$f":"IF(H268=0,\" \",G268*H268)","v":" "},null,null,null,null,null,null,null,null,null,null,null,null,null,null,null,null,null,73.5,74.3,74.599999999999994,null,74.599999999999994,null,""]
["b) Para estabelecimento com area de construção superior a 300 m² e até 1000 m²",null,null,null,null,null,98.3,null," ",null,null,null,null,null,null,null,null,null,null,null,null,null,null,null,null,null,96.844999999999999,97.91,98.3,null,98.3,null,""]
["c) Para estabelecimento com area de construção superior a 1000m²",null,null,null,null,null,145.69999999999999,null," ",null,null,null,null,null,null,null,null,null,null,null,null,null,null,null,null,null,143.54,145.12,145.69999999999999,null,145.69999999999999,null,""]
["6 - Vistorias a estabelecimentos industriais, oficinas e armazens, acrescida do custo de peritos exteriores ao município",null,null,null,null,null,"",null,null,null,null,null,null,null,null,null,null,null,null,null,null,null,null,null,null,null,null,"","",null,"",null,{"$f":"IF(AC271<>\" \",IF(AC271=AE271,\"\",\"XXXX\"),\"\")","v":""}]
["6.1 - Pela realização de vistoria inicial ou complementar destinada à concessão de licenças ou autorizações de utilização, ou outras que não de exploração, acrescida do custo de peritos exteriores ao município",null,null,null,null,null,"",null,null,null,null,null,null,null,null,null,null,null,null,null,null,null,null,null,null,null,null,"","",null,"",null,{"$f":"IF(AC272<>\" \",IF(AC272=AE272,\"\",\"XXXX\"),\"\")","v":""}]
["a) Para estabelecimento com area de construção até 500 m²",null,null,null,null,null,50.9,null,{"$f":"IF(H273=0,\" \",G273*H273)","v":" "},null,null,null,null,null,null,null,null,null,null,null,null,null,null,null,null,null,50.15,50.7,50.9,null,50.9,null,""]
["b) Para estabelecimento com area de construção superior a 500 m² e até 1000m²",null,null,null,null,null,74.599999999999994,null," ",null,null,null,null,null,null,null,null,null,null,null,null,null,null,null,null,null,73.5,74.3,74.599999999999994,null,74.599999999999994,null,""]
["c) Para estabelecimento com area de construção superior a 1000m²",null,null,null,null,null,122,null," ",null,null,null,null,null,null,null,null,null,null,null,null,null,null,null,null,null,120.194,121.51,122,null,122,null,""]
["7 - Pela realização de vistoria inicial ou complementar destinada à emissão de licença ou autorização de utilização de estabelecimentos de restauração e/ou bebidas, acrescida do custo de peritos exteriores ao município",null,null,null,null,null,{"$f":"AE276","v":""},null,null,null,null,null,null,null,null,null,null,null,null,null,null,null,null,null,null,null,null,"","",null,"",null,""]
["a) Para estabelecimento com area de construção até 300 m²",null,null,null,null,null,74.599999999999994,null,{"$f":"IF(H277=0,\" \",G277*H277)","v":" "},null,null,null,null,null,null,null,null,null,null,null,null,null,null,null,null,null,73.5,74.3,74.599999999999994,null,74.599999999999994,null,""]
["b) Para estabelecimento com area de construção superior a 300 m² e até 1000 m²",null,null,null,null,null,98.3,null," ",null,null,null,null,null,null,null,null,null,null,null,null,null,null,null,null,null,96.844999999999999,97.91,98.3,null,98.3,null,""]
["c) Para estabelecimento com area de construção superior a 1000m²",null,null,null,null,null,145.69999999999999,null," ",null,null,null,null,null,null,null,null,null,null,null,null,null,null,null,null,null,143.54,145.12,145.69999999999999,null,145.69999999999999,null,""]
["8 - Pela realização de vistoria para efeitos de emissão de licença ou autorização de utilização para restauração e/ou bebidas que disponham ainda de sala ou de espaços destinados a dança, às taxas previstas no número anterior, acrescerá ainda a taxa correspondente à da vistoria para funcionamento dos recintos fixos de diversão, prevista no ponto 20 desta secção",null,null,null,null,null,"",null,null,null,null,null,null,null,null,null,null,null,null,null,null,null,null,null,null,null,null,"","",null,"",null,{"$f":"IF(AC280<>\" \",IF(AC280=AE280,\"\",\"XXXX\"),\"\")","v":""}]
["9 - Autorização extraordinária de prestação de serviços de restauração ou de bebidas com carácter esporádico e/ou ocasional, devidamente remunerada e anunciada junto ao público, em instalações amovíveis ou pré-fabricadas.",null,null,null,null,null,74.599999999999994,null,{"$f":"IF(H281=0,\" \",G281*H281)","v":" "},null,null,null,null,null,null,null,null,null,null,null,null,null,null,null,null,null,73.5,74.3,74.599999999999994,null,74.599999999999994,null,{"$f":"IF(AC281<>\" \",IF(AC281=AE281,\"\",\"XXXX\"),\"\")","v":""}]
["10 - Vistoria aos estabelecimentos previstos no regime jurídico sobre a instalação de estabelecimentos de comércio alimentar e certos estabelecimentos de comércio não alimentar e prestação de serviços, actualmente previstos no DL 259/2007, de 17 de Julho",null,null,null,null,null,"",null,null,null,null,null,null,null,null,null,null,null,null,null,null,null,null,null,null,null,null,"","",null,"",null,""]
["11 - Vistoria a ginásios (health clubs)",null,null,null,null,null,120.58,null,{"$f":"IF(H283=0,\" \",G283*H283)","v":" "},null,null,null,null,null,null,null,null,null,null,null,null,null,null,null,null,null,118.79,120.1,120.58,null,120.58,null,""]
["12 - Vistoria a Hotéis e outros estabelecimentos similares",null,null,null,null,null,144.28,null," ",null,null,null,null,null,null,null,null,null,null,null,null,null,null,null,null,null,142.13999999999999,143.71,144.28,null,144.28,null,""]
["13 - Vistoria a Parques de campismo",null,null,null,null,null,149.21,null," ",null,null,null,null,null,null,null,null,null,null,null,null,null,null,null,null,null,146.99,148.62,149.21,null,149.21,null,""]
["14 - Vistoria inicial, final ou periódica relativa ao processo de licenciamento das instalações de armazenamento de produtos de petróleo e de postos de abastecimento de combustíveis",null,null,null,null,null,{"$f":"AE286","v":""},null,null,null,null,null,null,null,null,null,null,null,null,null,null,null,null,null,null,null,null,"","",null,"",null,""]
["14.1 - instalações da classe A1",null,null,null,null,null,163.03,null,{"$f":"IF(H287=0,\" \",G287*H287)","v":" "},null,null,null,null,null,null,null,null,null,null,null,null,null,null,null,null,null,160.61000000000001,162.38,163.03,null,163.03,null,{"$f":"IF(AC287<>\" \",IF(AC287=AE287,\"\",\"XXXX\"),\"\")","v":""}]
["14.2 - instalações da classe A2",null,null,null,null,null,186.72,null," ",null,null,null,null,null,null,null,null,null,null,null,null,null,null,null,null,null,183.96,185.98,186.72,null,186.72,null,{"$f":"IF(AC288<>\" \",IF(AC288=AE288,\"\",\"XXXX\"),\"\")","v":""}]
["14.3 - instalações da classe A3",null,null,null,null,null,210.42,null," ",null,null,null,null,null,null,null,null,null,null,null,null,null,null,null,null,null,207.30500000000001,209.58,210.42,null,210.42,null,""]
["14.4 - Instalações de classe B2",null,null,null,null,null,163.03,null," ",null,null,null,null,null,null,null,null,null,null,null,null,null,null,null,null,null,160.61000000000001,162.38,163.03,null,163.03,null,""]
["14.5 - Outras instalações não expressamente definidas",null,null,null,null,null,222.27,null," ",null,null,null,null,null,null,null,null,null,null,null,null,null,null,null,null,null,218.98,221.38,222.27,null,222.27,null,""]
["15 - Repetição de vistoria: 75% do valor da taxa devida pela vistoria correspondente",null,null,null,null,null,0.75,null," ",null,null,null,null,null,null,null,null,null,null,null,null,null,null,null,null,null,null,0,{"$f":"IFERROR(IF(AB292>0,ROUND(AB292*$AC$97,2),\" \"),\"\")","v":" "},null,{"$f":"IFERROR(ROUND(AC292,2),\"\")","v":""},null,""]
["16 -Vistorias a estabelecimentos industriais",null,null,null,null,null,null,null,null,null,null,null,null,null,null,null,null,null,null,null,null,null,null,null,null,null,null,0," ",null,"",null,""]
["16.1 - Vistorias para verificação das condições do exercício da actividade ou do cumprimento das medidas impostas nas decisões proferidas sobre as reclamações e recursos hierárquicos",null,null,null,null,null,{"$f":"AE294","v":100.95},null,{"$f":"IF(H294=0,\" \",G294*H294)","v":" "},null,null,null,null,null,null,null,null,null,null,null,null,null,null,null,null,null,99.45,100.55,100.95,null,100.95,null,""]
["16.2 - Vistorias para verificação do cumprimento das medidas impostas aquando da desactivação definitiva do estabelecimento industrial",null,null,null,null,null,53.55,null," ",null,null,null,null,null,null,null,null,null,null,null,null,null,null,null,null,null,52.75,53.34,53.55,null,53.55,null,""]
["16.3 -  Vistoria de controlo para verificação de cumprimento das condições fixadas ou medidas impostas",null,null,null,null,null,58.28,null," ",null,null,null,null,null,null,null,null,null,null,null,null,null,null,null,null,null,57.42,58.05,58.28,null,58.28,null,""]
["16.4 -  Vistoria em que intervenham entidades da administação central: Acresce 20% do valor da taxa devida pela vistoria correspondente",null,null,null,null,null,0.2,null," ",null,null,null,null,null,null,null,null,null,null,null,null,null,null,null,null,null,null,0," ",null,"",null,{"$f":"IF(AC297<>\" \",IF(AC297=AE297,\"\",\"XXXX\"),\"\")","v":""}]
["17 - Vistoria de segurança em recintos de espectáculos e divertimentos públicos",null,null,null,null,null,86.45,null," ",null,null,null,null,null,null,null,null,null,null,null,null,null,null,null,null,null,85.17,86.11,86.45,null,86.45,null,{"$f":"IF(AC298<>\" \",IF(AC298=AE298,\"\",\"XXXX\"),\"\")","v":""}]
["18 - Vistoria para licença de recinto itinerante ou improvisado",null,null,null,null,null,74.599999999999994,null," ",null,null,null,null,null,null,null,null,null,null,null,null,null,null,null,null,null,73.5,74.3,74.599999999999994,null,74.599999999999994,null,""]
["19 - Vistoria para licença acidental de recinto para espectáculo de natureza artística",null,null,null,null,null,74.599999999999994,null," ",null,null,null,null,null,null,null,null,null,null,null,null,null,null,null,null,null,73.5,74.3,74.599999999999994,null,74.599999999999994,null,""]
["20 - Vistoria para funcionamento dos recintos fixos de diversão",null,null,null,null,null,93.56,null," ",null,null,null,null,null,null,null,null,null,null,null,null,null,null,null,null,null,92.18,93.19,93.56,null,93.56,null,""]
["21 - Vistoria de arrrendamento para fins não habitacionais de prédios ou fracções não licenciados",null,null,null,null,null,122.66,null," ",null,null,null,null,null,null,null,null,null,null,null,null,null,null,null,null,null,120.84,122.17,122.66,null,122.66,null,""]
["a) Acresce o valor da taxa fixada nos números 5.1. ou 6.1 da presente secção, consoante a utilização",null,null,null,null,null,"",null,{"$f":"IF(H303=0,\" \",H303)","v":" "},null,null,null,null,null,null,null,null,null,null,null,null,null,null,null,null,null,null,0," ",null,"",null,""]
["22 - Vistorias para efeitos de propriedade horizontal",null,null,null,null,null,"",null,null,null,null,null,null,null,null,null,null,null,null,null,null,null,null,null,null,null,null,0," ",null,"",null,""]
["22.1 - Para habitação, por cada",null,null,null,null,null,5.87,null,{"$f":"IF(H305=0,\" \",G305*H305)","v":" "},null,null,null,null,null,null,null,null,null,null,null,null,null,null,null,null,null,5.79,5.85,5.87,null,5.87,null,{"$f":"IF(AC305<>\" \",IF(AC305=AE305,\"\",\"XXXX\"),\"\")","v":""}]
["22.2 - Para outros fins, por cada",null,null,null,null,null,8.24,null," ",null,null,null,null,null,null,null,null,null,null,null,null,null,null,null,null,null,8.1199999999999992,8.2100000000000009,8.24,null,8.24,null,{"$f":"IF(AC306<>\" \",IF(AC306=AE306,\"\",\"XXXX\"),\"\")","v":""}]
["23 - Vistoria para medição de ruído ( art.º13 º do DL 9/2007, de 17 de Janeiro)",null,null,null,null,null,146.80000000000001,null," ",null,null,null,null,null,null,null,null,null,null,null,null,null,null,null,null,null,144.62,146.22,146.80000000000001,null,146.80000000000001,null,""]
["24 - Vistorias a ciclomotores, veículos agrícolas e táxis",null,null,null,null,null,20.37,null," ",null,null,null,null,null,null,null,null,null,null,null,null,null,null,null,null,null,20.07,20.29,20.37,null,20.37,null,""]
["25 - Ensaios e Vistorias a que se referem o art.º 84º,  a alínea b) no n.º 1 do artigo 92º e o art.º 158º do presente Código Regulamentar",null,null,null,null,null,21.04,null," ",null,null,null,null,null,null,null,null,null,null,null,null,null,null,null,null,null,20.73,20.96,21.04,null,21.04,null,""]
["26 - Vistorias a viaturas de transporte e venda de pão",null,null,null,null,null,122.74,null," ",null,null,null,null,null,null,null,null,null,null,null,null,null,null,null,null,null,120.92,122.25,122.74,null,122.74,null,""]
["27 - Acresce a todas as vistorias em que seja obrigatória a presença do veterinário municipal",null,null,null,null,null,27.2,null," ",null,null,null,null,null,null,null,null,null,null,null,null,null,null,null,null,null,26.8,27.09,27.2,null,27.2,null,""]
["28 - Outras vistorias não previstas nos números anteriores",null,null,null,null,null,61.04,null," ",null,null,null,null,null,null,null,null,null,null,null,null,null,null,null,null,null,60.14,60.8,61.04,null,61.04,null,""]
["29 - Inspeção ao local para efeitos do cumprimento do artigo 645º do Código Regulamentar e outras não expressamente previstas, no âmbito da Proteção Civil",null,null,null,null,null,{"$f":"AE313","v":10.82},null," ",null,null,null,null,null,null,null,null,null,null,null,null,null,null,null,null,null,10.66,10.78,10.82,null,10.82,null,""]
["Total Q I:",null,null,null,null,null,null,null,{"$f":"SUM(I258:I313)","v":0},null,null,null,null,null,null,null,null,null,null,null,null,null,null,null,null,null,null,"","",null,"",null,{"$f":"IF(AC314<>\" \",IF(AC314=AE314,\"\",\"XXXX\"),\"\")","v":""}]
[null,null,null,null,null,null,null,null,null,null,null,null,null,null,null,null,null,null,null,null,null,null,null,null,null,null,null,"","",null,"",null,{"$f":"IF(AC315<>\" \",IF(AC315=AE315,\"\",\"XXXX\"),\"\")","v":""}]
[null,null,null,null,null,null,null,null,null,null,null,null,null,null,null,null,null,null,null,null,null,null,null,null,null,null,null,"","",null,"",null,""]
[null,null,null,null,null,null,null,null,null,null,null,null,null,null,null,null,null,null,null,null,null,null,null,null,null,null,null,"","",null,"",null,""]
[null,null,null,null,null,null,null,null,null,null,null,null,null,null,null,null,null,null,null,null,null,null,null,null,null,null,null,"","",null,"",null,""]
[null,null,null,null,null,null,null,null,null,null,null,null,null,null,null,null,null,null,null,null,null,null,null,null,null,null,null,"","",null,"",null,""]
[null,null,null,null,null,null,null,null,null,null,null,null,null,null,null,null,null,null,null,null,null,null,null,null,null,null,null,"","",null,"",null,""]
[null,null,null,null,null,null,null,null,null,null,null,null,null,null,null,null,null,null,null,null,null,null,null,null,null,null,null,"","",null,"",null,""]
[null,null,null,null,null,null,null,null,null,null,null,null,null,null,null,null,null,null,null,null,null,null,null,null,null,null,null,"","",null,"",null,""]
[null,null,null,null,null,null,null,null,null,null,null,null,null,null,null,null,null,null,null,null,null,null,null,null,null,null,null,"","",null,"",null,""]
[null,null,null,null,null,null,null,null,null,null,null,null,null,null,null,null,null,null,null,null,null,null,null,null,null,null,null,"","",null,"",null,""]
[null,null,null,null,null,null,null,null,null,null,null,null,null,null,null,null,null,null,null,null,null,null,null,null,null,null,null,"","",null,"",null,""]
[null,null,null,null,null,null,null,null,null,null,null,null,null,null,null,null,null,null,null,null,null,null,null,null,null,null,null,"","",null,"",null,""]
["ANEXO 5   CAPÍTULO IV\nLICENCIAMENTOS E AUTORIZAÇÕES DIVERSAS",null,null,null,null,null,null,null,null,null,null,null,null,null,null,null,null,null,null,null,null,null,null,null,null,null,null,"","",null,"",null,""]
[null,null,null,null,null,null,null,null,null,null,null,null,null,null,null,null,null,null,null,null,null,null,null,null,null,null,null,"","",null,"",null,""]
["SECÇÃO II - LICENCIAMENTO DE INSTALAÇÕES DE ARMAZENAMENTO DE PRODUTOS DE PETRÓLEO E DE POSTOS DE ABASTECIMENTO DE COMBUSTÍVEIS",null,null,null,null,null,null,null,null,null,null,null,null,null,null,null,null,null,null,null,null,null,null,null,null,null,null,"","",null,"",null,""]
["1. Apreciação dos pedidos de aprovação dos projectos de construção e alteração",null,null,null,null,null,null,null,null,null,null,null,null,null,null,null,null,null,null,null,null,null,null,null,null,null,null,"","",null,"",null,""]
["a) instalções da classe A1 (50 m³ a 100 m³)",null,null,null,null,null,{"$f":"AE331","v":183.42},null,{"$f":"IF(H331=0,\" \",G331*H331)","v":" "},null,null,null,null,null,null,null,null,null,null,null,null,null,null,null,null,null,180.7,182.69,183.42,null,183.42,null,""]
["b) instalções da classe A2 (100 m³ a 200 m³)",null,null,null,null,null,{"$f":"AE332","v":230.82},null," ",null,null,null,null,null,null,null,null,null,null,null,null,null,null,null,null,null,227.4,229.9,230.82,null,230.82,null,""]
["c) instalções da classe A3",null,null,null,null,null,278.22000000000003,null," ",null,null,null,null,null,null,null,null,null,null,null,null,null,null,null,null,null,274.09399999999999,277.11,278.22000000000003,null,278.22000000000003,null,""]
["d) outras instalações não expressamente definidas",null,null,null,null,null,325.62,null," ",null,null,null,null,null,null,null,null,null,null,null,null,null,null,null,null,null,320.79000000000002,324.32,325.62,null,325.62,null,""]
["2 - Reapreciação dos projectos: 50% do valor da taxa devida pela apreciação inicial correpondente",null,null,null,null,null,0.5,null," ",null,null,null,null,null,null,null,null,null,null,null,null,null,null,null,null,null,null,"","",null,"",null,""]
["3. Emissão da segunda via de certificado de aprovação de projecto ou de inspeção",null,null,null,null,null,11.56,null," ",null,null,null,null,null,null,null,null,null,null,null,null,null,null,null,null,null,11.39,11.51,11.56,null,11.56,null,""]
["4. Emissão do alvará de licença de exploração",null,null,null,null,null,2057.98,null," ",null,null,null,null,null,null,null,null,null,null,null,null,null,null,null,null,null,2027.48,2049.7800000000002,2057.98,null,2057.98,null,{"$f":"IF(AC337<>\" \",IF(AC337=AE337,\"\",\"XXXX\"),\"\")","v":""}]
["5 - Averbamentos",null,null,null,null,null,325.62,null," ",null,null,null,null,null,null,null,null,null,null,null,null,null,null,null,null,null,320.79000000000002,324.32,325.62,null,325.62,null,{"$f":"IF(AC338<>\" \",IF(AC338=AE338,\"\",\"XXXX\"),\"\")","v":""}]
["6 Renovação do alvará de licença de exploração",null,null,null,null,null,{"$f":"AE339","v":2057.98},null," ",null,null,null,null,null,null,null,null,null,null,null,null,null,null,null,null,null,2027.48,2049.7800000000002,2057.98,null,2057.98,null,""]
["TOTAL:",null,null,null,null,null,null,null,{"$f":"SUM(I331:I339)","v":0},null,null,null,null,null,null,null,null,null,null,null,null,null,null,null,null,null,null,"","",null,"",null,""]
[null,null,null,null,null,null,null,null,null,null,null,null,null,null,null,null,null,null,null,null,null,null,null,null,null,null,null,"","",null,"",null,""]
["SECÇÃO VI\nAUTORIZAÇÃO DE UTILIZAÇÃO,ALTERAÇÕES À UTILIZAÇÃO DE EDIFICIOS,ARRENDAMENTOS PARA FINS NÃO HABITACIONAIS DE PRÉDIOS OU FRACÇÕES NÃO LICENCIADAS, NOS TERMOS DO NRAU",null,null,null,null,null,null,null,null,null,null,null,null,null,null,null,null,null,null,null,null,null,null,null,null,null,null,"","",null,"",null,""]
[null,null,null,null,null,null,null,null,null,null,null,null,null,null,null,null,null,null,null,null,null,null,null,null,null,null,null,"","",null,"",null,""]
["1. Apreciação do pedido de informação prévia",null,null,null,null,null,{"$f":"AE344","v":66.55},null,{"$f":"IF(H344=0,\" \",G344*H344)","v":" "},null,null,null,null,null,null,null,null,null,null,null,null,null,null,null,null,null,65.56,66.28,66.55,null,66.55,null,""]
["2 - Emissão de alvará de autorização de utilização e/ou  de alteração de utilização, bem como do arrendamento para fins não habitacionais de prédios ou fracções não licenciados, não expressamente previstos neste código",null,null,null,null,null,null,null,null,null,null,null,null,null,null,null,null,null,null,null,null,null,null,null,null,null,null,"","",null,"",null,""]
["2.1 Por cada título ",null,null,null,null,null,{"$f":"AE346","v":66.55},null,{"$f":"IF(H346=0,\" \",G346*H346)","v":" "},null,null,null,null,null,null,null,null,null,null,null,null,null,null,null,null,null,65.56,66.28,66.55,null,66.55,null,""]
["2.2 Por cada n.º de policia tribuido ",null,null,null,null,null,{"$f":"AE347","v":19.100000000000001},null," ",null,null,null,null,null,null,null,null,null,null,null,null,null,null,null,null,null,18.809999999999999,19.02,19.100000000000001,null,19.100000000000001,null,""]
["2.3 - Acresce, ao montante previsto no ponto 2.1. e 2.2. anteriores, nas obras de construção, reconstrução, ampliação, alteração ou conservação, por metro quadrado de area destinada a:",null,null,null,null,null,"",null,null,null,null,null,null,null,null,null,null,null,null,null,null,null,null,null,null,null,null,"","",null,"",null,""]
["a) Habitação e turismo rural",null,null,null,null,null,0.31,null,{"$f":"IF(H349=0,\" \",G349*H349)","v":" "},null,null,null,null,null,null,null,null,null,null,null,null,null,null,null,null,null,0.30499999999999999,0.31,0.31,null,0.31,null,{"$f":"IF(AC349<>\" \",IF(AC349=AE349,\"\",\"XXXX\"),\"\")","v":""}]
["b) Comércio, serviços, empreendi. turísticos e estacionamento de alojamento local ",null,null,null,null,null,0.26,null," ",null,null,null,null,null,null,null,null,null,null,null,null,null,null,null,null,null,0.254,0.26,0.26,null,0.26,null,{"$f":"IF(AC350<>\" \",IF(AC350=AE350,\"\",\"XXXX\"),\"\")","v":""}]
["c) Indústria, oficinas e armazéns  ",null,null,null,null,null,0.21,null," ",null,null,null,null,null,null,null,null,null,null,null,null,null,null,null,null,null,0.20399999999999999,0.21,0.21,null,0.21,null,""]
["d) Equipamentos de utilização colectiva não integrado em empreendimentos turísticos",null,null,null,null,null,0.18,null," ",null,null,null,null,null,null,null,null,null,null,null,null,null,null,null,null,null,0.18,0.18,0.18,null,0.18,null,""]
["e) Áreas de aparcamento, de circulação automóvel, arrumos, anexos e áreas técnicas em subsolo",null,null,null,null,null,0.18,null," ",null,null,null,null,null,null,null,null,null,null,null,null,null,null,null,null,null,0.18,0.18,0.18,null,0.18,null,""]
["f) Instalações destinadas exclusivamente a uso agrícola ",null,null,null,null,null,0.18,null," ",null,null,null,null,null,null,null,null,null,null,null,null,null,null,null,null,null,0.18,0.18,0.18,null,0.18,null,""]
["g) Telheiros, alpendres e semelhantes",null,null,null,null,null,0.18,null," ",null,null,null,null,null,null,null,null,null,null,null,null,null,null,null,null,null,0.18,0.18,0.18,null,0.18,null,""]
["2.4 Por m³ de tanques, cubas e outros depósitos ",null,null,null,null,null,1.88,null," ",null,null,null,null,null,null,null,null,null,null,null,null,null,null,null,null,null,1.85,1.87,{"$f":"IFERROR(IF(AB356>0,ROUND(AB356*$AC$97,2),\" \"),\"\")","v":1.88},null,{"$f":"IFERROR(ROUND(AC356,2),\"\")","v":1.88},null,""]
["2.5 Por m³ de piscinas  ",null,null,null,null,null,3.88,null," ",null,null,null,null,null,null,null,null,null,null,null,null,null,null,null,null,null,3.82,3.86,3.88,null,3.88,null,""]
["3. Renovação:               ",null,null,null,null,null,"",null,null,null,null,null,null,null,null,null,null,null,null,null,null,null,null,null,null,null,null,"","",null,"",null,""]
["a) do pedido de informação prévia ",null,null,null,null,null,66.55,null," ",null,null,null,null,null,null,null,null,null,null,null,null,null,null,null,null,null,65.56,66.28,66.55,null,66.55,null,""]
["b) do alvará de utilização ",null,null,null,null,null,{"$f":"AE360","v":66.55},null," ",null,null,null,null,null,null,null,null,null,null,null,null,null,null,null,null,null,65.56,66.28,66.55,null,66.55,null,""]
["TOTAL:",null,null,null,null,null,null,null,{"$f":"SUM(I344:I360)","v":0},null,null,null,null,null,null,null,null,null,null,null,null,null,null,null,null,null,null,"","",null,"",null,""]
[null,null,null,null,null,null,null,null,null,null,null,null,null,null,null,null,null,null,null,null,null,null,null,null,null,null,null,"","",null,"",null,""]
["SECÇÃO XIV\nEMISSÃO DE ALVARÁ DE LICENÇA OU AUTORIZAÇÃO DE UTILIZAÇÃO PARA ACTIVIDADES ESPECÍFICAS\n",null,null,null,null,null,null,null,null,null,null,null,null,null,null,null,null,null,null,null,null,null,null,null,null,null,null,"","",null,"",null,""]
[null,null,null,null,null,null,null,null,null,null,null,null,null,null,null,null,null,null,null,null,null,null,null,null,null,null,null,"","",null,"",null,""]
["1 - Emissão de alvará de licença ou autorização de utilização para restauração e/ou bebidas ",null,null,null,null,null,{"$f":"AE365","v":66.55},null,{"$f":"IF(H365=0,\" \",G365*H365)","v":" "},null,null,null,null,null,null,null,null,null,null,null,null,null,null,null,null,null,65.56,66.28,66.55,null,66.55,null,""]
["2 - Emissão de alvará de licença ou autorização de utilização para restauração e/ou bebidas que disponham ainda de sala ou de espaços destinados a dança, às taxas previstas no número anterior, acrescerá ainda a taxa correspondente à da licença de recinto, calculada nos termos do presente código regulamentar.",null,null,null,null,null,{"$f":"AE366","v":66.55},null," ",null,null,null,null,null,null,null,null,null,null,null,null,null,null,null,null,null,65.56,66.28,66.55,null,66.55,null,{"$f":"IF(AC366<>\" \",IF(AC366=AE366,\"\",\"XXXX\"),\"\")","v":""}]
["3 - Emissão da autorização extraordinária de prestação de serviços de restauração ou de bebidas com carácter esporádico e/ou ocasional, devidamente remunerada e anunciada junto ao público, em instalações amovíveis ou pré-fabricadas.",null,null,null,null,null,{"$f":"AE367","v":51.56},null,{"$f":"IF(H367=0,\" \",G367*H367)","v":" "},null,null,null,null,null,null,null,null,null,null,null,null,null,null,null,null,null,50.8,51.35,51.56,null,51.56,null,{"$f":"IF(AC367<>\" \",IF(AC367=AE367,\"\",\"XXXX\"),\"\")","v":""}]
["4 - Emissão da autorização de utilização para ginásios (health clubs)",null,null,null,null,null,120.58,null,{"$f":"IF(H368=0,\" \",G368*H368)","v":" "},null,null,null,null,null,null,null,null,null,null,null,null,null,null,null,null,null,118.79,120.1,120.58,null,120.58,null,""]
["5 - Emissão da autorização de utilização para Hotéis e outros estabelecimentos similares",null,null,null,null,null,120.58,null," ",null,null,null,null,null,null,null,null,null,null,null,null,null,null,null,null,null,118.79,120.1,120.58,null,120.58,null,""]
["6 - Emissão da autorização de utilização para Parques de campismo",null,null,null,null,null,{"$f":"AE370","v":149.21},null," ",null,null,null,null,null,null,null,null,null,null,null,null,null,null,null,null,null,146.99,148.62,149.21,null,149.21,null,""]
["TOTAL:",null,null,null,null,null,null,null,{"$f":"SUM(I365:I370)","v":0},null,null,null,null,null,null,null,null,null,null,null,null,null,null,null,null,null,null,"","",null,"",null,""]
[null,null,null,null,null,null,null,null,null,null,null,null,null,null,null,null,null,null,null,null,null,null,null,null,null,null,null,"","",null,"",null,""]
["SECÇÃO VII\nOPERAÇÕES DE DESTAQUE\n",null,null,null,null,null,null,null,null,null,null,null,null,null,null,null,null,null,null,null,null,null,null,null,null,null,null,"","",null,"",null,""]
[null,null,null,null,null,null,null,null,null,null,null,null,null,null,null,null,null,null,null,null,null,null,null,null,null,null,null,"","",null,"",null,""]
["Operações de destaque",null,null,null,null,null,null,null,null,null,null,null,null,null,null,null,null,null,null,null,null,null,null,null,null,null,null,"","",null,"",null,""]
["a) Por pedido ou reapreciação:",null,null,null,null,null,{"$f":"AE376","v":11.31},null,{"$f":"IF(H376=0,\" \",G376*H376)","v":" "},null,null,null,null,null,null,null,null,null,null,null,null,null,null,null,null,null,11.144,11.26,11.31,null,11.31,null,{"$f":"IF(AC376<>\" \",IF(AC376=AE376,\"\",\"XXXX\"),\"\")","v":""}]
["b) Pela emissão de certidão de destaque",null,null,null,null,null,{"$f":"AE377","v":51.56},null,{"$f":"IF(H377=0,\" \",G377*H377)","v":" "},null,null,null,null,null,null,null,null,null,null,null,null,null,null,null,null,null,50.8,51.35,51.56,null,51.56,null,{"$f":"IF(AC377<>\" \",IF(AC377=AE377,\"\",\"XXXX\"),\"\")","v":""}]
["Total:",null,null,null,null,null,null,null,{"$f":"SUM(I375:I377)","v":0},null,null,null,null,null,null,null,null,null,null,null,null,null,null,null,null,null,null,"","",null,"",null,""]
[null,null,null,null,null,null,null,null,null,null,null,null,null,null,null,null,null,null,null,null,null,null,null,null,null,null,null,"","",null,"",null,""]
[null,null,null,null,null,null,null,null,null,null,null,null,null,null,null,null,null,null,null,null,null,null,null,null,null,null,null,"","",null,"",null,""]
[null,null,null,null,null,null,null,null,null,null,null,null,null,null,null,null,null,null,null,null,null,null,null,null,null,null,null,"","",null,"",null,""]
[null,null,null,null,null,null,null,null,{"$f":"IF(H382=0,\" \",G382*H382)","v":" "},null,null,null,null,null,null,null,null,null,null,null,null,null,null,null,null,null,null,"","",null,"",null,""]
[null,null,null,null,null,null,null,null," ",null,null,null,null,null,null,null,null,null,null,null,null,null,null,null,null,null,null,"","",null,"",null,""]
["TOTAL:",null,null,null,null,null,null,null,null,null,null,null,null,null,null,null,null,null,null,null,null,null,null,null,null,null,null,"","",null,"",null,""]
[null,null,null,null,null,null,null,null,null,null,null,null,null,null,null,null,null,null,null,null,null,null,null,null,null,null,null,"","",null,"",null,""]
["SECÇÃO IX\nFICHAS TÉCNICAS DE HABITAÇÃO\n",null,null,null,null,null,null,null,null,null,null,null,null,null,null,null,null,null,null,null,null,null,null,null,null,null,null,"","",null,"",null,""]
[null,null,null,null,null,null,null,null,null,null,null,null,null,null,null,null,null,null,null,null,null,null,null,null,null,null,null,"","",null,"",null,""]
["1 - Depósito de cada exemplar da Ficha Técnica de Habitação",null,null,null,null,null,{"$f":"AE388","v":17.63},null,{"$f":"IF(H388=0,\" \",G388*H388)","v":" "},null,null,null,null,null,null,null,null,null,null,null,null,null,null,null,null,null,17.37,17.559999999999999,17.63,null,17.63,null,""]
["TOTAL:",null,null,null,null,null,null,null,{"$f":"SUM(I388:I388)","v":0},null,null,null,null,null,null,null,null,null,null,null,null,null,null,null,null,null,null,"","",null,"",null,""]
[null,null,null,null,null,null,null,null,null,null,null,null,null,null,null,null,null,null,null,null,null,null,null,null,null,null,null,"","",null,"",null,""]
["SECÇÃO XI\nPROPRIEDADE HORIZONTAL",null,null,null,null,null,null,null,null,null,null,null,null,null,null,null,null,null,null,null,null,null,null,null,null,null,null,"","",null,"",null,""]
[null,null,null,null,null,null,null,null,null,null,null,null,null,null,null,null,null,null,null,null,null,null,null,null,null,null,null,"","",null,"",null,""]
["1 – Certificação de que o edifício satisfaz os requisitos legais para a sua constituição em regime de propriedade horizontal:",null,null,null,null,null,null,null,null,null,null,null,null,null,null,null,null,null,null,null,null,null,null,null,null,null,null,"","",null,"",null,""]
["a) Por cada fracção habitacional - cada 50m² ou fracção ",null,null,null,null,null,{"$f":"AE394","v":36.58},null,{"$f":"IF(H394=0,\" \",G394*H394)","v":" "},null,null,null,null,null,null,null,null,null,null,null,null,null,null,null,null,null,36.03,36.43,36.58,null,36.58,null,""]
["b) Por local de exercício de actividade comercial, industrial ou de profissão liberal – cada 50m² ou fracção",null,null,null,null,null,{"$f":"AE395","v":31.58},null,{"$f":"IF(H395=0,\" \",G395*H395)","v":" "},null,null,null,null,null,null,null,null,null,null,null,null,null,null,null,null,null,31.12,31.45,31.58,null,31.58,null,""]
["c) Por local de aparcamento, constituindo fracção autonoma - cada 15 m² ou fracção",null,null,null,null,null,19.100000000000001,null," ",null,null,null,null,null,null,null,null,null,null,null,null,null,null,null,null,null,18.809999999999999,19.02,19.100000000000001,null,19.100000000000001,null,""]
["d) Por cada garagem ou anexo, constituindo fracção autonoma - cada 15 m² ou fracção",null,null,null,null,null,19.100000000000001,null," ",null,null,null,null,null,null,null,null,null,null,null,null,null,null,null,null,null,18.809999999999999,19.02,19.100000000000001,null,19.100000000000001,null,{"$f":"IF(AC397<>\" \",IF(AC397=AE397,\"\",\"XXXX\"),\"\")","v":""}]
["2 - Declaração de cumprimento dos requisitos legais para alteração da composição da propriedade horizontal ou destino das fracções:",null,null,null,null,null,"",null,null,null,null,null,null,null,null,null,null,null,null,null,null,null,null,null,null,null,null,"","",null,"",null,{"$f":"IF(AC398<>\" \",IF(AC398=AE398,\"\",\"XXXX\"),\"\")","v":""}]
["a) Por rectificação das fracções – por cada fracção alterada ou rectificada",null,null,null,null,null,21.59,null,{"$f":"IF(H399=0,\" \",G399*H399)","v":" "},null,null,null,null,null,null,null,null,null,null,null,null,null,null,null,null,null,21.274999999999999,21.5,21.59,null,21.59,null,""]
["b) Por rectificação das partes comuns – por cada rectificação ou alteração",null,null,null,null,null,21.59,null," ",null,null,null,null,null,null,null,null,null,null,null,null,null,null,null,null,null,21.274999999999999,21.5,21.59,null,21.59,null,""]
["TOTAL:",null,null,null,null,null,null,null,{"$f":"SUM(I394:I397,I399:I400)","v":0},null,null,null,null,null,null,null,null,null,null,null,null,null,null,null,null,null,null,"","",null,"",null,""]
[null,null,null,null,null,null,null,null,null,null,null,null,null,null,null,null,null,null,null,null,null,null,null,null,null,null,null,"","",null,"",null,""]
["SECÇÃO X\nINFORMAÇÃO URBANA ",null,null,null,null,null,null,null,null,null,null,null,null,null,null,null,null,null,null,null,null,null,null,null,null,null,null,"","",null,"",null,""]
[null,null,null,null,null,null,null,null,null,null,null,null,null,null,null,null,null,null,null,null,null,null,null,null,null,null,null,"","",null,"",null,""]
["1 - Marcação de alinhamento e nivelamento, em terreno confinante com a via pública ou outro - por cada 10 metros lineares ou fracção.",null,null,null,null,null,{"$f":"AE405","v":66.47},null,{"$f":"IF(H405=0,\" \",G405*H405)","v":" "},null,null,null,null,null,null,null,null,null,null,null,null,null,null,null,null,null,65.48,66.209999999999994,66.47,null,66.47,null,""]
["2.Fornecimento de informação impressa em suporte analógico (Papel comum)",null,null,null,null,null,{"$f":"AE406","v":""},null,null,null,null,null,null,null,null,null,null,null,null,null,null,null,null,null,null,null,null,"","",null,"",null,""]
["2.1. Cartografia base - Esc.  1/10 000",null,null,null,null,null,{"$f":"AE407","v":""},null,null,null,null,null,null,null,null,null,null,null,null,null,null,null,null,null,null,null,null,"","",null,"",null,""]
["a) MNC/MNT ",null,null,null,null,null,"",null,null,null,null,null,null,null,null,null,null,null,null,null,null,null,null,null,null,null,null,"","",null,"",null,{"$f":"IF(AC408<>\" \",IF(AC408=AE408,\"\",\"XXXX\"),\"\")","v":""}]
["a1) Por cada m²",null,null,null,null,null,61.47,null,{"$f":"IF(H409=0,\" \",G409*H409)","v":" "},null,null,null,null,null,null,null,null,null,null,null,null,null,null,null,null,null,60.56,61.23,61.47,null,61.47,null,{"$f":"IF(AC409<>\" \",IF(AC409=AE409,\"\",\"XXXX\"),\"\")","v":""}]
["2.2. Cartografia base  - Esc. 1/2 000 ",null,null,null,null,null,"",null,null,null,null,null,null,null,null,null,null,null,null,null,null,null,null,null,null,null,null,"","",null,"",null,""]
["a) MNC/MNT ",null,null,null,null,null,"",null,null,null,null,null,null,null,null,null,null,null,null,null,null,null,null,null,null,null,null,"","",null,"",null,""]
["a1) Por cada m²",null,null,null,null,null,71.459999999999994,null," ",null,null,null,null,null,null,null,null,null,null,null,null,null,null,null,null,null,70.41,71.180000000000007,71.459999999999994,null,71.459999999999994,null,""]
["3. - Extractos de Mapa de Ruído   ( formato A4 )",null,null,null,null,null,"",null,null,null,null,null,null,null,null,null,null,null,null,null,null,null,null,null,null,null,null,"","",null,"",null,""]
["a) Indicador  Lden ",null,null,null,null,null,3.73,null," ",null,null,null,null,null,null,null,null,null,null,null,null,null,null,null,null,null,3.68,3.72,3.73,null,3.73,null,""]
["b) Indicador  Ln ",null,null,null,null,null,3.73,null," ",null,null,null,null,null,null,null,null,null,null,null,null,null,null,null,null,null,3.68,3.72,3.73,null,3.73,null,""]
["4.-Extractos de PMOT..",null,null,null,null,null,"",null,null,null,null,null,null,null,null,null,null,null,null,null,null,null,null,null,null,null,null,"","",null,"",null,""]
["a)  Formato A4",null,null,null,null,null,4.4800000000000004,null," ",null,null,null,null,null,null,null,null,null,null,null,null,null,null,null,null,null,4.41,4.46,4.4800000000000004,null,4.4800000000000004,null,""]
["b)  Formato A3",null,null,null,null,null,5.8,null," ",null,null,null,null,null,null,null,null,null,null,null,null,null,null,null,null,null,5.72,5.78,5.8,null,5.8,null,""]
["c) Outros formatos por cada m²",null,null,null,null,null,61.47,null,null,null,null,null,null,null,null,null,null,null,null,null,null,null,null,null,null,null,60.56,61.23,61.47,null,61.47,null,""]
["5.  Plantas de localização",null,null,null,null,null,"",null,null,null,null,null,null,null,null,null,null,null,null,null,null,null,null,null,null,null,null,"",{"$f":"IFERROR(IF(AB420>0,ROUND(AB420*$AC$97,2),\" \"),\"\")","v":""},null,{"$f":"IFERROR(ROUND(AC420,2),\"\")","v":""},null,""]
["a) Formato A4",null,null,null,null,null,3.23,null," ",null,null,null,null,null,null,null,null,null,null,null,null,null,null,null,null,null,3.1850000000000001,3.22,3.23,null,3.23,null,""]
["b) Formato A3",null,null,null,null,null,4.55,null," ",null,null,null,null,null,null,null,null,null,null,null,null,null,null,null,null,null,4.4800000000000004,4.53,4.55,null,4.55,null,""]
["c) Outros formatos por cada m²",null,null,null,null,null,61.47,null," ",null,null,null,null,null,null,null,null,null,null,null,null,null,null,null,null,null,60.56,61.23,61.47,null,61.47,null,""]
["6.- Extractos de Ortofotomapas",null,null,null,null,null,"",null,null,null,null,null,null,null,null,null,null,null,null,null,null,null,null,null,null,null,null,"","",null,"",null,""]
["a) Formato A4",null,null,null,null,null,5.8,null," ",null,null,null,null,null,null,null,null,null,null,null,null,null,null,null,null,null,5.72,5.78,5.8,null,5.8,null,""]
["b)  Formato A3 ",null,null,null,null,null,7.12,null," ",null,null,null,null,null,null,null,null,null,null,null,null,null,null,null,null,null,7.01,7.09,7.12,null,7.12,null,{"$f":"IF(AC426<>\" \",IF(AC426=AE426,\"\",\"XXXX\"),\"\")","v":""}]
["c)Outros formatos por cada m²",null,null,null,null,null,61.47,null," ",null,null,null,null,null,null,null,null,null,null,null,null,null,null,null,null,null,60.56,61.23,61.47,null,61.47,null,{"$f":"IF(AC427<>\" \",IF(AC427=AE427,\"\",\"XXXX\"),\"\")","v":""}]
["7. -Ext. de Mapas/Cartas e Plan. Div.",null,null,null,null,null,"",null,null,null,null,null,null,null,null,null,null,null,null,null,null,null,null,null,null,null,null,"","",null,"",null,""]
["a) Formato  A4",null,null,null,null,null,5.8,null," ",null,null,null,null,null,null,null,null,null,null,null,null,null,null,null,null,null,5.72,5.78,5.8,null,5.8,null,""]
["b)  Formato A3",null,null,null,null,null,7.12,null," ",null,null,null,null,null,null,null,null,null,null,null,null,null,null,null,null,null,7.01,7.09,7.12,null,7.12,null,""]
["c)  Outros formatos - por cada m²",null,null,null,null,null,61.47,null," ",null,null,null,null,null,null,null,null,null,null,null,null,null,null,null,null,null,60.56,61.23,61.47,null,61.47,null,""]
["8. - Fornecimento de informação em suporte magnético:",null,null,null,null,null,"",null,null,null,null,null,null,null,null,null,null,null,null,null,null,null,null,null,null,null,null,"","",null,"",null,""]
["8.1 - Cartografia Base - esc. 1/10 000, por hectare    ",null,null,null,null,null,"",null,null,null,null,null,null,null,null,null,null,null,null,null,null,null,null,null,null,null,null,"","",null,"",null,""]
["a) MNC/MNT",null,null,null,null,null,"",null,null,null,null,null,null,null,null,null,null,null,null,null,null,null,null,null,null,null,null,"","",null,"",null,""]
["Se área menor que 5 Hectares",null,null,null,null,null,0.67,null,{"$f":"IF(H435=0,\" \",G435*H435)","v":" "},null,null,null,null,null,null,null,null,null,null,null,null,null,null,null,null,null,0.66,0.67,0.67,null,0.67,null,""]
["Entre 5 Hectares a 100 Hectares    ",null,null,null,null,null,0.14000000000000001,null," ",null,null,null,null,null,null,null,null,null,null,null,null,null,null,null,null,null,0.14000000000000001,0.14000000000000001,0.14000000000000001,null,0.14000000000000001,null,""]
["Se área maior ou igual a 100 Hectares",null,null,null,null,null,7.0000000000000007E-2,null," ",null,null,null,null,null,null,null,null,null,null,null,null,null,null,null,null,null,7.0000000000000007E-2,7.0000000000000007E-2,7.0000000000000007E-2,null,7.0000000000000007E-2,null,""]
["8.2 - Cartografia base - escala 1/2 000. por hectare",null,null,null,null,null,"",null,null,null,null,null,null,null,null,null,null,null,null,null,null,null,null,null,null,null,null,"","",null,"",null,""]
["a) MNC/MNT",null,null,null,null,null,"",null,null,null,null,null,null,null,null,null,null,null,null,null,null,null,null,null,null,null,null,"","",null,"",null,""]
["Se área menor que 5 Hectares",null,null,null,null,null,1.66,null," ",null,null,null,null,null,null,null,null,null,null,null,null,null,null,null,null,null,1.63,1.65,1.66,null,1.66,null,""]
["Entre 5 Hectares a 100 Hectares    ",null,null,null,null,null,1.1299999999999999,null," ",null,null,null,null,null,null,null,null,null,null,null,null,null,null,null,null,null,1.115,1.1299999999999999,1.1299999999999999,null,1.1299999999999999,null,""]
["Se área maior ou igual a 100 Hectares",null,null,null,null,null,0.56999999999999995,null," ",null,null,null,null,null,null,null,null,null,null,null,null,null,null,null,null,null,0.55800000000000005,0.56999999999999995,0.56999999999999995,null,0.56999999999999995,null,""]
["8.3 - Ortofotos / imagens áreas, por Hectare",null,null,null,null,null,"",null,null,null,null,null,null,null,null,null,null,null,null,null,null,null,null,null,null,null,null,"","",null,"",null,{"$f":"IF(AC443<>\" \",IF(AC443=AE443,\"\",\"XXXX\"),\"\")","v":""}]
["Se área menor que 5 Hectares",null,null,null,null,null,0.67,null," ",null,null,null,null,null,null,null,null,null,null,null,null,null,null,null,null,null,0.66,0.67,0.67,null,0.67,null,{"$f":"IF(AC444<>\" \",IF(AC444=AE444,\"\",\"XXXX\"),\"\")","v":""}]
["Entre 5 Hectares a 100 Hectares",null,null,null,null,null,0.14000000000000001,null," ",null,null,null,null,null,null,null,null,null,null,null,null,null,null,null,null,null,0.14000000000000001,0.14000000000000001,0.14000000000000001,null,0.14000000000000001,null,""]
["Se área maior ou igual a 100 Hectares",null,null,null,null,null,7.0000000000000007E-2,null," ",null,null,null,null,null,null,null,null,null,null,null,null,null,null,null,null,null,7.0000000000000007E-2,7.0000000000000007E-2,7.0000000000000007E-2,null,7.0000000000000007E-2,null,""]
["8.4 - Informação rasterizada, geo-referenciada, por cada m²",null,null,null,null,null,45.61,null," ",null,null,null,null,null,null,null,null,null,null,null,null,null,null,null,null,null,44.94,45.43,45.61,null,45.61,null,""]
["9. -Outros temas/informação geográfica diversa, por m²",null,null,null,null,null,45.61,null," ",null,null,null,null,null,null,null,null,null,null,null,null,null,null,null,null,null,44.94,45.43,45.61,null,45.61,null,""]
["10 - Junção oficiosa de elementos instrutórios ao abrigo do nº 2 do artigo 11º do Dec. 555/99, de 16 de Dezembro na redacção da Lei nº 60/2007 de 4 de Setembro - 1,5 do valor da taxa devida por cada.",null,null,null,null,null,null,null,null,null,null,null,null,null,null,null,null,null,null,null,null,null,null,null,null,null,null,"","",null,"",null,""]
["TOTAL:",null,null,null,null,null,null,null,{"$f":"SUM(I405:I449)","v":0},null,null,null,null,null,null,null,null,null,null,null,null,null,null,null,null,null,null,"","",null,"",null,""]
[null,null,null,null,null,null,null,null,null,null,null,null,null,null,null,null,null,null,null,null,null,null,null,null,null,null,null,"","",null,"",null,""]
["ANEXO 5   CAPITULO V\nAMBIENTE",null,null,null,null,null,null,null,null,null,null,null,null,null,null,null,null,null,null,null,null,null,null,null,null,null,null,"","",null,"",null,""]
[null,null,null,null,null,null,null,null,null,null,null,null,null,null,null,null,null,null,null,null,null,null,null,null,null,null,null,"","",null,"",null,{"$f":"IF(AC453<>\" \",IF(AC453=AE453,\"\",\"XXXX\"),\"\")","v":""}]
["SECÇÃO  II \nLICENÇAS ESPECIAIS DE RUÍDO\n",null,null,null,null,null,null,null,null,null,null,null,null,null,null,null,null,null,null,null,null,null,null,null,null,null,null,"","",null,"",null,{"$f":"IF(AC454<>\" \",IF(AC454=AE454,\"\",\"XXXX\"),\"\")","v":""}]
["1 - Emissão de licenças especiais de ruído para o exercício de actividades ruidosas de carácter temporário em:",null,null,null,null,null,null,null,null,null,null,null,null,null,null,null,null,null,null,null,null,null,null,null,null,null,null,"","",null,"",null,""]
["1.1 Dias úteis e por hora:",null,null,null,null,null,{"$f":"AE456","v":""},null,{"$f":"IF(H456=0,\" \",G456*H456)","v":" "},null,null,null,null,null,null,null,null,null,null,null,null,null,null,null,null,null,null,"","",null,"",null,""]
["a ) Das 7 às 20 horas",null,null,null,null,null,{"$f":"AE457","v":8.48},null,{"$f":"IF(H457=0,\" \",G457*H457)","v":" "},null,null,null,null,null,null,null,null,null,null,null,null,null,null,null,null,null,8.36,8.4499999999999993,8.48,null,8.48,null,""]
["b ) Das 20 às 23 horas",null,null,null,null,null,11.09,null," ",null,null,null,null,null,null,null,null,null,null,null,null,null,null,null,null,null,10.92,11.05,11.09,null,11.09,null,""]
["c ) Das 23 às 7 horas",null,null,null,null,null,"",null,null,null,null,null,null,null,null,null,null,null,null,null,null,null,null,null,null,null,null,"","",null,"",null,""]
["c.1 ) 1º hora ",null,null,null,null,null,13.7,null,{"$f":"IF(H460=0,\" \",G460*H460)","v":" "},null,null,null,null,null,null,null,null,null,null,null,null,null,null,null,null,null,13.49,13.65,13.7,null,13.7,null,""]
["c.2 ) 2º hora",null,null,null,null,null,16.3,null," ",null,null,null,null,null,null,null,null,null,null,null,null,null,null,null,null,null,16.059999999999999,16.239999999999998,16.3,null,16.3,null,""]
["c.3 ) 3º hora e seguintes",null,null,null,null,null,18.91,null," ",null,null,null,null,null,null,null,null,null,null,null,null,null,null,null,null,null,18.63,18.829999999999998,18.91,null,18.91,null,""]
["1.2  Sábados, Domingos e Feriados - por hora",null,null,null,null,null,18.91,null," ",null,null,null,null,null,null,null,null,null,null,null,null,null,null,null,null,null,18.63,18.829999999999998,18.91,null,18.91,null,""]
["2 - Pela emissão de licenças especiais de ruído para a realização de obras de construção civil é fixado um valor máximo por mês de 250 €",null,null,null,null,null,250,null," ",null,null,null,null,null,null,null,null,null,null,null,null,null,null,null,null,null,250,252.75,250,null,250,null,""]
["TOTAL:",null,null,null,null,null,null,null,{"$f":"SUM(I457:I458,I460:I464)","v":0},null,null,null,null,null,null,null,null,null,null,null,null,null,null,null,null,null,null,"","",null,"",null,""]
[null,null,null,null,null,null,null,null,null,null,null,null,null,null,null,null,null,null,null,null,null,null,null,null,null,null,null,"","",null,"",null,""]
["ANEXO 5   CAPÍTULO VIII\nOCUPAÇÃO DE DOMÍNIO PÚBLICO",null,null,null,null,null,null,null,null,null,null,null,null,null,null,null,null,null,null,null,null,null,null,null,null,null,null,"","",null,"",null,""]
[null,null,null,null,null,null,null,null,null,null,null,null,null,null,null,null,null,null,null,null,null,null,null,null,null,null,null,"","",null,"",null,""]
["SECÇÃO I\nOCUPAÇÃO DA VIA PÚBLICA POR MOTIVO DE OBRAS",null,null,null,null,null,null,null,null,null,null,null,null,null,null,null,null,null,null,null,null,null,null,null,null,null,null,"","",null,"",null,""]
[null,null,null,null,null,null,null,null,null,null,null,null,null,null,null,null,null,null,null,null,null,null,null,null,null,null,null,"","",null,"",null,{"$f":"IF(AC470<>\" \",IF(AC470=AE470,\"\",\"XXXX\"),\"\")","v":""}]
["1. Por cada alvará de licença ou autorização",null,null,null,null,null,{"$f":"AE471","v":5.35},null,{"$f":"IF(H471=0,\" \",G471*H471)","v":" "},null,null,null,null,null,null,null,null,null,null,null,null,null,null,null,null,null,5.27,5.33,5.35,null,5.35,null,{"$f":"IF(AC471<>\" \",IF(AC471=AE471,\"\",\"XXXX\"),\"\")","v":""}]
["2. Averbamento",null,null,null,null,null,{"$f":"AE472","v":5.35},null," ",null,null,null,null,null,null,null,null,null,null,null,null,null,null,null,null,null,5.27,5.33,5.35,null,5.35,null,""]
["3. Ocupacão da via pública, em zona de estacionamento Condicionado, por dia e m²",null,null,null,null,null,{"$f":"AE473","v":""},null,null,null,null,null,null,null,null,null,null,null,null,null,null,null,null,null,null,null,null,"","",null,"",null,""]
["a) até 30 dias",null,null,null,null,null,0.39,null," ",null,null,null,null,null,null,null,null,null,null,null,null,null,null,null,null,null,0.39,0.39,0.39,null,0.39,null,""]
["b) de 31 dias até 60 dias",null,null,null,null,null,0.42,null," ",null,null,null,null,null,null,null,null,null,null,null,null,null,null,null,null,null,0.42,0.42,0.42,null,0.42,null,""]
["c) mais de 60 dias",null,null,null,null,null,0.45,null," ",null,null,null,null,null,null,null,null,null,null,null,null,null,null,null,null,null,0.44,0.45,0.45,null,0.45,null,""]
["4. Ocupação da via pública em área urbana, por dia e por m²",null,null,null,null,null,"",null,null,null,null,null,null,null,null,null,null,null,null,null,null,null,null,null,null,null,null,"","",null,"",null,""]
["a) até 30 dias",null,null,null,null,null,0.27,null," ",null,null,null,null,null,null,null,null,null,null,null,null,null,null,null,null,null,0.27,0.27,0.27,null,0.27,null,""]
["b) de 31 dias até 60 dias",null,null,null,null,null,0.3,null," ",null,null,null,null,null,null,null,null,null,null,null,null,null,null,null,null,null,0.3,0.3,0.3,null,0.3,null,""]
["c) mais de 60 dias",null,null,null,null,null,0.33,null," ",null,null,null,null,null,null,null,null,null,null,null,null,null,null,null,null,null,0.33,0.33,0.33,null,0.33,null,""]
["5. Ocupação da via pública fora de área urbana por dia e por m²",null,null,null,null,null,"",null,null,null,null,null,null,null,null,null,null,null,null,null,null,null,null,null,null,null,null,"","",null,"",null,""]
["a) até 30 dias",null,null,null,null,null,0.23,null," ",null,null,null,null,null,null,null,null,null,null,null,null,null,null,null,null,null,0.22,0.23,0.23,null,0.23,null,""]
["b) de 31 dias até 60 dias",null,null,null,null,null,0.26,null," ",null,null,null,null,null,null,null,null,null,null,null,null,null,null,null,null,null,0.25,0.26,0.26,null,0.26,null,""]
["c) mais de 60 dias",null,null,null,null,null,0.27,null," ",null,null,null,null,null,null,null,null,null,null,null,null,null,null,null,null,null,0.27,0.27,{"$f":"IFERROR(IF(AB484>0,ROUND(AB484*$AC$97,2),\" \"),\"\")","v":0.27},null,{"$f":"IFERROR(ROUND(AC484,2),\"\")","v":0.27},null,""]
["TOTAL:",null,null,null,null,null,null,null,{"$f":"IF(H471=0,\" \",SUM(I471:I472,I474:I476,I478:I480,I482:I484))","v":" "},null,null,null,null,null,null,null,null,null,null,null,null,null,null,null,null,null,null,"","",null,"",null,""]
[null,null,null,null,null,null,null,null,null,null,null,null,null,null,null,null,null,null,null,null,null,null,null,null,null,null,null,"","",null,"",null,""]
[null,null,null,null,null,null,null,null,null,null,null,null,null,null,null,null,null,null,null,null,null,null,null,null,null,null,null,"","",null,"",null,""]
[null,null,null,null,null,null,null,null,null,null,null,null,null,null,null,null,null,null,null,null,null,null,null,null,null,null,null,"","",null,"",null,""]
["SECÇÃO VI\nINFRA-ESTRUTURAS DE RADIOCOMUNICAÇÕES E AEROGERADORES\n",null,null,null,null,null,null,null,null,null,null,null,null,null,null,null,null,null,null,null,null,null,null,null,null,null,null,"","",null,"",null,""]
[null,null,null,null,null,null,null,null,null,null,null,null,null,null,null,null,null,null,null,null,null,null,null,null,null,null,null,"","",null,"",null,""]
["1.Instalação de infra-estruturas de suporte de radiocomunicações e respectivos acessórios",null,null,null,null,null,null,null,null,null,null,null,null,null,null,null,null,null,null,null,null,null,null,null,null,null,null,"","",null,"",null,""]
["a) Autorização normal",null,null,null,null,null,{"$f":"AE492","v":157.08000000000001},null,{"$f":"IF(H492=0,\" \",G492*H492)","v":" "},null,null,null,null,null,null,null,null,null,null,null,null,null,null,null,null,null,154.75,156.44999999999999,157.08000000000001,null,157.08000000000001,null,""]
["b) Autorização limitada, por cada ano ou fracção",null,null,null,null,null,{"$f":"AE493","v":34.31},null,{"$f":"IF(H493=0,\" \",G493*H493)","v":" "},null,null,null,null,null,null,null,null,null,null,null,null,null,null,null,null,null,33.81,34.17,34.31,null,34.31,null,""]
["2. Instalação de aerogeradores, por cada",null,null,null,null,null,98.3,null," ",null,null,null,null,null,null,null,null,null,null,null,null,null,null,null,null,null,96.86,97.91,98.3,null,98.3,null,""]
["TOTAL:",null,null,null,null,null,null,null,{"$f":"SUM($I$492:$I$494)","v":0},null,null,null,null,null,null,null,null,null,null,null,null,null,null,null,null,null,null,"","",null,"",null,""]
[null,null,null,null,null,null,null,null,null,null,null,null,null,null,null,null,null,null,null,null,null,null,null,null,null,null,null,"","",null,"",null,""]
["SECÇÃO VII\nPARECERES, LICENÇAS OU AUTORIZAÇÕES DIVERSOS",null,null,null,null,null,null,null,null,null,null,null,null,null,null,null,null,null,null,null,null,null,null,null,null,null,null,"","",null,"",null,""]
[null,null,null,null,null,null,null,null,null,null,null,null,null,null,null,null,null,null,null,null,null,null,null,null,null,null,null,"","",null,"",null,""]
["1 - Parecer sobre a utilização de explosivos",null,null,null,null,null,{"$f":"AE499","v":41.42},null,{"$f":"IF(H499=0,\" \",G499*H499)","v":" "},null,null,null,null,null,null,null,null,null,null,null,null,null,null,null,null,null,40.81,41.25,41.42,null,41.42,null,""]
["2 - Parecer no âmbito de projectos florestais, por hectare",null,null,null,null,null,{"$f":"AE500","v":9.19},null," ",null,null,null,null,null,null,null,null,null,null,null,null,null,null,null,null,null,9.06,9.15,9.19,null,9.19,null,""]
["3 - Taxa pela emissão urgente de pareceres, licenças e autorizações policiais diversas, acresce 50% do valor devido pela taxa normal",null,null,null,null,null,0.5,null," ",null,null,null,null,null,null,null,null,null,null,null,null,null,null,null,null,null,null,"","",null,"",null,""]
["4 - Vedações provisórias destinadas a vedar terrenos confinantes com a via pública - por metro linear ou  fracção e por ano",null,null,null,null,null,{"$f":"AE502","v":1.61},null," ",null,null,null,null,null,null,null,null,null,null,null,null,null,null,null,null,null,1.58,1.6,1.61,null,1.61,null,""]
["5 - Outros pareceres ou licenças ou autorizações não especificadas",null,null,null,null,null,{"$f":"AE503","v":93.56},null," ",null,null,null,null,null,null,null,null,null,null,null,null,null,null,null,null,null,92.18,93.19,93.56,null,93.56,null,""]
["6 - Pedido de reapreciação por caducidade da licença ou autorização",null,null,null,null,null,37.04,null," ",null,null,null,null,null,null,null,null,null,null,null,null,null,null,null,null,null,36.49,36.89,37.04,null,37.04,null,""]
["TOTAL:",null,null,null,null,null,null,null,{"$f":"SUM(I499:I504)","v":0},null,null,null,null,null,null,null,null,null,null,null,null,null,null,null,null,null,null,"","",null,"",null,""]
[null,null,null,null,null,null,null,null,null,null,null,null,null,null,null,null,null,null,null,null,null,null,null,null,null,null,null,"","",null,"",null,""]
["ANEXO 5   CAPÍTULO I\nSECRETARIA",null,null,null,null,null,null,null,null,null,null,null,null,null,null,null,null,null,null,null,null,null,null,null,null,null,null,"","",null,"",null,""]
[null,null,null,null,null,null,null,null,null,null,null,null,null,null,null,null,null,null,null,null,null,null,null,null,null,null,null,"","",null,"",null,""]
["1 - Afixações de editais relativos a pretensões que não sejam de interesse público - cada edital",null,null,null,null,null,{"$f":"AE509","v":6.53},null,{"$f":"IF(H509=0,\" \",G509*H509)","v":" "},null,null,null,null,null,null,null,null,null,null,null,null,null,null,null,null,null,6.4349999999999996,6.5,6.53,null,6.53,null,""]
["2 - Autos ou termos de qualquer espécie, não especialmente previstos na presente Tabela",null,null,null,null,null,{"$f":"AE510","v":7.06},null," ",null,null,null,null,null,null,null,null,null,null,null,null,null,null,null,null,null,6.9550000000000001,7.03,7.06,null,7.06,null,""]
["3 – Certidões de teor:",null,null,null,null,null,{"$f":"AE511","v":""},null,null,null,null,null,null,null,null,null,null,null,null,null,null,null,null,null,null,null,null,"","",null,"",null,""]
["3.1 - Não excedendo uma lauda – cada",null,null,null,null,null,5.35,null," ",null,null,null,null,null,null,null,null,null,null,null,null,null,null,null,null,null,5.27,5.33,5.35,null,5.35,null,""]
["3.2 - Por cada lauda além da primeira",null,null,null,null,null,2.98,null," ",null,null,null,null,null,null,null,null,null,null,null,null,null,null,null,null,null,2.93,2.97,2.98,null,2.98,null,""]
["4 - Certidões de narrativa, cada",null,null,null,null,null,17.2,null," ",null,null,null,null,null,null,null,null,null,null,null,null,null,null,null,null,null,16.940000000000001,17.13,17.2,null,17.2,null,""]
["4.1 - Por cada folha a mais ",null,null,null,null,null,10.09,null," ",null,null,null,null,null,null,null,null,null,null,null,null,null,null,null,null,null,9.94,10.050000000000001,10.09,null,10.09,null,""]
["5 - Conferência e autenticação de documentos - por cada página",null,null,null,null,null,4.16,null," ",null,null,null,null,null,null,null,null,null,null,null,null,null,null,null,null,null,4.0949999999999998,4.1399999999999997,4.16,null,4.16,null,""]
["6 - Fotocópias autenticadas de documentos ou processos em arquivo",null,null,null,null,null,"",null,null,null,null,null,null,null,null,null,null,null,null,null,null,null,null,null,null,null,null,"","",null,"",null,""]
["a) Formato A4 - por cada página",null,null,null,null,null,2.98,null," ",null,null,null,null,null,null,null,null,null,null,null,null,null,null,null,null,null,2.93,2.97,2.98,null,2.98,null,""]
["b) Formato A3 - por cada página",null,null,null,null,null,3.04,null," ",null,null,null,null,null,null,null,null,null,null,null,null,null,null,null,null,null,3,3.03,3.04,null,3.04,null,""]
["7 - Fotocópias autenticadas de documentos ou processos não arquivados",null,null,null,null,null,"",null," ",null,null,null,null,null,null,null,null,null,null,null,null,null,null,null,null,null,null,"","",null,"",null,""]
["a) Formato A4 - por cada página",null,null,null,null,null,1.79,null," ",null,null,null,null,null,null,null,null,null,null,null,null,null,null,null,null,null,1.76,1.78,1.79,null,1.79,null,""]
["b) Formato A3 - por cada página",null,null,null,null,null,1.86,null," ",null,null,null,null,null,null,null,null,null,null,null,null,null,null,null,null,null,1.83,1.85,1.86,null,1.86,null,""]
["8 - Fotocópias simples de documentos ou processos em arquivo",null,null,null,null,null,"",null,null,null,null,null,null,null,null,null,null,null,null,null,null,null,null,null,null,null,0,"","",null,"",null,""]
["a) Formato A4 - por cada página",null,null,null,null,null,0.3,null," ",null,null,null,null,null,null,null,null,null,null,null,null,null,null,null,null,null,0.29199999999999998,0.3,0.3,null,0.3,null,""]
["b) Formato A3 - por cada página",null,null,null,null,null,0.36,null," ",null,null,null,null,null,null,null,null,null,null,null,null,null,null,null,null,null,0.36,0.36,0.36,null,0.36,null,""]
["9 - Rubricas, em livros, processos e documentos, quando legalmente exigidos - cada rubrica",null,null,null,null,null,0.35,null," ",null,null,null,null,null,null,null,null,null,null,null,null,null,null,null,null,null,0.35,0.35,0.35,null,0.35,null,""]
["10 - Termos de abertura e encerramento em livros sujeitos a esta formalidade - cada livro",null,null,null,null,null,3.69,null," ",null,null,null,null,null,null,null,null,null,null,null,null,null,null,null,null,null,3.63,3.68,3.69,null,3.69,null,""]
["11 - Termos de entrega de documentos juntos a processos, cuja restituição haja sido autorizada – cada",null,null,null,null,null,1.79,null," ",null,null,null,null,null,null,null,null,null,null,null,null,null,null,null,null,null,1.76,1.78,1.79,null,1.79,null,""]
["12 - Reapreciação do pedido para emissão de segunda guia de recebimento, por falta de pagamento da guia originária no dia da sua emissão",null,null,null,null,null,17.72,null," ",null,null,null,null,null,null,null,null,null,null,null,null,null,null,null,null,null,17.46,17.649999999999999,17.72,null,17.72,null,""]
["13 - Fornecimento a pedido dos interessados de documentos necessários à substituição dos que tenham sido extraviados ou em mau estado",null,null,null,null,null,8.81,null," ",null,null,null,null,null,null,null,null,null,null,null,null,null,null,null,null,null,8.67,8.77,8.81,null,8.81,null,""]
["14 - Fornecimento de cópias de programas de concurso e respectivos anexos, cadernos de encargos de empreitadas ou fornecimentos de bens ou serviços, quando a taxa não esteja estabelecida no próprio procedimento concursal:",null,null,null,null,null,22.75,null," ",null,null,null,null,null,null,null,null,null,null,null,null,null,null,null,null,null,22.41,22.66,22.75,null,22.75,null,""]
["a) Acresce por fotocópias formato A4 - cada",null,null,null,null,null,0.96,null," ",null,null,null,null,null,null,null,null,null,null,null,null,null,null,null,null,null,0.95,0.96,0.96,null,0.96,null,""]
["b) Acresce por fotocópias formato A3 - cada",null,null,null,null,null,1.01,null," ",null,null,null,null,null,null,null,null,null,null,null,null,null,null,null,null,null,1,1.01,1.01,null,1.01,null,""]
["c) Cópias em papel heliográfico ou papel normal - cada m2",null,null,null,null,null,21.54,null," ",null,null,null,null,null,null,null,null,null,null,null,null,null,null,null,null,null,21.22,21.45,21.54,null,21.54,null,""]
["d) Caderno de encargos em suporte magnético- 50% do valor correspondente ao custo do mesmo em papel.",null,null,null,null,null,0.5,null," ",null,null,null,null,null,null,null,null,null,null,null,null,null,null,null,null,null,null,"","",null,"",null,""]
["15 - Outros registos.",null,null,null,null,null,3.5,null," ",null,null,null,null,null,null,null,null,null,null,null,null,null,null,null,null,null,3.45,3.49,3.5,null,3.5,null,{"$f":"IF(AC536<>\" \",IF(AC536=AE536,\"\",\"XXXX\"),\"\")","v":""}]
["16 – Averbamentos não especialmente previstos neste código regulamentar",null,null,null,null,null,5.87,null," ",null,null,null,null,null,null,null,null,null,null,null,null,null,null,null,null,null,5.79,5.85,5.87,null,5.87,null,""]
["17 - Alvarás não especialmente previstos no presente código regulamentar",null,null,null,null,null,8.24,null," ",null,null,null,null,null,null,null,null,null,null,null,null,null,null,null,null,null,8.1199999999999992,8.2100000000000009,8.24,null,8.24,null,""]
["18 - Atestados ou documentos análogos e suas confirmações",null,null,null,null,null,7.06,null," ",null,null,null,null,null,null,null,null,null,null,null,null,null,null,null,null,null,6.9550000000000001,7.03,7.06,null,7.06,null,""]
["19 - Requisição para emprego de substâncias explosivas",null,null,null,null,null,24.74,null," ",null,null,null,null,null,null,null,null,null,null,null,null,null,null,null,null,null,24.37,24.64,24.74,null,24.74,null,""]
["20 - Registo de alojamento local, previsto no art.º 343º, por cada",null,null,null,null,null,24.74,null," ",null,null,null,null,null,null,null,null,null,null,null,null,null,null,null,null,null,24.37,24.64,24.74,null,24.74,null,""]
["21 - Outros serviços ou actos não especialmente previstos nesta tabela ou em legislação especial.",null,null,null,null,null,22.25,null," ",null,null,null,null,null,null,null,null,null,null,null,null,null,null,null,null,null,21.92,22.16,22.25,null,22.25,null,""]
["22 - Certidões de dispensa de licença de habitabilidade e outras relacionadas com operações urbanísticas",null,null,null,null,null,53.2,null," ",null,null,null,null,null,null,null,null,null,null,null,null,null,null,null,null,null,52.405000000000001,52.99,53.2,null,53.2,null,""]
["TOTAL:",null,null,null,null,null,null,null,{"$f":"SUM(I509:I510,I512:I516,I518:I522,I524:I543)","v":0},null,null,null,null,null,null,null,null,null,null,null,null,null,null,null,null,null,null,"","",null,"",null,""]
[null,null,null,null,null,null,null,null,null,null,null,null,null,null,null,null,null,null,null,null,null,null,null,null,null,null,null,"","",null,"",null,""]
["TABELA DE PREÇOS CAPÍTULO I\nSECRETARIA",null,null,null,null,null,null,null,null,null,null,null,null,null,null,null,null,null,null,null,null,null,null,null,null,null,null,"","",null,"",null,""]
[null,null,null,null,null,null,null,null,null,null,null,null,null,null,null,null,null,null,null,null,null,null,null,null,null,null,null,"","",null,"",null,""]
["IV - Avisos, livros e outros:",null,null,null,null,null,null,null,null,null,null,null,null,null,null,null,null,null,null,null,null,null,null,null,null,null,null,"",{"$f":"IFERROR(IF(AB548>0,ROUND(AB548*$AC$97,2),\" \"),\"\")","v":""},null,{"$f":"IFERROR(ROUND(AC548,2),\"\")","v":""},null,""]
["a) Aviso de publicitação de obras de edificação, loteamentos e obras de urbanização",null,null,null,null,null,{"$f":"AE549","v":3.38},null,{"$f":"IF(H549=0,\" \",G549*H549)","v":" "},null,null,null,null,null,null,null,null,null,null,null,null,null,null,null,null,null,3.33,3.37,3.38,null,3.38,null,""]
["b) Livros de obras de edificação, loteamentos e ou obras de urbanização",null,null,null,null,null,{"$f":"AE550","v":8.6},null," ",null,null,null,null,null,null,null,null,null,null,null,null,null,null,null,null,null,8.4700000000000006,8.57,8.6,null,8.6,null,""]
["c) Livros de reclamação",null,null,null,null,null,21.3,null," ",null,null,null,null,null,null,null,null,null,null,null,null,null,null,null,null,null,20.98,21.22,21.3,null,21.3,null,""]
["d) Extractos do Plano Municipal do Ordenamento do Território           ",null,null,null,null,null,3.41,null," ",null,null,null,null,null,null,null,null,null,null,null,null,null,null,null,null,null,3.36,3.4,3.41,null,3.41,null,""]
["TOTAL:",null,null,null,null,null,null,null,{"$f":"SUM(I549:I552)","v":0},null,null,null,null,null,null,null,null,null,null,null,null,null,null,null,null,null,null,"","",null,"",null,""]
[null,null,null,null,null,null,null,null,null,null,null,null,null,null,null,null,null,null,null,null,null,null,null,null,null,null,null,"","",null,"",null,""]
["ANEXO 5   CAPITULO VI\nGESTÃO DO ESPAÇO PÚBLICO",null,null,null,null,null,null,null,null,null,null,null,null,null,null,null,null,null,null,null,null,null,null,null,null,null,null,"","",null,"",null,""]
[null,null,null,null,null,null,null,null,null,null,null,null,null,null,null,null,null,null,null,null,null,null,null,null,null,null,null,"","",null,"",null,""]
["SECÇÃO  I\nPUBLICIDADE VISUAL AFECTA A MOBILIÁRIO URBANO OU AUTÓNOMO\n",null,null,null,null,null,null,null,null,null,null,null,null,null,null,null,null,null,null,null,null,null,null,null,null,null,null,"","",null,"",null,""]
[null,null,null,null,null,null,null,null,null,null,null,null,null,null,null,null,null,null,null,null,null,null,null,null,null,null,null,"","",null,"",null,""]
["1 - Por cada informação prévia",null,null,null,null,null,{"$f":"AE559","v":11.76},null,{"$f":"IF(H559=0,\" \",G559*H559)","v":" "},null,null,null,null,null,null,null,null,null,null,null,null,null,null,null,null,null,11.58,11.71,11.76,null,11.76,null,""]
["2 - Por cada licença",null,null,null,null,null,{"$f":"AE560","v":14.6},null,{"$f":"IF(H560=0,\" \",G560*H560)","v":" "},null,null,null,null,null,null,null,null,null,null,null,null,null,null,null,null,null,14.38,14.54,14.6,null,14.6,null,""]
["3 - Publicidade exibida em:",null,null,null,null,null,"",null," ",null,null,null,null,null,null,null,null,null,null,null,null,null,null,null,null,null,null,"","",null,"",null,""]
["3.1 - Painéis luminosos ou directamente iluminados - por m2 e por mês:",null,null,null,null,null,"",null," ",null,null,null,null,null,null,null,null,null,null,null,null,null,null,null,null,null,null,"","",null,"",null,""]
["3.1.1 - Ocupando a via pública:",null,null,null,null,null,"",null," ",null,null,null,null,null,null,null,null,null,null,null,null,null,null,null,null,null,null,"","",null,"",null,""]
["a) Estáticos",null,null,null,null,null,4.17,null," ",null,null,null,null,null,null,null,null,null,null,null,null,null,null,null,null,null,4.0999999999999996,4.1500000000000004,4.17,null,4.17,null,""]
["b) Rotativos",null,null,null,null,null,5.58,null," ",null,null,null,null,null,null,null,null,null,null,null,null,null,null,null,null,null,5.5,5.56,5.58,null,5.58,null,""]
["3.1.2 - Não ocupando a via pública:",null,null,null,null,null,"",null," ",null,null,null,null,null,null,null,null,null,null,null,null,null,null,null,null,null,null,"","",null,"",null,""]
["a) Estáticos",null,null,null,null,null,3.31,null," ",null,null,null,null,null,null,null,null,null,null,null,null,null,null,null,null,null,3.26,3.3,3.31,null,3.31,null,""]
["b) Rotativos",null,null,null,null,null,3.59,null," ",null,null,null,null,null,null,null,null,null,null,null,null,null,null,null,null,null,3.54,3.58,3.59,null,3.59,null,""]
["3.2 - Painéis não luminosos - por m2 e por mês:",null,null,null,null,null,"",null," ",null,null,null,null,null,null,null,null,null,null,null,null,null,null,null,null,null,null,"","",null,"",null,""]
["3.2.1 - Ocupando a via pública:",null,null,null,null,null,"",null," ",null,null,null,null,null,null,null,null,null,null,null,null,null,null,null,null,null,null,"","",null,"",null,""]
["a) Estáticos",null,null,null,null,null,2.17,null," ",null,null,null,null,null,null,null,null,null,null,null,null,null,null,null,null,null,2.14,2.16,2.17,null,2.17,null,""]
["b) Rotativos",null,null,null,null,null,2.46,null," ",null,null,null,null,null,null,null,null,null,null,null,null,null,null,null,null,null,2.42,2.4500000000000002,2.46,null,2.46,null,""]
["3.2.2 - Não ocupando a via pública:",null,null,null,null,null,"",null," ",null,null,null,null,null,null,null,null,null,null,null,null,null,null,null,null,null,null,"","",null,"",null,""]
["a) Estáticos",null,null,null,null,null,1.89,null," ",null,null,null,null,null,null,null,null,null,null,null,null,null,null,null,null,null,1.86,1.88,1.89,null,1.89,null,""]
["b) Rotativos",null,null,null,null,null,2.3199999999999998,null," ",null,null,null,null,null,null,null,null,null,null,null,null,null,null,null,null,null,2.2799999999999998,2.31,2.3199999999999998,null,2.3199999999999998,null,""]
["3.3 - Mupis, colunas publicitárias, anúncios publicitários e semelhantes - por m2 e por mês:",null,null,null,null,null,"",null," ",null,null,null,null,null,null,null,null,null,null,null,null,null,null,null,null,null,null,"","",null,"",null,""]
["a) Ocupando a via pública",null,null,null,null,null,6.31,null," ",null,null,null,null,null,null,null,null,null,null,null,null,null,null,null,null,null,6.21,6.28,6.31,null,6.31,null,""]
["b) Não ocupando a via pública",null,null,null,null,null,5.58,null," ",null,null,null,null,null,null,null,null,null,null,null,null,null,null,null,null,null,5.5,5.56,5.58,null,5.58,null,""]
["3.4 - Pendões, bandeiras e bandeirolas- por m2 e por mês",null,null,null,null,null,5.12,null," ",null,null,null,null,null,null,null,null,null,null,null,null,null,null,null,null,null,5.04,5.0999999999999996,5.12,null,5.12,null,""]
["3.5 - Abrigos de transportes públicos",null,null,null,null,null,5.3,null,{"$f":"IF(H580=0,\" \",G580*H580)","v":" "},null,null,null,null,null,null,null,null,null,null,null,null,null,null,null,null,null,5.22,5.28,5.3,null,5.3,null,""]
["TOTAL:",null,null,null,null,null,null,null,{"$f":"SUM(I559:I580)","v":0},null,null,null,null,null,null,null,null,null,null,null,null,null,null,null,null,null,null,"","",null,"",null,""]
[null,null,null,null,null,null,null,null,null,null,null,null,null,null,null,null,null,null,null,null,null,null,null,null,null,null,null,"","",null,"",null,""]
["SECÇÃO  II\nPUBLICIDADE INSTALADA EM EDIFÍCIOS\n",null,null,null,null,null,null,null,null,null,null,null,null,null,null,null,null,null,null,null,null,null,null,null,null,null,null,"","",null,"",null,""]
[null,null,null,null,null,null,null,null,null,null,null,null,null,null,null,null,null,null,null,null,null,null,null,null,null,null,null,"","",null,"",null,""]
["4 - Publicidade em edifícios:",null,null,null,null,null,{"$f":"AE585","v":""},null,{"$f":"IF(H585=0,\" \",G585*H585)","v":" "},null,null,null,null,null,null,null,null,null,null,null,null,null,null,null,null,null,null,"","",null,"",null,""]
["4.1 - Anúncios luminosos ou directamente iluminados - por m2 e por mês",null,null,null,null,null,{"$f":"AE586","v":3.31},null," ",null,null,null,null,null,null,null,null,null,null,null,null,null,null,null,null,null,3.26,3.3,3.31,null,3.31,null,""]
["4.2 - Anúncios não luminosos - por m2 e por mês",null,null,null,null,null,2.46,null," ",null,null,null,null,null,null,null,null,null,null,null,null,null,null,null,null,null,2.42,2.4500000000000002,2.46,null,2.46,null,""]
["4.3 - Lonas publicitárias instaladas em empenas ou fachadas e andaimes de obras - por m2 e por mês",null,null,null,null,null,"",null," ",null,null,null,null,null,null,null,null,null,null,null,null,null,null,null,null,null,null,"","",null,"",null,""]
["a) Iluminadas",null,null,null,null,null,4.45,null," ",null,null,null,null,null,null,null,null,null,null,null,null,null,null,null,null,null,4.38,4.43,4.45,null,4.45,null,""]
["b) Não iluminadas",null,null,null,null,null,4.17,null," ",null,null,null,null,null,null,null,null,null,null,null,null,null,null,null,null,null,4.0999999999999996,4.1500000000000004,4.17,null,4.17,null,""]
["4.4 - Anúncios electrónicos, sistema de vídeo e similares - por m2 e por mês  ",null,null,null,null,null,"",null," ",null,null,null,null,null,null,null,null,null,null,null,null,null,null,null,null,null,null,"","",null,"",null,""]
["a) No local onde o anunciante exerce a actividade",null,null,null,null,null,3.6,null," ",null,null,null,null,null,null,null,null,null,null,null,null,null,null,null,null,null,3.54,3.59,3.6,null,3.6,null,""]
["b) Fora do local onde o anunciante exerce a actividade",null,null,null,null,null,4.45,null," ",null,null,null,null,null,null,null,null,null,null,null,null,null,null,null,null,null,4.38,4.43,4.45,null,4.45,null,""]
["4.5 - Placas e tabuletas, por m2 e por mês",null,null,null,null,null,2.74,null," ",null,null,null,null,null,null,null,null,null,null,null,null,null,null,null,null,null,2.7,2.73,2.74,null,2.74,null,""]
["4.6 - Palas e Alpendres, por m2 e por mês",null,null,null,null,null,3.03,null," ",null,null,null,null,null,null,null,null,null,null,null,null,null,null,null,null,null,2.98,3.02,3.03,null,3.03,null,""]
["TOTAL:",null,null,null,null,null,null,null,{"$f":"SUM(I585:I595)","v":0},null,null,null,null,null,null,null,null,null,null,null,null,null,null,null,null,null,null,0," ",null,"",null,""]
[null,null,null,null,null,null,null,null,null,null,null,null,null,null,null,null,null,null,null,null,null,null,null,null,null,null,null,"","",null,"",null,""]
["SECÇÃO  III\nPUBLICIDADE MÓVEL\n",null,null,null,null,null,null,null,null,null,null,null,null,null,null,null,null,null,null,null,null,null,null,null,null,null,null,"","",null,"",null,""]
[null,null,null,null,null,null,null,null,null,null,null,null,null,null,null,null,null,null,null,null,null,null,null,null,null,null,null,"","",null,"",null,""]
["1 - Publicidade em transportes públicos:",null,null,null,null,null,{"$f":"AE600","v":""},null,{"$f":"IF(H600=0,\" \",G600*H600)","v":" "},null,null,null,null,null,null,null,null,null,null,null,null,null,null,null,null,null,null,"","",null,"",null,{"$f":"IF(AC600<>\" \",IF(AC600=AE600,\"\",\"XXXX\"),\"\")","v":""}]
["a) Transportes colectivos, por m2, por mês",null,null,null,null,null,{"$f":"AE601","v":2.17},null," ",null,null,null,null,null,null,null,null,null,null,null,null,null,null,null,null,null,2.14,2.16,2.17,null,2.17,null,""]
["b) Em táxis, por m2 e por mês",null,null,null,null,null,1.89,null," ",null,null,null,null,null,null,null,null,null,null,null,null,null,null,null,null,null,1.86,1.88,1.89,null,1.89,null,""]
["2 - Publicidade em veículos - por veículo e por mês",null,null,null,null,null,"",null," ",null,null,null,null,null,null,null,null,null,null,null,null,null,null,null,null,null,null,"","",null,"",null,""]
["a) Ciclomotores e motociclos",null,null,null,null,null,1.61,null," ",null,null,null,null,null,null,null,null,null,null,null,null,null,null,null,null,null,1.58,1.6,1.61,null,1.61,null,""]
["b) Veículos ligeiros de passageiros e mistos",null,null,null,null,null,1.75,null," ",null,null,null,null,null,null,null,null,null,null,null,null,null,null,null,null,null,1.72,1.74,1.75,null,1.75,null,""]
["c) Veículos ligeiros de mercadorias",null,null,null,null,null,2.0299999999999998,null," ",null,null,null,null,null,null,null,null,null,null,null,null,null,null,null,null,null,2,2.02,2.0299999999999998,null,2.0299999999999998,null,""]
["d) Veículos pesados",null,null,null,null,null,2.3199999999999998,null," ",null,null,null,null,null,null,null,null,null,null,null,null,null,null,null,null,null,2.2799999999999998,2.31,2.3199999999999998,null,2.3199999999999998,null,""]
["e) Reboques",null,null,null,null,null,2.3199999999999998,null," ",null,null,null,null,null,null,null,null,null,null,null,null,null,null,null,null,null,2.2799999999999998,2.31,2.3199999999999998,null,2.3199999999999998,null,""]
["f) Semi-reboques",null,null,null,null,null,2.3199999999999998,null," ",null,null,null,null,null,null,null,null,null,null,null,null,null,null,null,null,null,2.2799999999999998,2.31,2.3199999999999998,null,2.3199999999999998,null,""]
["3 - Publicidade em veículos utilizados exclusivamente para o exercício da actividade publicitária - por cada e por m2:",null,null,null,null,null,"",null," ",null,null,null,null,null,null,null,null,null,null,null,null,null,null,null,null,null,null,"","",null,"",null,""]
["a) Por dia",null,null,null,null,null,4.17,null," ",null,null,null,null,null,null,null,null,null,null,null,null,null,null,null,null,null,4.0999999999999996,4.1500000000000004,4.17,null,4.17,null,""]
["b) Por semana",null,null,null,null,null,12.7,null," ",null,null,null,null,null,null,null,null,null,null,null,null,null,null,null,null,null,12.51,12.65,{"$f":"IFERROR(IF(AB612>0,ROUND(AB612*$AC$97,2),\" \"),\"\")","v":12.7},null,{"$f":"IFERROR(ROUND(AC612,2),\"\")","v":12.7},null,""]
["c) Por mês",null,null,null,null,null,21.23,null," ",null,null,null,null,null,null,null,null,null,null,null,null,null,null,null,null,null,20.91,21.15,21.23,null,21.23,null,""]
["4 - Identificação em veículos:",null,null,null,null,null,"",null," ",null,null,null,null,null,null,null,null,null,null,null,null,null,null,null,null,null,null,"","",null,"",null,""]
["a) ciclomotores e motociclos, por veículo e por ano",null,null,null,null,null,1.46,null," ",null,null,null,null,null,null,null,null,null,null,null,null,null,null,null,null,null,1.44,1.45,1.46,null,1.46,null,""]
["b) outros veículos ligeiros e pesados, reboques e semi-reboques, por veículo e por ano",null,null,null,null,null,1.49,null," ",null,null,null,null,null,null,null,null,null,null,null,null,null,null,null,null,null,1.47,1.48,1.49,null,1.49,null,""]
["c) em frota de veículos ligeiros ou pesados, reboques e semi-reboques (por conjuntos de 3 veículos)",null,null,null,null,null,1.61,null," ",null,null,null,null,null,null,null,null,null,null,null,null,null,null,null,null,null,1.58,1.6,1.61,null,1.61,null,""]
["5 - Publicidade em outros meios - por m2:",null,null,null,null,null,"",null," ",null,null,null,null,null,null,null,null,null,null,null,null,null,null,null,null,null,null,"","",null,"",null,""]
["a) Por dia",null,null,null,null,null,3.03,null," ",null,null,null,null,null,null,null,null,null,null,null,null,null,null,null,null,null,2.98,3.02,3.03,null,3.03,null,""]
["b) Por semana",null,null,null,null,null,8.15,null," ",null,null,null,null,null,null,null,null,null,null,null,null,null,null,null,null,null,8.0299999999999994,8.1199999999999992,8.15,null,8.15,null,""]
["c) Por mês",null,null,null,null,null,12.7,null," ",null,null,null,null,null,null,null,null,null,null,null,null,null,null,null,null,null,12.51,12.65,12.7,null,12.7,null,""]
["TOTAL:",null,null,null,null,null,null,null,{"$f":"SUM(I600:I621)","v":0},null,null,null,null,null,null,null,null,null,null,null,null,null,null,null,null,null,null,"","",null,"",null,""]
[null,null,null,null,null,null,null,null,null,null,null,null,null,null,null,null,null,null,null,null,null,null,null,null,null,null,null,"","",null,"",null,""]
["SECÇÃO  IV\nPUBLICIDADE SONORA\n",null,null,null,null,null,null,null,null,null,null,null,null,null,null,null,null,null,null,null,null,null,null,null,null,null,null,"","",null,"",null,""]
[null,null,null,null,null,null,null,null,null,null,null,null,null,null,null,null,null,null,null,null,null,null,null,null,null,null,null,"","",null,"",null,""]
["1 - Aparelhos de rádio ou televisão, altifalantes ou outros aparelhos fazendo emissões directas, com fins publicitários, na ou para a via pública:","1 - Aparelhos de rádio ou televisão, altifalantes ou outros aparelhos fazendo emissões directas, com fins publicitários, na ou para a via pública:","1 - Aparelhos de rádio ou televisão, altifalantes ou outros aparelhos fazendo emissões directas, com fins publicitários, na ou para a via pública:","1 - Aparelhos de rádio ou televisão, altifalantes ou outros aparelhos fazendo emissões directas, com fins publicitários, na ou para a via pública:","1 - Aparelhos de rádio ou televisão, altifalantes ou outros aparelhos fazendo emissões directas, com fins publicitários, na ou para a via pública:","1 - Aparelhos de rádio ou televisão, altifalantes ou outros aparelhos fazendo emissões directas, com fins publicitários, na ou para a via pública:",{"$f":"AE626","v":""},null,{"$f":"IF(H626=0,\" \",G626*H626)","v":" "},null,null,null,null,null,null,null,null,null,null,null,null,null,null,null,null,null,null,"","",null,"",null,""]
["a) Por dia ou fracção","a) Por dia ou fracção","a) Por dia ou fracção","a) Por dia ou fracção","a) Por dia ou fracção","a) Por dia ou fracção",{"$f":"AE627","v":9.3800000000000008},null," ",null,null,null,null,null,null,null,null,null,null,null,null,null,null,null,null,null,9.24,9.34,9.3800000000000008,null,9.3800000000000008,null,""]
["b) Por semana","b) Por semana","b) Por semana","b) Por semana","b) Por semana","b) Por semana",16.96,null," ",null,null,null,null,null,null,null,null,null,null,null,null,null,null,null,null,null,16.71,16.89,16.96,null,16.96,null,""]
["c) Por mês","c) Por mês","c) Por mês","c) Por mês","c) Por mês","c) Por mês",40.43,null," ",null,null,null,null,null,null,null,null,null,null,null,null,null,null,null,null,null,39.83,40.270000000000003,40.43,null,40.43,null,""]
["TOTAL:",null,null,null,null,null,null,null,{"$f":"SUM(I627:I629)","v":0},null,null,null,null,null,null,null,null,null,null,null,null,null,null,null,null,null,null,0," ",null,"",null,""]
[null,null,null,null,null,null,null,null,null,null,null,null,null,null,null,null,null,null,null,null,null,null,null,null,null,null,null,"","",null,"",null,""]
["SECÇÃO  V\nCAMPANHAS PUBLICITÁRIAS DE RUA\n",null,null,null,null,null,null,null,null,null,null,null,null,null,null,null,null,null,null,null,null,null,null,null,null,null,null,"","",null,"",null,""]
[null,null,null,null,null,null,null,null,null,null,null,null,null,null,null,null,null,null,null,null,null,null,null,null,null,null,null,"","",null,"",null,""]
["1 - Distribuição de panfletos - por dia",null,null,null,null,null,{"$f":"AE634","v":7.01},null,{"$f":"IF(H634=0,\" \",G634*H634)","v":" "},null,null,null,null,null,null,null,null,null,null,null,null,null,null,null,null,null,6.91,6.98,7.01,null,7.01,null,""]
["2 - Banca Promocional ",null,null,null,null,null,{"$f":"AE635","v":7.72},null," ",null,null,null,null,null,null,null,null,null,null,null,null,null,null,null,null,null,7.61,7.69,7.72,null,7.72,null,""]
["3 - Outras acções promocionais de natureza publicitária - por dia e por m2",null,null,null,null,null,{"$f":"AE636","v":11.28},null," ",null,null,null,null,null,null,null,null,null,null,null,null,null,null,null,null,null,11.11,11.24,11.28,null,11.28,null,""]
["TOTAL:",null,null,null,null,null,null,null,{"$f":"SUM(I634:I636)","v":0},null,null,null,null,null,null,null,null,null,null,null,null,null,null,null,null,null,null,0," ",null,"",null,""]
[null,null,null,null,null,null,null,null,null,null,null,null,null,null,null,null,null,null,null,null,null,null,null,null,null,null,null,"","",null,"",null,""]
["SECÇÃO  VI\nPUBLICIDADE DIVERSA\n",null,null,null,null,null,null,null,null,null,null,null,null,null,null,null,null,null,null,null,null,null,null,null,null,null,null,"","",null,"",null,""]
[null,null,null,null,null,null,null,null,null,null,null,null,null,null,null,null,null,null,null,null,null,null,null,null,null,null,null,"","",null,"",null,""]
["1 - Publicidade em guarda-sóis, em guarda-ventos - por unidade e por mês:",null,null,null,null,null,{"$f":"AE641","v":4.17},null,{"$f":"IF(H641=0,\" \",G641*H641)","v":" "},null,null,null,null,null,null,null,null,null,null,null,null,null,null,null,null,null,4.0999999999999996,4.1500000000000004,4.17,null,4.17,null,""]
["2 - Exposição no exterior dos estabelecimentos ou dos prédios onde aqueles se encontram:",null,null,null,null,null,{"$f":"AE642","v":""},null,null,null,null,null,null,null,null,null,null,null,null,null,null,null,null,null,null,null,null,"","",null,"",null,""]
["a) De jornais, revistas ou livros - por m2 ou fracção e por mês",null,null,null,null,null,{"$f":"AE643","v":11.28},null,{"$f":"IF(H643=0,\" \",G643*H643)","v":" "},null,null,null,null,null,null,null,null,null,null,null,null,null,null,null,null,null,11.11,11.24,11.28,null,11.28,null,""]
["b) De fazendas, flores e semelhantes - por m2 ou fracção e por mês",null,null,null,null,null,9.85,null,{"$f":"IF(H644=0,\" \",G644*H644)","v":" "},null,null,null,null,null,null,null,null,null,null,null,null,null,null,null,null,null,9.7100000000000009,9.81,9.85,null,9.85,null,""]
["c) De veículos - por unidade e por mês",null,null,null,null,null,14.12,null," ",null,null,null,null,null,null,null,null,null,null,null,null,null,null,null,null,null,13.91,14.06,14.12,null,14.12,null,""]
["d) Outros objectos - por m2 ou por fracção e por mês",null,null,null,null,null,11.75,null," ",null,null,null,null,null,null,null,null,null,null,null,null,null,null,null,null,null,11.58,11.7,11.75,null,11.75,null,""]
["3 - Vitrines, mostradores e semelhantes, em lugar que enteste com a via pública - por m2 e por mês",null,null,null,null,null,3.6,null," ",null,null,null,null,null,null,null,null,null,null,null,null,null,null,null,null,null,3.54,3.59,3.6,null,3.6,null,""]
["4 - Placas de proibição de afixação de publicidade - por cada e por ano ",null,null,null,null,null,1.61,null," ",null,null,null,null,null,null,null,null,null,null,null,null,null,null,null,null,null,1.58,1.6,1.61,null,1.61,null,""]
["5 – Toldos",null,null,null,null,null,"",null," ",null,null,null,null,null,null,null,null,null,null,null,null,null,null,null,null,null,null,"","",null,"",null,""]
["a) pela identificação, por m2 ou fracção e por ano",null,null,null,null,null,3.31,null," ",null,null,null,null,null,null,null,null,null,null,null,null,null,null,null,null,null,3.26,3.3,3.31,null,3.31,null,""]
["b) por publicidade, por m2 ou fracção e por ano",null,null,null,null,null,3.88,null," ",null,null,null,null,null,null,null,null,null,null,null,null,null,null,null,null,null,3.82,3.86,3.88,null,3.88,null,""]
["6 - Outra publicidade não incluída nos números anteriores - por m2 ou fracção",null,null,null,null,null,"",null," ",null,null,null,null,null,null,null,null,null,null,null,null,null,null,null,null,null,null,"","",null,"",null,""]
["a) Por dia",null,null,null,null,null,1.38,null," ",null,null,null,null,null,null,null,null,null,null,null,null,null,null,null,null,null,1.36,1.37,1.38,null,1.38,null,""]
["b) Por mês",null,null,null,null,null,1.55,null," ",null,null,null,null,null,null,null,null,null,null,null,null,null,null,null,null,null,1.53,1.54,1.55,null,1.55,null,""]
["c) Por ano",null,null,null,null,null,5.87,null," ",null,null,null,null,null,null,null,null,null,null,null,null,null,null,null,null,null,5.78,5.85,5.87,null,5.87,null,""]
["TOTAL:",null,null,null,null,null,null,null,{"$f":"SUM(I641:I655)","v":0},null,null,null,null,null,null,null,null,null,null,null,null,null,null,null,null,null,null,0," ",null,"",null,""]
[null,null,null,null,null,null,null,null,null,null,null,null,null,null,null,null,null,null,null,null,null,null,null,null,null,null,null,"","",null,"",null,""]
["SECÇÃO  VII\nALTERAÇÃO DOS TERMOS OU CONDIÇÕES DO LICENCIAMENTO\n",null,null,null,null,null,null,null,null,null,null,null,null,null,null,null,null,null,null,null,null,null,null,null,null,null,null,"","",null,"",null,""]
[null,null,null,null,null,null,null,null,null,null,null,null,null,null,null,null,null,null,null,null,null,null,null,null,null,null,null,"","",null,"",null,""]
["1 - Alteração da mensagem publicitária- 25% do valor da taxa devida","1 - Alteração da mensagem publicitária- 25% do valor da taxa devida","1 - Alteração da mensagem publicitária- 25% do valor da taxa devida","1 - Alteração da mensagem publicitária- 25% do valor da taxa devida","1 - Alteração da mensagem publicitária- 25% do valor da taxa devida","1 - Alteração da mensagem publicitária- 25% do valor da taxa devida",0.25,null,{"$f":"IF(H660=0,\" \",G660*H660)","v":" "},null,null,null,null,null,null,null,null,null,null,null,null,null,null,null,null,null,null,"","",null,"",null,""]
["2 - Averbamento de substituição do titular de licenciamento de publicidade: 15% do valor da taxa devida","2 - Averbamento de substituição do titular de licenciamento de publicidade: 15% do valor da taxa devida","2 - Averbamento de substituição do titular de licenciamento de publicidade: 15% do valor da taxa devida","2 - Averbamento de substituição do titular de licenciamento de publicidade: 15% do valor da taxa devida","2 - Averbamento de substituição do titular de licenciamento de publicidade: 15% do valor da taxa devida","2 - Averbamento de substituição do titular de licenciamento de publicidade: 15% do valor da taxa devida",0.15,null," ",null,null,null,null,null,null,null,null,null,null,null,null,null,null,null,null,null,null,"","",null,"",null,""]
["3 - Renovação da licença: 75% do valor da taxa devida","3 - Renovação da licença: 75% do valor da taxa devida","3 - Renovação da licença: 75% do valor da taxa devida","3 - Renovação da licença: 75% do valor da taxa devida","3 - Renovação da licença: 75% do valor da taxa devida","3 - Renovação da licença: 75% do valor da taxa devida",0.75,null," ",null,null,null,null,null,null,null,null,null,null,null,null,null,null,null,null,null,null,"","",null,"",null,""]
["TOTAL:",null,null,null,null,null,null,null,{"$f":"SUM(I660:I662)","v":0},null,null,null,null,null,null,null,null,null,null,null,null,null,null,null,null,null,null,0," ",null,"",null,""]
[null,null,null,null,null,null,null,null,null,null,null,null,null,null,null,null,null,null,null,null,null,null,null,null,null,null,null,"","",null,"",null,{"$f":"IF(AC664<>\" \",IF(AC664=AE664,\"\",\"XXXX\"),\"\")","v":""}]
[null,null,null,null,null,null,null,null,null,null,null,null,null,null,null,null,null,null,null,null,null,null,null,null,null,null,null,0," ",null,"",null,""]
[null,null,null,null,null,null,null,null,null,null,null,null,null,null,null,null,null,null,null,null,null,null,null,null,null,null,null,0," ",null,"",null,""]
["SUBTOTAL:",null,null,null,null,null,null,null,{"$f":"SUM(I44,I68,I93,I114,I142,I174,I201,I251,I314,I340,I361,I371,I378,I389,I401,I450,I465,I485,I495,I505,I544,I553,I596,I622,I630,I637,I656,I663)","v":0},null,null,null,null,null,null,null,null,null,null,null,null,null,null,null,null,null,null,"","",null,"",null,""]
[null,null,null,null,null,null,null,null,null,null,null,null,null,null,null,null,null,null,null,null,null,null,null,null,null,null,null,"","",null,"",null,""]
["TOTAL A COBRAR (SIMULAÇÃO):",null,null,null,null,null,null,null,{"$f":"I667","v":0},null,null,null,null,null,null,null,null,null,null,null,null,null,null,null,null,null,null,"","",null,"",null,""]
[{"$f":"IF(I669>0,\"(\"&Extenso_Valor(I669)&\")\",\"\")","v":""},null,null,null,null,null,null,null,null,null,null,null,null,null,null,null,null,null,null,null,null,null,null,null,null,null,null,"","",null,"",null,""]
[null,null,null,null,null,null,null,null,null,null,null,null,null,null,null,null,null,null,null,null,null,null,null,null,null,null,null,"","",null,"",null,""]
["O/A Funcionário/a:",null,null,null,null,null,null,null,null,null,null,null,null,null,null,null,null,null,null,null,null,null,null,null,null,null,null,"","",null,"",null,""]
[null,null,null,null,null,null,null,null,null,null,null,null,null,null,null,null,null,null,null,null,null,null,null,null,null,null,null,"","",null,"",null,""]
["Data:",null,null,null,null,null,null,null,null,null,null,null,null,null,null,null,null,null,null,null,null,null,null,null,null,null,null,"","",null,"",null,""]
[null,null,null,null,null,null,null,null,null,null,null,null,null,null,null,null,null,null,null,null,null,null,null,null,null,null,null,"","",null,"",null,""]
[null,null,null,null,null,null,null,null,null,null,null,null,null,null,null,null,null,null,null,null,null,null,null,null,null,null,null,"",{"$f":"IFERROR(IF(AB676>0,ROUND(AB676*$AC$97,2),\" \"),\"\")","v":""},null,{"$f":"IFERROR(ROUND(AC676,2),\"\")","v":""},null,""]
["Pago pela guia nº",null,null,null,"em",null,null,null,null,null,null,null,null,null,null,null,null,null,null,null,null,null,null,null,null,null,null,"","",null,"",null,""]
[null,null,null,null,null,null,null,null,null,null,null,null,null,null,null,null,null,null,null,null,null,null,null,null,null,null,null,"","",null,"",null,""]
[null,null,null,null,null,null,null,null,null,null,null,null,null,null,null,null,null,null,null,null,null,null,null,null,null,null,null,"","",null,""]
[null,null,null,null,null,null,null,null,null,null,null,null,null,null,null,null,null,null,null,null,null,null,null,null,null,null,null,"","",null,""]
[null,null,null,null,null,null,null,null,null,null,null,null,null,null,null,null,null,null,null,null,null,null,null,null,null,null,null,"","",null,""]
[null,null,null,null,null,null,null,null,null,null,null,null,null,null,null,null,null,null,null,null,null,null,null,null,null,null,null,"","",null,""]
[null,null,null,null,null,null,null,null,null,null,null,null,null,null,null,null,null,null,null,null,null,null,null,null,null,null,null,"","",null,""]
[null,null,null,null,null,null,null,null,null,null,null,null,null,null,null,null,null,null,null,null,null,null,null,null,null,null,null,"","",null,""]
[null,null,null,null,null,null,null,null,null,null,null,null,null,null,null,null,null,null,null,null,null,null,null,null,null,null,null,"","",null,""]
[null,null,null,null,null,null,null,null,null,null,null,null,null,null,null,null,null,null,null,null,null,null,null,null,null,null,null,"","",null,""]
[null,null,null,null,null,null,null,null,null,null,null,null,null,null,null,null,null,null,null,null,null,null,null,null,null,null,null,"","",null,""]
[null,null,null,null,null,null,null,null,null,null,null,null,null,null,null,null,null,null,null,null,null,null,null,null,null,null,null,"","",null,""]
[null,null,null,null,null,null,null,null,null,null,null,null,null,null,null,null,null,null,null,null,null,null,null,null,null,null,null,"","",null,""]
[null,null,null,null,null,null,null,null,null,null,null,null,null,null,null,null,null,null,null,null,null,null,null,null,null,null,null,"","",null,""]
[null,null,null,null,null,null,null,null,null,null,null,null,null,null,null,null,null,null,null,null,null,null,null,null,null,null,null,"","",null,""]
[null,null,null,null,null,null,null,null,null,null,null,null,null,null,null,null,null,null,null,null,null,null,null,null,null,null,null,"","",null,""]
[null,null,null,null,null,null,null,null,null,null,null,null,null,null,null,null,null,null,null,null,null,null,null,null,null,null,null,"","",null,""]
[null,null,null,null,null,null,null,null,null,null,null,null,null,null,null,null,null,null,null,null,null,null,null,null,null,null,null,"","",null,""]
[null,null,null,null,null,null,null,null,null,null,null,null,null,null,null,null,null,null,null,null,null,null,null,null,null,null,null,"","",null,""]
[null,null,null,null,null,null,null,null,null,null,null,null,null,null,null,null,null,null,null,null,null,null,null,null,null,null,null,"","",null,""]
[null,null,null,null,null,null,null,null,null,null,null,null,null,null,null,null,null,null,null,null,null,null,null,null,null,null,null,"","",null,""]
[null,null,null,null,null,null,null,null,null,null,null,null,null,null,null,null,null,null,null,null,null,null,null,null,null,null,null,"","",null,""]
[null,null,null,null,null,null,null,null,null,null,null,null,null,null,null,null,null,null,null,null,null,null,null,null,null,null,null,"","",null,""]
[null,null,null,null,null,null,null,null,null,null,null,null,null,null,null,null,null,null,null,null,null,null,null,null,null,null,null,"","",null,""]
[null,null,null,null,null,null,null,null,null,null,null,null,null,null,null,null,null,null,null,null,null,null,null,null,null,null,null,"","",null,""]
[null,null,null,null,null,null,null,null,null,null,null,null,null,null,null,null,null,null,null,null,null,null,null,null,null,null,null,"","",null,""]
[null,null,null,null,null,null,null,null,null,null,null,null,null,null,null,null,null,null,null,null,null,null,null,null,null,null,null,"","",null,""]
[null,null,null,null,null,null,null,null,null,null,null,null,null,null,null,null,null,null,null,null,null,null,null,null,null,null,null,"","",null,""]
[null,null,null,null,null,null,null,null,null,null,null,null,null,null,null,null,null,null,null,null,null,null,null,null,null,null,null,"","",null,""]
[null,null,null,null,null,null,null,null,null,null,null,null,null,null,null,null,null,null,null,null,null,null,null,null,null,null,null,"","",null,""]
[null,null,null,null,null,null,null,null,null,null,null,null,null,null,null,null,null,null,null,null,null,null,null,null,null,null,null,"","",null,""]
[null,null,null,null,null,null,null,null,null,null,null,null,null,null,null,null,null,null,null,null,null,null,null,null,null,null,null,"","",null,""]
[null,null,null,null,null,null,null,null,null,null,null,null,null,null,null,null,null,null,null,null,null,null,null,null,null,null,null,"","",null,""]
[null,null,null,null,null,null,null,null,null,null,null,null,null,null,null,null,null,null,null,null,null,null,null,null,null,null,null,"","",null,""]
[null,null,null,null,null,null,null,null,null,null,null,null,null,null,null,null,null,null,null,null,null,null,null,null,null,null,null,"","",null,""]
[null,null,null,null,null,null,null,null,null,null,null,null,null,null,null,null,null,null,null,null,null,null,null,null,null,null,null,"","",null,""]
[null,null,null,null,null,null,null,null,null,null,null,null,null,null,null,null,null,null,null,null,null,null,null,null,null,null,null,"","",null,""]
[null,null,null,null,null,null,null,null,null,null,null,null,null,null,null,null,null,null,null,null,null,null,null,null,null,null,null,"","",null,""]
[null,null,null,null,null,null,null,null,null,null,null,null,null,null,null,null,null,null,null,null,null,null,null,null,null,null,null,"",{"$f":"IFERROR(IF(AA715>0,ROUND(AA715*$AC$97,2),\" \"),\"\")","v":" "},null,""]
[null,null,null,null,null,null,null,null,null,null,null,null,null,null,null,null,null,null,null,null,null,null,null,null,null,null,null,""," ",null,""]
[null,null,null,null,null,null,null,null,null,null,null,null,null,null,null,null,null,null,null,null,null,null,null,null,null,null,null,""," ",null,""]
[null,null,null,null,null,null,null,null,null,null,null,null,null,null,null,null,null,null,null,null,null,null,null,null,null,null,null,""," ",null,""]
[null,null,null,null,null,null,null,null,null,null,null,null,null,null,null,null,null,null,null,null,null,null,null,null,null,null,null,""," ",null,""]
[null,null,null,null,null,null,null,null,null,null,null,null,null,null,null,null,null,null,null,null,null,null,null,null,null,null,null,""," ",null,""]
[null,null,null,null,null,null,null,null,null,null,null,null,null,null,null,null,null,null,null,null,null,null,null,null,null,null,null,""," ",null,""]
[null,null,null,null,null,null,null,null,null,null,null,null,null,null,null,null,null,null,null,null,null,null,null,null,null,null,null,""," ",null,""]
[null,null,null,null,null,null,null,null,null,null,null,null,null,null,null,null,null,null,null,null,null,null,null,null,null,null,null,""," ",null,""]
[null,null,null,null,null,null,null,null,null,null,null,null,null,null,null,null,null,null,null,null,null,null,null,null,null,null,null,""," ",null,""]
[null,null,null,null,null,null,null,null,null,null,null,null,null,null,null,null,null,null,null,null,null,null,null,null,null,null,null,null," ",null,""]
[null,null,null,null,null,null,null,null,null,null,null,null,null,null,null,null,null,null,null,null,null,null,null,null,null,null,null,null," ",null,""]
[null,null,null,null,null,null,null,null,null,null,null,null,null,null,null,null,null,null,null,null,null,null,null,null,null,null,null,null," ",null,""]
[null,null,null,null,null,null,null,null,null,null,null,null,null,null,null,null,null,null,null,null,null,null,null,null,null,null,null,null," ",null,""]
[null,null,null,null,null,null,null,null,null,null,null,null,null,null,null,null,null,null,null,null,null,null,null,null,null,null,null,null," ",null,""]
[null,null,null,null,null,null,null,null,null,null,null,null,null,null,null,null,null,null,null,null,null,null,null,null,null,null,null,null," ",null,""]
[null,null,null,null,null,null,null,null,null,null,null,null,null,null,null,null,null,null,null,null,null,null,null,null,null,null,null,null," ",null,""]
[null,null,null,null,null,null,null,null,null,null,null,null,null,null,null,null,null,null,null,null,null,null,null,null,null,null,null,null," ",null,""]
[null,null,null,null,null,null,null,null,null,null,null,null,null,null,null,null,null,null,null,null,null,null,null,null,null,null,null,null," ",null,""]
[null,null,null,null,null,null,null,null,null,null,null,null,null,null,null,null,null,null,null,null,null,null,null,null,null,null,null,null," ",null,""]
[null,null,null,null,null,null,null,null,null,null,null,null,null,null,null,null,null,null,null,null,null,null,null,null,null,null,null,null," ",null,""]
[null,null,null,null,null,null,null,null,null,null,null,null,null,null,null,null,null,null,null,null,null,null,null,null,null,null,null,null," ",null,""]
[null,null,null,null,null,null,null,null,null,null,null,null,null,null,null,null,null,null,null,null,null,null,null,null,null,null,null,null," ",null,""]
[null,null,null,null,null,null,null,null,null,null,null,null,null,null,null,null,null,null,null,null,null,null,null,null,null,null,null,null," ",null,""]
[null,null,null,null,null,null,null,null,null,null,null,null,null,null,null,null,null,null,null,null,null,null,null,null,null,null,null,null," ",null,""]
[null,null,null,null,null,null,null,null,null,null,null,null,null,null,null,null,null,null,null,null,null,null,null,null,null,null,null,null," ",null,{"$f":"IFERROR(ROUND(AC740,2),\"\")","v":""}]
[null,null,null,null,null,null,null,null,null,null,null,null,null,null,null,null,null,null,null,null,null,null,null,null,null,null,null,null," ",null,""]
[null,null,null,null,null,null,null,null,null,null,null,null,null,null,null,null,null,null,null,null,null,null,null,null,null,null,null,null," ",null,""]
[null,null,null,null,null,null,null,null,null,null,null,null,null,null,null,null,null,null,null,null,null,null,null,null,null,null,null,null," ",null,""]
[null,null,null,null,null,null,null,null,null,null,null,null,null,null,null,null,null,null,null,null,null,null,null,null,null,null,null,null," ",null,""]
[null,null,null,null,null,null,null,null,null,null,null,null,null,null,null,null,null,null,null,null,null,null,null,null,null,null,null,null,{"$f":"IFERROR(IF(AA745>0,AA745*$AC$97,\" \"),\"\")","v":" "},null,""]
[null,null,null,null,null,null,null,null,null,null,null,null,null,null,null,null,null,null,null,null,null,null,null,null,null,null,null,null," ",null,""]
[null,null,null,null,null,null,null,null,null,null,null,null,null,null,null,null,null,null,null,null,null,null,null,null,null,null,null,null," ",null,""]
[null,null,null,null,null,null,null,null,null,null,null,null,null,null,null,null,null,null,null,null,null,null,null,null,null,null,null,null," ",null,""]
[null,null,null,null,null,null,null,null,null,null,null,null,null,null,null,null,null,null,null,null,null,null,null,null,null,null,null,null," ",null,""]
[null,null,null,null,null,null,null,null,null,null,null,null,null,null,null,null,null,null,null,null,null,null,null,null,null,null,null,null," ",null,""]
[null,null,null,null,null,null,null,null,null,null,null,null,null,null,null,null,null,null,null,null,null,null,null,null,null,null,null,null," ",null,""]
[null,null,null,null,null,null,null,null,null,null,null,null,null,null,null,null,null,null,null,null,null,null,null,null,null,null,null,null," ",null,""]
[null,null,null,null,null,null,null,null,null,null,null,null,null,null,null,null,null,null,null,null,null,null,null,null,null,null,null,null," ",null,""]
[null,null,null,null,null,null,null,null,null,null,null,null,null,null,null,null,null,null,null,null,null,null,null,null,null,null,null,null," ",null,""]
[null,null,null,null,null,null,null,null,null,null,null,null,null,null,null,null,null,null,null,null,null,null,null,null,null,null,null,null," ",null,""]
[null,null,null,null,null,null,null,null,null,null,null,null,null,null,null,null,null,null,null,null,null,null,null,null,null,null,null,null," ",null,""]
[null,null,null,null,null,null,null,null,null,null,null,null,null,null,null,null,null,null,null,null,null,null,null,null,null,null,null,null," ",null,""]
[null,null,null,null,null,null,null,null,null,null,null,null,null,null,null,null,null,null,null,null,null,null,null,null,null,null,null,null," ",null,""]
[null,null,null,null,null,null,null,null,null,null,null,null,null,null,null,null,null,null,null,null,null,null,null,null,null,null,null,null," ",null,""]
[null,null,null,null,null,null,null,null,null,null,null,null,null,null,null,null,null,null,null,null,null,null,null,null,null,null,null,null,null,null,0]
[null,null,null,null,null,null,null,null,null,null,null,null,null,null,null,null,null,null,null,null,null,null,null,null,null,null,null,null,null,null,0]
[null,null,null,null,null,null,null,null,null,null,null,null,null,null,null,null,null,null,null,null,null,null,null,null,null,null,null,null,null,null,0]
[null,null,null,null,null,null,null,null,null,null,null,null,null,null,null,null,null,null,null,null,null,null,null,null,null,null,null,null,null,null,0]
[null,null,null,null,null,null,null,null,null,null,null,null,null,null,null,null,null,null,null,null,null,null,null,null,null,null,null,null,null,null,0]
[null,null,null,null,null,null,null,null,null,null,null,null,null,null,null,null,null,null,null,null,null,null,null,null,null,null,null,null,null,null,0]
[null,null,null,null,null,null,null,null,null,null,null,null,null,null,null,null,null,null,null,null,null,null,null,null,null,null,null,null,null,null,0]
[null,null,null,null,null,null,null,null,null,null,null,null,null,null,null,null,null,null,null,null,null,null,null,null,null,null,null,null,null,null,0]
[null,null,null,null,null,null,null,null,null,null,null,null,null,null,null,null,null,null,null,null,null,null,null,null,null,null,null,null,null,null,0]
[null,null,null,null,null,null,null,null,null,null,null,null,null,null,null,null,null,null,null,null,null,null,null,null,null,null,null,null,null,null,0]
[null,null,null,null,null,null,null,null,null,null,null,null,null,null,null,null,null,null,null,null,null,null,null,null,null,null,null,null,null,null,0]
[null,null,null,null,null,null,null,null,null,null,null,null,null,null,null,null,null,null,null,null,null,null,null,null,null,null,null,null,null,null,0]
[null,null,null,null,null,null,null,null,null,null,null,null,null,null,null,null,null,null,null,null,null,null,null,null,null,null,null,null,null,null,0]
[null,null,null,null,null,null,null,null,null,null,null,null,null,null,null,null,null,null,null,null,null,null,null,null,null,null,null,null,null,null,0]
[null,null,null,null,null,null,null,null,null,null,null,null,null,null,null,null,null,null,null,null,null,null,null,null,null,null,null,null,null,null,0]
[null,null,null,null,null,null,null,null,null,null,null,null,null,null,null,null,null,null,null,null,null,null,null,null,null,null,null,null,null,null,0]
[null,null,null,null,null,null,null,null,null,null,null,null,null,null,null,null,null,null,null,null,null,null,null,null,null,null,null,null,null,null,0]
[null,null,null,null,null,null,null,null,null,null,null,null,null,null,null,null,null,null,null,null,null,null,null,null,null,null,null,null,null,null,0]
[null,null,null,null,null,null,null,null,null,null,null,null,null,null,null,null,null,null,null,null,null,null,null,null,null,null,null,null,null,null,0]
[null,null,null,null,null,null,null,null,null,null,null,null,null,null,null,null,null,null,null,null,null,null,null,null,null,null,null,null,null,null,0]
[null,null,null,null,null,null,null,null,null,null,null,null,null,null,null,null,null,null,null,null,null,null,null,null,null,null,null,null,null,null,0]
[null,null,null,null,null,null,null,null,null,null,null,null,null,null,null,null,null,null,null,null,null,null,null,null,null,null,null,null,null,null,0]
[null,null,null,null,null,null,null,null,null,null,null,null,null,null,null,null,null,null,null,null,null,null,null,null,null,null,null,null,null,null,0]
[null,null,null,null,null,null,null,null,null,null,null,null,null,null,null,null,null,null,null,null,null,null,null,null,null,null,null,null,null,null,0]
[null,null,null,null,null,null,null,null,null,null,null,null,null,null,null,null,null,null,null,null,null,null,null,null,null,null,null,null,null,null,0]
[null,null,null,null,null,null,null,null,null,null,null,null,null,null,null,null,null,null,null,null,null,null,null,null,null,null,null,null,null,null,0]
[null,null,null,null,null,null,null,null,null,null,null,null,null,null,null,null,null,null,null,null,null,null,null,null,null,null,null,null,null,null,0]
[null,null,null,null,null,null,null,null,null,null,null,null,null,null,null,null,null,null,null,null,null,null,null,null,null,null,null,null,null,null,0]
[null,null,null,null,null,null,null,null,null,null,null,null,null,null,null,null,null,null,null,null,null,null,null,null,null,null,null,null,null,null,0]
[null,null,null,null,null,null,null,null,null,null,null,null,null,null,null,null,null,null,null,null,null,null,null,null,null,null,null,null,null,null,0]
[null,null,null,null,null,null,null,null,null,null,null,null,null,null,null,null,null,null,null,null,null,null,null,null,null,null,null,null,null,null,0]
[null,null,null,null,null,null,null,null,null,null,null,null,null,null,null,null,null,null,null,null,null,null,null,null,null,null,null,null,null,null,0]
[null,null,null,null,null,null,null,null,null,null,null,null,null,null,null,null,null,null,null,null,null,null,null,null,null,null,null,null,null,null,0]
[null,null,null,null,null,null,null,null,null,null,null,null,null,null,null,null,null,null,null,null,null,null,null,null,null,null,null,null,null,null,0]
[null,null,null,null,null,null,null,null,null,null,null,null,null,null,null,null,null,null,null,null,null,null,null,null,null,null,null,null,null,null,0]
[null,null,null,null,null,null,null,null,null,null,null,null,null,null,null,null,null,null,null,null,null,null,null,null,null,null,null,null,null,null,0]
[null,null,null,null,null,null,null,null,null,null,null,null,null,null,null,null,null,null,null,null,null,null,null,null,null,null,null,null,null,null,0]
[null,null,null,null,null,null,null,null,null,null,null,null,null,null,null,null,null,null,null,null,null,null,null,null,null,null,null,null,null,null,0]
[null,null,null,null,null,null,null,null,null,null,null,null,null,null,null,null,null,null,null,null,null,null,null,null,null,null,null,null,null,null,0]
[null,null,null,null,null,null,null,null,null,null,null,null,null,null,null,null,null,null,null,null,null,null,null,null,null,null,null,null,null,null,0]
[null,null,null,null,null,null,null,null,null,null,null,null,null,null,null,null,null,null,null,null,null,null,null,null,null,null,null,null,null,null,0]
[null,null,null,null,null,null,null,null,null,null,null,null,null,null,null,null,null,null,null,null,null,null,null,null,null,null,null,null,null,null,0]
[null,null,null,null,null,null,null,null,null,null,null,null,null,null,null,null,null,null,null,null,null,null,null,null,null,null,null,null,null,null,0]
[null,null,null,null,null,null,null,null,null,null,null,null,null,null,null,null,null,null,null,null,null,null,null,null,null,null,null,null,null,null,0]
[null,null,null,null,null,null,null,null,null,null,null,null,null,null,null,null,null,null,null,null,null,null,null,null,null,null,null,null,null,null,{"$f":"IFERROR(ROUND(AC804,2),\"\")","v":0}]
[null,null,null,null,null,null,null,null,null,null,null,null,null,null,null,null,null,null,null,null,null,null,null,null,null,null,null,null,null,null,0]
[null,null,null,null,null,null,null,null,null,null,null,null,null,null,null,null,null,null,null,null,null,null,null,null,null,null,null,null,null,null,0]
[null,null,null,null,null,null,null,null,null,null,null,null,null,null,null,null,null,null,null,null,null,null,null,null,null,null,null,null,null,null,0]
[null,null,null,null,null,null,null,null,null,null,null,null,null,null,null,null,null,null,null,null,null,null,null,null,null,null,null,null,null,null,0]
[null,null,null,null,null,null,null,null,null,null,null,null,null,null,null,null,null,null,null,null,null,null,null,null,null,null,null,null,null,null,0]
[null,null,null,null,null,null,null,null,null,null,null,null,null,null,null,null,null,null,null,null,null,null,null,null,null,null,null,null,null,null,0]
[null,null,null,null,null,null,null,null,null,null,null,null,null,null,null,null,null,null,null,null,null,null,null,null,null,null,null,null,null,null,0]
[null,null,null,null,null,null,null,null,null,null,null,null,null,null,null,null,null,null,null,null,null,null,null,null,null,null,null,null,null,null,0]
[null,null,null,null,null,null,null,null,null,null,null,null,null,null,null,null,null,null,null,null,null,null,null,null,null,null,null,null,null,null,0]
[null,null,null,null,null,null,null,null,null,null,null,null,null,null,null,null,null,null,null,null,null,null,null,null,null,null,null,null,null,null,0]
[null,null,null,null,null,null,null,null,null,null,null,null,null,null,null,null,null,null,null,null,null,null,null,null,null,null,null,null,null,null,0]
[null,null,null,null,null,null,null,null,null,null,null,null,null,null,null,null,null,null,null,null,null,null,null,null,null,null,null,null,null,null,0]
[null,null,null,null,null,null,null,null,null,null,null,null,null,null,null,null,null,null,null,null,null,null,null,null,null,null,null,null,null,null,0]
[null,null,null,null,null,null,null,null,null,null,null,null,null,null,null,null,null,null,null,null,null,null,null,null,null,null,null,null,null,null,0]
[null,null,null,null,null,null,null,null,null,null,null,null,null,null,null,null,null,null,null,null,null,null,null,null,null,null,null,null,null,null,0]
[null,null,null,null,null,null,null,null,null,null,null,null,null,null,null,null,null,null,null,null,null,null,null,null,null,null,null,null,null,null,0]
[null,null,null,null,null,null,null,null,null,null,null,null,null,null,null,null,null,null,null,null,null,null,null,null,null,null,null,null,null,null,0]
[null,null,null,null,null,null,null,null,null,null,null,null,null,null,null,null,null,null,null,null,null,null,null,null,null,null,null,null,null,null,0]
[null,null,null,null,null,null,null,null,null,null,null,null,null,null,null,null,null,null,null,null,null,null,null,null,null,null,null,null,null,null,0]
[null,null,null,null,null,null,null,null,null,null,null,null,null,null,null,null,null,null,null,null,null,null,null,null,null,null,null,null,null,null,0]
[null,null,null,null,null,null,null,null,null,null,null,null,null,null,null,null,null,null,null,null,null,null,null,null,null,null,null,null,null,null,0]
[null,null,null,null,null,null,null,null,null,null,null,null,null,null,null,null,null,null,null,null,null,null,null,null,null,null,null,null,null,null,{"$f":"IF(AC826=\"\",\"\",ROUND(AC826,2))","v":""}]
[null,null,null,null,null,null,null,null,null,null,null,null,null,null,null,null,null,null,null,null,null,null,null,null,null,null,null,null,null,null,""]
[null,null,null,null,null,null,null,null,null,null,null,null,null,null,null,null,null,null,null,null,null,null,null,null,null,null,null,null,null,null,""]
[null,null,null,null,null,null,null,null,null,null,null,null,null,null,null,null,null,null,null,null,null,null,null,null,null,null,null,null,null,null,""]
[null,null,null,null,null,null,null,null,null,null,null,null,null,null,null,null,null,null,null,null,null,null,null,null,null,null,null,null,null,null,""]
[null,null,null,null,null,null,null,null,null,null,null,null,null,null,null,null,null,null,null,null,null,null,null,null,null,null,null,null,null,null,""]